Workbook

Sheet Serviceability Worksheet
B4: PLEASE ENSURE THAT ALL LIGHT GREY FIELDS HAVE BEEN COMPLETED | I4: Version: (15 Feb 2024)
B5: Loan/applicant details
B7: Applicant name/s | N7: =IF(App_names="bwhittin","Awesome Brett","") -> 
L8: =IF(K177>0,"",".") -> .
C9: Applicant 1 | E9: Applicant 2 | G9: Applicant 3 | I9: Applicant 4
L10: =IF(K179>0,"",".") -> .
B11: Status (Couple or single) | K11: =IF(AND(Loanamt>0,Bwr_rate=""),"Please enter maximum borrower rate","") -> 
L12: =IF(K181>0,"",".") -> .
B13: Couple with other applicant? | D13: =IF(Status1="Couple","",".") -> . | F13: =IF(Status2="Couple","",".") -> . | H13: =IF(Status3="Couple","",".") -> .
L14: =IF(K183>0,"",".") -> .
B15: Number of dependants*
L16: =IF(K185>0,"",".") -> .
B17: *Only include common dependants once
L18: =IF(K185>0,"",".") -> .
B20: Account details | I20: Number of accounts | L20: 1
C21: Loan Amount | E21: Loan Term (yrs) | G21: Int. Only Period | I21: Carded Interest rate
L22: =IF(K187>0,"",".") -> .
B23: Account 1 | E23: 30
L24: =IF(K189>0,"",".") -> .
B25: Account 2 | E25: 30
E26: 1
B27: Account 3 | E27: 30
B29: Account 4 | E29: 30
B31: Account 5 | E31: 30
B33: Account 6 | E33: 30
H35: =IF(OR(AND(Acct1LoanAmt >0,Acct1LoanIntRate=""),AND(Acct2LoanAmt >0,Acct2LoanIntRate=""),AND(Acct3LoanAmt >0,Acct3LoanIntRate=""),AND(Acct4LoanAmt >0,Acct4LoanIntRate=""),AND(Acct5LoanAmt >0,Acct5LoanIntRate=""),AND(Acct6LoanAmt >0,Acct6LoanIntRate=""))," Please enter carded rate per account (For fixed rate accounts, enter higher of fixed or revert rate)","") -> 
B36: Total Loan amount | C36: =C23+C25+C27+C29+C31+C33 -> 0 | E36: =IFERROR(ROUND((Acct1LoanAmt*Acct1LoanIntRate+Acct2LoanAmt*Acct2LoanIntRate+Acct3LoanAmt*Acct3LoanIntRate+Acct4LoanAmt*Acct4LoanIntRate+Acct5LoanAmt*Acct5LoanIntRate+Acct6LoanAmt*Acct6LoanIntRate)/(Loanamt),6),"") ->  | G36: =IF(OR(AND(Acct1LoanAmt >0,Acct1LoanIntRate=""),AND(Acct2LoanAmt >0,Acct2LoanIntRate=""),AND(Acct3LoanAmt >0,Acct3LoanIntRate=""),AND(Acct4LoanAmt >0,Acct4LoanIntRate=""),AND(Acct5LoanAmt >0,Acct5LoanIntRate=""),AND(Acct6LoanAmt >0,Acct6LoanIntRate=""))," Please enter carded rate per account (For fixed rate accounts, enter higher of fixed or revert rate)","") -> 
B38: Security details | I38: Number of securities
C39: Security value | E39: Postcode | G39: Investment (Y/N) | I39: Max loan amount per security Subject to satisfactory valuation
B40: Security 1 | G40: [Please select] | I40: =IF(E40="","",IF(ISERROR(VLOOKUP(E40,References!Z:AA,2,0)),"Invalid postcode",VLOOKUP(E40,References!Z:AD,5,0))) ->  | K40: =IFERROR(IF(SecVal1>0,'Loan Workings'!Q40,SecVal1),0) -> 0 | M40: =IF(AND($K$48=2000000,AB40='Loan Workings'!$C$61),"Refer BDM for >$2M loan","") -> 
B41: Security 2 | G41: [Please select] | I41: =IF(E41="","",IF(ISERROR(VLOOKUP(E41,References!Z:AA,2,0)),"Invalid postcode",VLOOKUP(E41,References!Z:AD,5,0))) ->  | K41: =IFERROR(IF(SecVal2>0,'Loan Workings'!Q41,SecVal2),0) -> 0 | M41: =IF(AND($K$48=2000000,AB41='Loan Workings'!$C$61),"Refer BDM for >$2M loan","") -> 
B42: Security 3 | G42: [Please select] | I42: =IF(E42="","",IF(ISERROR(VLOOKUP(E42,References!Z:AA,2,0)),"Invalid postcode",VLOOKUP(E42,References!Z:AD,5,0))) ->  | K42: =IFERROR(IF(SecVal3>0,'Loan Workings'!Q42,SecVal3),0) -> 0 | M42: =IF(AND($K$48=2000000,AB42='Loan Workings'!$C$61),"Refer BDM for >$2M loan","") -> 
B43: Security 4 | G43: [Please select] | I43: =IF(E43="","",IF(ISERROR(VLOOKUP(E43,References!Z:AA,2,0)),"Invalid postcode",VLOOKUP(E43,References!Z:AD,5,0))) ->  | K43: =IFERROR(IF(SecVal4>0,'Loan Workings'!Q43,SecVal4),0) -> 0 | M43: =IF(AND($K$48=2000000,AB43='Loan Workings'!$C$61),"Refer BDM for >$2M loan","") -> 
B44: Security 5 | G44: [Please select] | I44: =IF(E44="","",IF(ISERROR(VLOOKUP(E44,References!Z:AA,2,0)),"Invalid postcode",VLOOKUP(E44,References!Z:AD,5,0))) ->  | K44: =IFERROR(IF(SecVal5>0,'Loan Workings'!Q44,SecVal5),0) -> 0 | M44: =IF(AND($K$48=2000000,AB44='Loan Workings'!$C$61),"Refer BDM for >$2M loan","") -> 
B45: Security 6 | G45: [Please select] | I45: =IF(E45="","",IF(ISERROR(VLOOKUP(E45,References!Z:AA,2,0)),"Invalid postcode",VLOOKUP(E45,References!Z:AD,5,0))) ->  | K45: =IFERROR(IF(SecVal6>0,'Loan Workings'!Q45,SecVal6),0) -> 0 | M45: =IF(AND($K$48=2000000,AB45='Loan Workings'!$C$61),"Refer BDM for >$2M loan","") -> 
B46: Row to be hidden | I46: 1 | K46: 1
B48: Total security value | C48: =MIN(SecVal1)+MIN(SecVal2)+MIN(SecVal3)+MIN(SecVal4)+MIN(SecVal5)+MIN(SecVal6) -> 0 | G48: Maximum total loan based on security | K48: =SUM(K40:K45) -> 0
B50: Capitalise LMI/LDF (Y/N) | C50: [Please select] | I50: =IF(LVR="","LVR",IF(AND(product=3,LVR>'Notes and Guidelines'!F26),"LVR Exceeded",IF((LVR>StandardMAXlvr),"LVR Exceeded","LVR"))) -> LVR | K50: =IF(C48>0,ROUNDUP(C36/C48,4),"") -> 
B52: LMI/LDF premium | C52: =IF('LMI Rates'!B84="",IF(OR(LMI_purpose="[Please select]", LMI_selfEmployed="[Please select]"),"Please complete below fields for correct LMI premium calculation",""),'LMI Rates'!B84) -> Please complete below fields for correct LMI premium calculation
B54: More than 50% of loan amount is for refinance or cash out purposes | G54: [Please select] | I54: LMI/LDF premium | K54: =IF(ISERROR(IF(LVR>80%,'LMI Rates'!D72,0)),"N/A",IF(AND(product<>4,LVR>80%),'LMI Rates'!D72,0)) -> N/A
B56: Self employed applicant | C56: [Please select] | E56: Final loan amount | G56: =IF(ISERROR(Loanamt+K54),Loanamt,Loanamt+(IF(LMIcap_flag="Y",K54,0))) -> 0 | I56: =IF(FinalLVR="","Final LVR",IF(FinalLVR>95%,"LVR Exceeded","Final LVR")) -> Final LVR | K56: =IF(SecValue>0,IF(ISERROR(Final_Loan/SecValue),0,ROUNDUP(Final_Loan/SecValue,4)),0) -> 0
B58: Large loan (>$2m) - Security details | I58: Number of securities
C60: Security value | E60: Postcode | G60: Investment (YN) | I60: Max loan amount per security
B61: Security 1 | G61: [Please select] | I61: =IF(E61="","",IF(ISERROR(VLOOKUP(E61,References!Z:AA,2,0)),"Invalid postcode",VLOOKUP(E61,References!Z:AD,5,0))) ->  | K61: =IF(I61="","",'Loan Workings'!Z72) -> 
B62: Security 2 | G62: [Please select] | I62: =IF(E62="","",IF(ISERROR(VLOOKUP(E62,References!Z:AA,2,0)),"Invalid postcode",VLOOKUP(E62,References!Z:AD,5,0))) ->  | K62: =IF(I62="","",'Loan Workings'!Z73) -> 
B63: Security 3 | G63: [Please select] | I63: =IF(E63="","",IF(ISERROR(VLOOKUP(E63,References!Z:AA,2,0)),"Invalid postcode",VLOOKUP(E63,References!Z:AD,5,0))) ->  | K63: =IF(I63="","",'Loan Workings'!Z74) -> 
B64: Security 4 | G64: [Please select] | I64: =IF(E64="","",IF(ISERROR(VLOOKUP(E64,References!Z:AA,2,0)),"Invalid postcode",VLOOKUP(E64,References!Z:AD,5,0))) ->  | K64: =IF(I64="","",'Loan Workings'!Z75) -> 
B65: Security 5 | G65: [Please select] | I65: =IF(E65="","",IF(ISERROR(VLOOKUP(E65,References!Z:AA,2,0)),"Invalid postcode",VLOOKUP(E65,References!Z:AD,5,0))) ->  | K65: =IF(I65="","",'Loan Workings'!Z76) -> 
B66: Security 6 | G66: [Please select] | I66: =IF(E66="","",IF(ISERROR(VLOOKUP(E66,References!Z:AA,2,0)),"Invalid postcode",VLOOKUP(E66,References!Z:AD,5,0))) ->  | K66: =IF(I66="","",'Loan Workings'!Z77) -> 
B68: Total security value | C68: =SUM(C61:C66) -> 0 | G68: Max total loan based on security | K68: =IF(ISERROR(MATCH('Loan Workings'!C105,#REF!,0)),MIN(SUM(K61:K66),StandardMAXloan),'Loan Workings'!C105) -> 0
I70: LVR | K70: =IF(C48>0,C36/C48,"") -> 
B72: Row to be hidden | J72: Security # dropdown box cell link | K72: 1
E74: Total loan fixed? | I74: Max fixed period
C76: 1 | E76: 2 | G76: 3 | I76: 4
B77: Applicant name
B78: Status (Couple or single) | C78: =C11 -> 0 | E78: =E11 -> 0 | G78: =G11 -> 0 | I78: =I11 -> 0 | J78: =IF(SUMIF(C251:I251,">0",C251:I251)<4,"Please complete status","") -> 
B79: Couple with other applicant | C79: =C13 -> 0 | D79: =IF(Status1="Couple","",".") -> . | E79: =E13 -> 0 | F79: =IF(Status2="Couple","",".") -> . | G79: =G13 -> 0 | H79: =IF(Status3="Couple","",".") -> . | I79: =I13 -> 0 | J79: =IF(Status4="Couple","",".") -> . | K79: =IF(OR(Status1="Couple",Status2="Couple",Status3="Couple",Status4="Couple"),"Please select","") -> 
B80: Number of children | C80: =C15 -> 0 | E80: =E15 -> 0 | G80: =G15 -> 0 | I80: =I15 -> 0
B81: Living expense calc
B82: Taxable income | C82: =C178 -> 0 | E82: =E178 -> 0 | G82: =G178 -> 0 | I82: =I178 -> 0
B83: Income for HEM | C83: =SUM(C171:C176)+(SUM(C181:C182)*0.8)+C243+C244-C246 ->  | E83: =SUM(E171:E176)+(SUM(E181:E182)*0.8)+E243+E244-E246 ->  | G83: =SUM(G171:G176)+(SUM(G181:G182)*0.8)+G243+G244-G246 ->  | I83: =SUM(I171:I176)+(SUM(I181:I182)*0.8)+I243+I244-I246 -> 
B84: Spouse income for HEM | C84: =IFERROR(HLOOKUP(C13,$C$76:$I$83,8,0),0) -> 0 | E84: =IFERROR(HLOOKUP(E13,$C$76:$I$83,8,0),0) -> 0 | G84: =IFERROR(HLOOKUP(G13,$C$76:$I$83,8,0),0) -> 0 | I84: =IFERROR(HLOOKUP(I13,$C$76:$I$83,8,0),0) -> 0
B85: Total income | C85: =SUMIF(C83:C84,">0") -> 0 | E85: =SUMIF(E83:E84,">0") -> 0 | F85: =SUMIF(F83:F84,">0") -> 0 | G85: 0 | H85: 0 | I85: 0
B86: Total Income for HEM | C86: =SUM(C83:C84) ->  | D86: =SUMIF(D83:D84,">0") -> 0 | E86: =SUM(E83:E84) ->  | F86: 0 | G86: =SUM(G83:G84) ->  | H86: 0 | I86: =SUM(I83:I84) -> 
B87: Exclude for LE calc | C87: FALSE | E87: =E76=C13 -> FALSE | G87: =OR(G76=E13,G76=C13) -> FALSE | I87: =OR(I76=G13,I76=E13,I76=C13) -> FALSE
B88: Applicant children | C88: =C15 -> 0 | E88: =E15 -> 0 | G88: =G15 -> 0 | I88: =I15 -> 0
B89: Spouse children | C89: =HLOOKUP(C13,$C$76:$I$80,5,0) ->  | E89: =HLOOKUP(E13,$C$76:$I$80,5,0) ->  | G89: =HLOOKUP(G13,$C$76:$I$80,5,0) ->  | I89: =HLOOKUP(I13,$C$76:$I$80,5,0) -> 
B90: Total children | C90: =SUMIF(C88:C89,">0") -> 0 | E90: =SUMIF(E88:E89,">0") -> 0 | G90: =SUMIF(G88:G89,">0") -> 0 | I90: =SUMIF(I88:I89,">0") -> 0
B91: Code | C91: =IF(C87=FALSE,IF(AND(C78="",C77<>""),"S",LEFT(C78))&MIN(C90,20),"") -> 00 | E91: =IF(E87=FALSE,IF(AND(E78="",E77<>""),"S",LEFT(E78))&MIN(E90,20),"") -> 00 | G91: =IF(G87=FALSE,IF(AND(G78="",G77<>""),"S",LEFT(G78))&MIN(G90,20),"") -> 00 | I91: =IF(I87=FALSE,IF(AND(I78="",I77<>""),"S",LEFT(I78))&MIN(I90,20),"") -> 00
B92: Living expense | C92: =IF(C86<0,VLOOKUP(C91,'HEM Table'!B8:C30,2,TRUE)*52,HLOOKUP(C86, 'HEM Table'!$C$7:$W$30, MATCH(C91, 'HEM Table'!$B$7:$B$30, 0),TRUE)*52) ->  | E92: =IF(E86<0,VLOOKUP(E91,'HEM Table'!B8:C30,2,TRUE)*52,HLOOKUP(E86, 'HEM Table'!$C$7:$W$30, MATCH(E91, 'HEM Table'!$B$7:$B$30, 0),TRUE)*52) ->  | G92: =IF(G86<0,VLOOKUP(G91,'HEM Table'!B8:C30,2,TRUE)*52,HLOOKUP(G86, 'HEM Table'!$C$7:$W$30, MATCH(G91, 'HEM Table'!$B$7:$B$30, 0),TRUE)*52) ->  | I92: =IF(I86<0,VLOOKUP(I91,'HEM Table'!B8:C30,2,TRUE)*52,HLOOKUP(I86, 'HEM Table'!$C$7:$W$30, MATCH(I91, 'HEM Table'!$B$7:$B$30, 0),TRUE)*52) ->  | K92: =IF(Inc_Tier="Y",SUMIF(C92:I92,">0"),($P$11*LE_Couple+$P$13*LE_Single+IF(No_couples=0,$P$15*LE_Single_Child,$P$15*LE_Couple_Child))*52) -> 0
B93: Is this an applicant? | C93: =OR(C77<>"",C78<>0,C249>0) ->  | E93: =OR(E77<>"",E78<>0,E249>0) ->  | G93: =OR(G77<>"",G78<>0,G249>0) ->  | I93: =OR(I77<>"",I78<>0,I249>0) ->  | K93: =COUNTIF(C93:I93,TRUE) -> 0
B95: Living exp calc for max loan | C95: NSR | E95: =O321 -> 1
B96: Step1 | C96: 1 | E96: 2 | G96: 3 | I96: 4
B97: Taxable income | C97: =Q287-C278 -> 0 | E97: =Q292-E278 -> 0 | G97: =Q297-G278 -> 0 | I97: =Q302-I278 -> 0
B98: Spouse income | C98: =HLOOKUP(C$79,$C96:$I97,2,0) ->  | E98: =HLOOKUP(E$79,$C96:$I97,2,0) ->  | G98: =HLOOKUP(G$79,$C96:$I97,2,0) ->  | I98: =HLOOKUP(I$79,$C96:$I97,2,0) -> 
B99: Total income | C99: =SUMIF(C97:C98,">0") -> 0 | E99: =SUMIF(E97:E98,">0") -> 0 | G99: =SUMIF(G97:G98,">0") -> 0 | I99: =SUMIF(I97:I98,">0") -> 0
B100: Living expense | C100: =HLOOKUP(C99, 'HEM Table'!$C$7:$W$30, MATCH(C$91, 'HEM Table'!$B$7:$B$30, 0),TRUE)*52 ->  | E100: =HLOOKUP(E99, 'HEM Table'!$C$7:$W$30, MATCH(E91, 'HEM Table'!$B$7:$B$30, 0),TRUE)*52 ->  | G100: =HLOOKUP(G99, 'HEM Table'!$C$7:$W$30, MATCH(G91, 'HEM Table'!$B$7:$B$30, 0),TRUE)*52 ->  | I100: =HLOOKUP(I99, 'HEM Table'!$C$7:$W$30, MATCH(I91, 'HEM Table'!$B$7:$B$30, 0),TRUE)*52 ->  | K100: =IF(Inc_Tier="Y",MAX(SUMIF(C100:I100,">0"),$K$237),MAX($K$237,($P$11*LE_Couple+$P$13*LE_Single+IF(No_couples=0,$P$15*LE_Single_Child,$P$15*LE_Couple_Child))*52)) -> 0
B101: Step2 | C101: 1 | E101: 2 | G101: 3 | I101: 4
B102: Taxable income | C102: =R287-C278 -> 0 | E102: =R292-E278 -> 0 | G102: =R297-G278 -> 0 | I102: =R302-I278 -> 0
B103: Spouse income | C103: =HLOOKUP(C$79,$C101:$I102,2,0) ->  | E103: =HLOOKUP(E$79,$C101:$I102,2,0) ->  | G103: =HLOOKUP(G$79,$C101:$I102,2,0) ->  | I103: =HLOOKUP(I$79,$C101:$I102,2,0) -> 
B104: Total income | C104: =SUMIF(C102:C103,">0") -> 0 | E104: =SUMIF(E102:E103,">0") -> 0 | G104: =SUMIF(G102:G103,">0") -> 0 | I104: =SUMIF(I102:I103,">0") -> 0
B105: Living expense | C105: =HLOOKUP(C104, 'HEM Table'!$C$7:$W$30, MATCH(C$91, 'HEM Table'!$B$7:$B$30, 0),TRUE)*52 ->  | E105: =HLOOKUP(E104, 'HEM Table'!$C$7:$W$30, MATCH(E91, 'HEM Table'!$B$7:$B$30, 0),TRUE)*52 ->  | G105: =HLOOKUP(G104, 'HEM Table'!$C$7:$W$30, MATCH(G91, 'HEM Table'!$B$7:$B$30, 0),TRUE)*52 ->  | I105: =HLOOKUP(I104, 'HEM Table'!$C$7:$W$30, MATCH(I91, 'HEM Table'!$B$7:$B$30, 0),TRUE)*52 ->  | K105: =IF(Inc_Tier="Y",MAX(SUMIF(C105:I105,">0"),$K$237),MAX($K$237,($P$11*LE_Couple+$P$13*LE_Single+IF(No_couples=0,$P$15*LE_Single_Child,$P$15*LE_Couple_Child))*52)) -> 0
B106: Step3 | C106: 1 | E106: 2 | G106: 3 | I106: 4
B107: Taxable income | C107: =S287-C278 -> 0 | E107: =S292-E278 -> 0 | G107: =S297-G278 -> 0 | I107: =S302-I278 -> 0
B108: Spouse income | C108: =HLOOKUP(C$79,$C106:$I107,2,0) ->  | E108: =HLOOKUP(E$79,$C106:$I107,2,0) ->  | G108: =HLOOKUP(G$79,$C106:$I107,2,0) ->  | I108: =HLOOKUP(I$79,$C106:$I107,2,0) -> 
B109: Total income | C109: =SUMIF(C107:C108,">0") -> 0 | E109: =SUMIF(E107:E108,">0") -> 0 | G109: =SUMIF(G107:G108,">0") -> 0 | I109: =SUMIF(I107:I108,">0") -> 0
B110: Living expense | C110: =HLOOKUP(C109, 'HEM Table'!$C$7:$W$30, MATCH(C$91, 'HEM Table'!$B$7:$B$30, 0),TRUE)*52 ->  | E110: =HLOOKUP(E109, 'HEM Table'!$C$7:$W$30, MATCH(E91, 'HEM Table'!$B$7:$B$30, 0),TRUE)*52 ->  | G110: =HLOOKUP(G109, 'HEM Table'!$C$7:$W$30, MATCH(G91, 'HEM Table'!$B$7:$B$30, 0),TRUE)*52 ->  | I110: =HLOOKUP(I109, 'HEM Table'!$C$7:$W$30, MATCH(I91, 'HEM Table'!$B$7:$B$30, 0),TRUE)*52 ->  | K110: =IF(Inc_Tier="Y",MAX(SUMIF(C110:I110,">0"),$K$237),MAX($K$237,($P$11*LE_Couple+$P$13*LE_Single+IF(No_couples=0,$P$15*LE_Single_Child,$P$15*LE_Couple_Child))*52)) -> 0
B111: Step4 | C111: 1 | E111: 2 | G111: 3 | I111: 4
B112: Taxable income | C112: =T287-C278 -> 0 | E112: =T292-E278 -> 0 | G112: =T297-G278 -> 0 | I112: =T302-I278 -> 0
B113: Spouse income | C113: =HLOOKUP(C$79,$C111:$I112,2,0) ->  | E113: =HLOOKUP(E$79,$C111:$I112,2,0) ->  | G113: =HLOOKUP(G$79,$C111:$I112,2,0) ->  | I113: =HLOOKUP(I$79,$C111:$I112,2,0) -> 
B114: Total income | C114: =SUMIF(C112:C113,">0") -> 0 | E114: =SUMIF(E112:E113,">0") -> 0 | G114: =SUMIF(G112:G113,">0") -> 0 | I114: =SUMIF(I112:I113,">0") -> 0
B115: Living expense | C115: =HLOOKUP(C114, 'HEM Table'!$C$7:$W$30, MATCH(C$91, 'HEM Table'!$B$7:$B$30, 0),TRUE)*52 ->  | E115: =HLOOKUP(E114, 'HEM Table'!$C$7:$W$30, MATCH(E91, 'HEM Table'!$B$7:$B$30, 0),TRUE)*52 ->  | G115: =HLOOKUP(G114, 'HEM Table'!$C$7:$W$30, MATCH(G91, 'HEM Table'!$B$7:$B$30, 0),TRUE)*52 ->  | I115: =HLOOKUP(I114, 'HEM Table'!$C$7:$W$30, MATCH(I91, 'HEM Table'!$B$7:$B$30, 0),TRUE)*52 ->  | K115: =IF(Inc_Tier="Y",MAX(SUMIF(C115:I115,">0"),$K$237),MAX($K$237,($P$11*LE_Couple+$P$13*LE_Single+IF(No_couples=0,$P$15*LE_Single_Child,$P$15*LE_Couple_Child))*52)) -> 0
B116: Step5 | C116: 1 | E116: 2 | G116: 3 | I116: 4
B117: Taxable income | C117: =U287-C278 -> 0 | E117: =U292-E278 -> 0 | G117: =U297-G278 -> 0 | I117: =U302-I278 -> 0
B118: Spouse income | C118: =HLOOKUP(C$79,$C116:$I117,2,0) ->  | E118: =HLOOKUP(E$79,$C116:$I117,2,0) ->  | G118: =HLOOKUP(G$79,$C116:$I117,2,0) ->  | I118: =HLOOKUP(I$79,$C116:$I117,2,0) -> 
B119: Total income | C119: =SUMIF(C117:C118,">0") -> 0 | E119: =SUMIF(E117:E118,">0") -> 0 | G119: =SUMIF(G117:G118,">0") -> 0 | I119: =SUMIF(I117:I118,">0") -> 0
B120: Living expense | C120: =HLOOKUP(C119, 'HEM Table'!$C$7:$W$30, MATCH(C$91, 'HEM Table'!$B$7:$B$30, 0),TRUE)*52 ->  | E120: =HLOOKUP(E119, 'HEM Table'!$C$7:$W$30, MATCH(E91, 'HEM Table'!$B$7:$B$30, 0),TRUE)*52 ->  | G120: =HLOOKUP(G119, 'HEM Table'!$C$7:$W$30, MATCH(G91, 'HEM Table'!$B$7:$B$30, 0),TRUE)*52 ->  | I120: =HLOOKUP(I119, 'HEM Table'!$C$7:$W$30, MATCH(I91, 'HEM Table'!$B$7:$B$30, 0),TRUE)*52 ->  | K120: =IF(Inc_Tier="Y",MAX(SUMIF(C120:I120,">0"),$K$237),MAX($K$237,($P$11*LE_Couple+$P$13*LE_Single+IF(No_couples=0,$P$15*LE_Single_Child,$P$15*LE_Couple_Child))*52)) -> 0
B121: Step6 | C121: 1 | E121: 2 | G121: 3 | I121: 4
B122: Taxable income | C122: =V287-C278 -> 0 | E122: =V292-E278 -> 0 | G122: =V297-G278 -> 0 | I122: =V302-I278 -> 0
B123: Spouse income | C123: =HLOOKUP(C$79,$C121:$I122,2,0) ->  | E123: =HLOOKUP(E$79,$C121:$I122,2,0) ->  | G123: =HLOOKUP(G$79,$C121:$I122,2,0) ->  | I123: =HLOOKUP(I$79,$C121:$I122,2,0) -> 
B124: Total income | C124: =SUMIF(C122:C123,">0") -> 0 | E124: =SUMIF(E122:E123,">0") -> 0 | G124: =SUMIF(G122:G123,">0") -> 0 | I124: =SUMIF(I122:I123,">0") -> 0
B125: Living expense | C125: =HLOOKUP(C124, 'HEM Table'!$C$7:$W$30, MATCH(C$91, 'HEM Table'!$B$7:$B$30, 0),TRUE)*52 ->  | E125: =HLOOKUP(E124, 'HEM Table'!$C$7:$W$30, MATCH(E91, 'HEM Table'!$B$7:$B$30, 0),TRUE)*52 ->  | G125: =HLOOKUP(G124, 'HEM Table'!$C$7:$W$30, MATCH(G91, 'HEM Table'!$B$7:$B$30, 0),TRUE)*52 ->  | I125: =HLOOKUP(I124, 'HEM Table'!$C$7:$W$30, MATCH(I91, 'HEM Table'!$B$7:$B$30, 0),TRUE)*52 ->  | K125: =IF(Inc_Tier="Y",MAX(SUMIF(C125:I125,">0"),$K$237),MAX($K$237,($P$11*LE_Couple+$P$13*LE_Single+IF(No_couples=0,$P$15*LE_Single_Child,$P$15*LE_Couple_Child))*52)) -> 0
B126: Step7 | C126: 1 | E126: 2 | G126: 3 | I126: 4
B127: Taxable income | C127: =W287-C278 -> 0 | E127: =W292-E278 -> 0 | G127: =W297-G278 -> 0 | I127: =W302-I278 -> 0
B128: Spouse income | C128: =HLOOKUP(C$79,$C126:$I127,2,0) ->  | E128: =HLOOKUP(E$79,$C126:$I127,2,0) ->  | G128: =HLOOKUP(G$79,$C126:$I127,2,0) ->  | I128: =HLOOKUP(I$79,$C126:$I127,2,0) -> 
B129: Total income | C129: =SUMIF(C127:C128,">0") -> 0 | E129: =SUMIF(E127:E128,">0") -> 0 | G129: =SUMIF(G127:G128,">0") -> 0 | I129: =SUMIF(I127:I128,">0") -> 0
B130: Living expense | C130: =HLOOKUP(C129, 'HEM Table'!$C$7:$W$30, MATCH(C$91, 'HEM Table'!$B$7:$B$30, 0),TRUE)*52 ->  | E130: =HLOOKUP(E129, 'HEM Table'!$C$7:$W$30, MATCH(E91, 'HEM Table'!$B$7:$B$30, 0),TRUE)*52 ->  | G130: =HLOOKUP(G129, 'HEM Table'!$C$7:$W$30, MATCH(G91, 'HEM Table'!$B$7:$B$30, 0),TRUE)*52 ->  | I130: =HLOOKUP(I129, 'HEM Table'!$C$7:$W$30, MATCH(I91, 'HEM Table'!$B$7:$B$30, 0),TRUE)*52 ->  | K130: =IF(Inc_Tier="Y",MAX(SUMIF(C130:I130,">0"),$K$237),MAX($K$237,($P$11*LE_Couple+$P$13*LE_Single+IF(No_couples=0,$P$15*LE_Single_Child,$P$15*LE_Couple_Child))*52)) -> 0
B131: Living exp calc for max loan | C131: NSR | E131: =Y321 -> 1
B132: Step1 | C132: 1 | E132: 2 | G132: 3 | I132: 4
B133: Taxable income | C133: =AA287-C278 -> 0 | E133: =AA292-E278 -> 0 | G133: =AA297-G278 -> 0 | I133: =AA302-I278 -> 0
B134: Spouse income | C134: =HLOOKUP(C$79,$C132:$I133,2,0) ->  | E134: =HLOOKUP(E$79,$C132:$I133,2,0) ->  | G134: =HLOOKUP(G$79,$C132:$I133,2,0) ->  | I134: =HLOOKUP(I$79,$C132:$I133,2,0) -> 
B135: Total income | C135: =SUMIF(C133:C134,">0") -> 0 | E135: =SUMIF(E133:E134,">0") -> 0 | G135: =SUMIF(G133:G134,">0") -> 0 | I135: =SUMIF(I133:I134,">0") -> 0
B136: Living expense | C136: =HLOOKUP(C135, 'HEM Table'!$C$7:$W$30, MATCH(C$91, 'HEM Table'!$B$7:$B$30, 0),TRUE)*52 ->  | E136: =HLOOKUP(E135, 'HEM Table'!$C$7:$W$30, MATCH(E91, 'HEM Table'!$B$7:$B$30, 0),TRUE)*52 ->  | G136: =HLOOKUP(G135, 'HEM Table'!$C$7:$W$30, MATCH(G91, 'HEM Table'!$B$7:$B$30, 0),TRUE)*52 ->  | I136: =HLOOKUP(I135, 'HEM Table'!$C$7:$W$30, MATCH(I91, 'HEM Table'!$B$7:$B$30, 0),TRUE)*52 ->  | K136: =IF(Inc_Tier="Y",MAX(SUMIF(C136:I136,">0"),$K$237),MAX($K$237,($P$11*LE_Couple+$P$13*LE_Single+IF(No_couples=0,$P$15*LE_Single_Child,$P$15*LE_Couple_Child))*52)) -> 0
B137: Step2 | C137: 1 | E137: 2 | G137: 3 | I137: 4
B138: Taxable income | C138: =AB287-C278 -> 0 | E138: =AB292-E278 -> 0 | G138: =AB297-G278 -> 0 | I138: =AB302-I278 -> 0
B139: Spouse income | C139: =HLOOKUP(C$79,$C137:$I138,2,0) ->  | E139: =HLOOKUP(E$79,$C137:$I138,2,0) ->  | G139: =HLOOKUP(G$79,$C137:$I138,2,0) ->  | I139: =HLOOKUP(I$79,$C137:$I138,2,0) -> 
B140: Total income | C140: =SUMIF(C138:C139,">0") -> 0 | E140: =SUMIF(E138:E139,">0") -> 0 | G140: =SUMIF(G138:G139,">0") -> 0 | I140: =SUMIF(I138:I139,">0") -> 0
B141: Living expense | C141: =HLOOKUP(C140, 'HEM Table'!$C$7:$W$30, MATCH(C$91, 'HEM Table'!$B$7:$B$30, 0),TRUE)*52 ->  | E141: =HLOOKUP(E140, 'HEM Table'!$C$7:$W$30, MATCH(E91, 'HEM Table'!$B$7:$B$30, 0),TRUE)*52 ->  | G141: =HLOOKUP(G140, 'HEM Table'!$C$7:$W$30, MATCH(G91, 'HEM Table'!$B$7:$B$30, 0),TRUE)*52 ->  | I141: =HLOOKUP(I140, 'HEM Table'!$C$7:$W$30, MATCH(I91, 'HEM Table'!$B$7:$B$30, 0),TRUE)*52 ->  | K141: =IF(Inc_Tier="Y",MAX(SUMIF(C141:I141,">0"),$K$237),MAX($K$237,($P$11*LE_Couple+$P$13*LE_Single+IF(No_couples=0,$P$15*LE_Single_Child,$P$15*LE_Couple_Child))*52)) -> 0
B142: Step3 | C142: 1 | E142: 2 | G142: 3 | I142: 4
B143: Taxable income | C143: =AC287-C278 -> 0 | E143: =AC292-E278 -> 0 | G143: =AC297-G278 -> 0 | I143: =AC302-I278 -> 0
B144: Spouse income | C144: =HLOOKUP(C$79,$C142:$I143,2,0) ->  | E144: =HLOOKUP(E$79,$C142:$I143,2,0) ->  | G144: =HLOOKUP(G$79,$C142:$I143,2,0) ->  | I144: =HLOOKUP(I$79,$C142:$I143,2,0) -> 
B145: Total income | C145: =SUMIF(C143:C144,">0") -> 0 | E145: =SUMIF(E143:E144,">0") -> 0 | G145: =SUMIF(G143:G144,">0") -> 0 | I145: =SUMIF(I143:I144,">0") -> 0
B146: Living expense | C146: =HLOOKUP(C145, 'HEM Table'!$C$7:$W$30, MATCH(C$91, 'HEM Table'!$B$7:$B$30, 0),TRUE)*52 ->  | E146: =HLOOKUP(E145, 'HEM Table'!$C$7:$W$30, MATCH(E91, 'HEM Table'!$B$7:$B$30, 0),TRUE)*52 ->  | G146: =HLOOKUP(G145, 'HEM Table'!$C$7:$W$30, MATCH(G91, 'HEM Table'!$B$7:$B$30, 0),TRUE)*52 ->  | I146: =HLOOKUP(I145, 'HEM Table'!$C$7:$W$30, MATCH(I91, 'HEM Table'!$B$7:$B$30, 0),TRUE)*52 ->  | K146: =IF(Inc_Tier="Y",MAX(SUMIF(C146:I146,">0"),$K$237),MAX($K$237,($P$11*LE_Couple+$P$13*LE_Single+IF(No_couples=0,$P$15*LE_Single_Child,$P$15*LE_Couple_Child))*52)) -> 0
B147: Step4 | C147: 1 | E147: 2 | G147: 3 | I147: 4
B148: Taxable income | C148: =AD287-C278 -> 0 | E148: =AD292-E278 -> 0 | G148: =AD297-G278 -> 0 | I148: =AD302-I278 -> 0
B149: Spouse income | C149: =HLOOKUP(C$79,$C147:$I148,2,0) ->  | E149: =HLOOKUP(E$79,$C147:$I148,2,0) ->  | G149: =HLOOKUP(G$79,$C147:$I148,2,0) ->  | I149: =HLOOKUP(I$79,$C147:$I148,2,0) -> 
B150: Total income | C150: =SUMIF(C148:C149,">0") -> 0 | E150: =SUMIF(E148:E149,">0") -> 0 | G150: =SUMIF(G148:G149,">0") -> 0 | I150: =SUMIF(I148:I149,">0") -> 0
B151: Living expense | C151: =HLOOKUP(C150, 'HEM Table'!$C$7:$W$30, MATCH(C$91, 'HEM Table'!$B$7:$B$30, 0),TRUE)*52 ->  | E151: =HLOOKUP(E150, 'HEM Table'!$C$7:$W$30, MATCH(E91, 'HEM Table'!$B$7:$B$30, 0),TRUE)*52 ->  | G151: =HLOOKUP(G150, 'HEM Table'!$C$7:$W$30, MATCH(G91, 'HEM Table'!$B$7:$B$30, 0),TRUE)*52 ->  | I151: =HLOOKUP(I150, 'HEM Table'!$C$7:$W$30, MATCH(I91, 'HEM Table'!$B$7:$B$30, 0),TRUE)*52 ->  | K151: =IF(Inc_Tier="Y",MAX(SUMIF(C151:I151,">0"),$K$237),MAX($K$237,($P$11*LE_Couple+$P$13*LE_Single+IF(No_couples=0,$P$15*LE_Single_Child,$P$15*LE_Couple_Child))*52)) -> 0
B152: Step5 | C152: 1 | E152: 2 | G152: 3 | I152: 4
B153: Taxable income | C153: =AE287-C278 -> 0 | E153: =AE292-E278 -> 0 | G153: =AE297-G278 -> 0 | I153: =AE302-I278 -> 0
B154: Spouse income | C154: =HLOOKUP(C$79,$C152:$I153,2,0) ->  | E154: =HLOOKUP(E$79,$C152:$I153,2,0) ->  | G154: =HLOOKUP(G$79,$C152:$I153,2,0) ->  | I154: =HLOOKUP(I$79,$C152:$I153,2,0) -> 
B155: Total income | C155: =SUMIF(C153:C154,">0") -> 0 | E155: =SUMIF(E153:E154,">0") -> 0 | G155: =SUMIF(G153:G154,">0") -> 0 | I155: =SUMIF(I153:I154,">0") -> 0
B156: Living expense | C156: =HLOOKUP(C155, 'HEM Table'!$C$7:$W$30, MATCH(C$91, 'HEM Table'!$B$7:$B$30, 0),TRUE)*52 ->  | E156: =HLOOKUP(E155, 'HEM Table'!$C$7:$W$30, MATCH(E91, 'HEM Table'!$B$7:$B$30, 0),TRUE)*52 ->  | G156: =HLOOKUP(G155, 'HEM Table'!$C$7:$W$30, MATCH(G91, 'HEM Table'!$B$7:$B$30, 0),TRUE)*52 ->  | I156: =HLOOKUP(I155, 'HEM Table'!$C$7:$W$30, MATCH(I91, 'HEM Table'!$B$7:$B$30, 0),TRUE)*52 ->  | K156: =IF(Inc_Tier="Y",MAX(SUMIF(C156:I156,">0"),$K$237),MAX($K$237,($P$11*LE_Couple+$P$13*LE_Single+IF(No_couples=0,$P$15*LE_Single_Child,$P$15*LE_Couple_Child))*52)) -> 0
B157: Step6 | C157: 1 | E157: 2 | G157: 3 | I157: 4
B158: Taxable income | C158: =AF287-C278 -> 0 | E158: =AF292-E278 -> 0 | G158: =AF297-G278 -> 0 | I158: =AF302-I278 -> 0
B159: Spouse income | C159: =HLOOKUP(C$79,$C157:$I158,2,0) ->  | E159: =HLOOKUP(E$79,$C157:$I158,2,0) ->  | G159: =HLOOKUP(G$79,$C157:$I158,2,0) ->  | I159: =HLOOKUP(I$79,$C157:$I158,2,0) -> 
B160: Total income | C160: =SUMIF(C158:C159,">0") -> 0 | E160: =SUMIF(E158:E159,">0") -> 0 | G160: =SUMIF(G158:G159,">0") -> 0 | I160: =SUMIF(I158:I159,">0") -> 0
B161: Living expense | C161: =HLOOKUP(C160, 'HEM Table'!$C$7:$W$30, MATCH(C$91, 'HEM Table'!$B$7:$B$30, 0),TRUE)*52 ->  | E161: =HLOOKUP(E160, 'HEM Table'!$C$7:$W$30, MATCH(E91, 'HEM Table'!$B$7:$B$30, 0),TRUE)*52 ->  | G161: =HLOOKUP(G160, 'HEM Table'!$C$7:$W$30, MATCH(G91, 'HEM Table'!$B$7:$B$30, 0),TRUE)*52 ->  | I161: =HLOOKUP(I160, 'HEM Table'!$C$7:$IW30, MATCH(I91, 'HEM Table'!$B$7:$B$30, 0),TRUE)*52 ->  | K161: =IF(Inc_Tier="Y",MAX(SUMIF(C161:I161,">0"),$K$237),MAX($K$237,($P$11*LE_Couple+$P$13*LE_Single+IF(No_couples=0,$P$15*LE_Single_Child,$P$15*LE_Couple_Child))*52)) -> 0
B162: Step7 | C162: 1 | E162: 2 | G162: 3 | I162: 4
B163: Taxable income | C163: =AG287-C278 -> 0 | E163: =AG292-E278 -> 0 | G163: =AG297-G278 -> 0 | I163: =AG302-I278 -> 0
B164: Spouse income | C164: =HLOOKUP(C$79,$C162:$I163,2,0) ->  | E164: =HLOOKUP(E$79,$C162:$I163,2,0) ->  | G164: =HLOOKUP(G$79,$C162:$I163,2,0) ->  | I164: =HLOOKUP(I$79,$C162:$I163,2,0) -> 
B165: Total income | C165: =SUMIF(C163:C164,">0") -> 0 | E165: =SUMIF(E163:E164,">0") -> 0 | G165: =SUMIF(G163:G164,">0") -> 0 | I165: =SUMIF(I163:I164,">0") -> 0
B166: Living expense | C166: =HLOOKUP(C165, 'HEM Table'!$C$7:$W$30, MATCH(C$91, 'HEM Table'!$B$7:$B$30, 0),TRUE)*52 ->  | E166: =HLOOKUP(E165, 'HEM Table'!$C$7:$W$30, MATCH(E91, 'HEM Table'!$B$7:$B$30, 0),TRUE)*52 ->  | G166: =HLOOKUP(G165, 'HEM Table'!$C$7:$W$30, MATCH(G91, 'HEM Table'!$B$7:$B$30, 0),TRUE)*52 ->  | I166: =HLOOKUP(I165, 'HEM Table'!$C$7:$W$30, MATCH(I91, 'HEM Table'!$B$7:$B$30, 0),TRUE)*52 ->  | K166: =IF(Inc_Tier="Y",MAX(SUMIF(C166:I166,">0"),$K$237),MAX($K$237,($P$11*LE_Couple+$P$13*LE_Single+IF(No_couples=0,$P$15*LE_Single_Child,$P$15*LE_Couple_Child))*52)) -> 0
B169: Gross annual income | C169: Applicant 1 | E169: Applicant 2 | G169: Applicant 3 | I169: Applicant 4 | K169: Total
B171: Base income (PAYG) | K171: =C171+E171+G171+I171 -> 0
B172: Overtime/Bonus/Commission | K172: =(C172+E172+G172+I172)*0.8 -> 0 | S172: Restricted Postcode | U172: High Density
B173: Foreign(in AUD)/Investment | K173: =(C173+E173+G173+I173)*0.8 -> 0 | S173: =IFERROR(VLOOKUP(PostCode1, References!Z$2:AF$3052, 7, FALSE), "No") -> No | U173: =IFERROR(VLOOKUP(PostCode1, References!Z$2:AG$3052, 8, FALSE), "No") -> No
B174: Other income (taxable) | K174: =C174+E174+G174+I174 -> 0 | S174: =IFERROR(VLOOKUP(PostCode2, References!Z$2:AF$3052, 7, FALSE), "No") -> No | U174: =IFERROR(VLOOKUP(PostCode2, References!Z$2:AG$3052, 8, FALSE), "No") -> No
B175: Non-taxable income | K175: =C175+E175+G175+I175 -> 0 | S175: =IFERROR(VLOOKUP(PostCode3, References!Z$2:AF$3052, 7, FALSE), "No") -> No | U175: =IFERROR(VLOOKUP(PostCode3, References!Z$2:AG$3052, 8, FALSE), "No") -> No
B176: Self employed income | K176: =C176+E176+G176+I176 -> 0 | S176: =IFERROR(VLOOKUP(PostCode4, References!Z$2:AF$3052, 7, FALSE), "No") -> No | U176: =IFERROR(VLOOKUP(PostCode4, References!Z$2:AG$3052, 8, FALSE), "No") -> No
S177: =IFERROR(VLOOKUP(PostCode5, References!Z$2:AF$3052, 7, FALSE), "No") -> No | U177: =IFERROR(VLOOKUP(PostCode5, References!Z$2:AG$3052, 8, FALSE), "No") -> No
B178: Total income | C178: =C171+(C172*0.8)+(C173*0.8)+C174+C175+C176 -> 0 | E178: =E171+(E172*0.8)+(E173*0.8)+E174+E175+E176 -> 0 | G178: =G171+(G172*0.8)+(G173*0.8)+G174+G175+G176 -> 0 | I178: =I171+(I172*0.8)+(I173*0.8)+I174+I175+I176 -> 0 | K178: =K171+K172+K173+K174+K175+K176 -> 0 | S178: =IFERROR(VLOOKUP(PostCode6, References!Z$2:AF$3052, 7, FALSE), "No") -> No | U178: =IFERROR(VLOOKUP(PostCode6, References!Z$2:AG$3052, 8, FALSE), "No") -> No
B180: Annual rental income received (apportion rental income to each applicant as per % of property ownership)
B181: Security property | K181: =C181+E181+G181+I181 -> 0
B182: Other property | K182: =C182+E182+G182+I182 -> 0
B184: Total annual rental @ 75% | C184: =SUM(C181:C182)*0.75 -> 0 | E184: =SUM(E181:E182)*0.75 -> 0 | G184: =SUM(G181:G182)*0.75 -> 0 | I184: =SUM(I181:I182)*0.75 -> 0 | K184: =SUM(K181:K182)*0.75 -> 0
B186: Tax deductibility - Investment loans (apportion investment loan amounts to each applicant as per % of asset ownership)
B187: This loan investment portion | K187: =C187+E187+G187+I187 -> 0
B188: Other investment loans | K188: =C188+E188+G188+I188 -> 0
B189: (Deductibility on any other investment loan can be used) | K189: =SUM(K187:K188) -> 0
B191: Annual investment property expenses (apportion expenses to each applicant as per % of property ownership)
B192: Security property | K192: =C192+E192+G192+I192 -> 0
B193: Other property | K193: =C193+E193+G193+I193 -> 0
K194: =SUM(K192:K193) -> 0
B196: Annual commitments (combined) | D196: (Enter comments/details) | K196: Annual
B198: This loan @ assessment rate | C198: 30 | E198: Remaining P&I Loan Term (months) | I198: =IF(OR(I23="",I23=0),1,IF(AND(G74="yes",OR(K74="4 years",K74="5 years")),MAX(I23,minVar_rate)+Fix_buffer,MAX(I23,minVar_rate)+Var_buffer)) -> 1 | K198: =-IF(Loanamt=0,0,PMT(MAX(Acct1LoanIntRate+Var_buffer,minVar_rate)/12,(Acct1LoanTerm-Acct1IntOnlyPrd)*12,Acct1LoanAmt,0,0)*12+PMT(MAX(Acct2LoanIntRate+Var_buffer,minVar_rate)/12,(Acct2LoanTerm-Acct2IntOnlyPrd)*12,Acct2LoanAmt,0,0)*12+PMT(MAX(Acct3LoanIntRate+Var_buffer,minVar_rate)/12,(Acct3LoanTerm-Acct3IntOnlyPrd)*12,Acct3LoanAmt,0,0)*12+PMT(MAX(Acct4LoanIntRate+Var_buffer,minVar_rate)/12,(Acct4LoanTerm-Acct4IntOnlyPrd)*12,Acct4LoanAmt,0,0)*12+PMT(MAX(Acct5LoanIntRate+Var_buffer,minVar_rate)/12,(Acct5LoanTerm-Acct5IntOnlyPrd)*12,Acct5LoanAmt,0,0)*12+PMT(MAX(Acct6LoanIntRate+Var_buffer,minVar_rate)/12,(Acct6LoanTerm-Acct6IntOnlyPrd)*12,Acct6LoanAmt,0,0)*12+PMT(MAX(Acct1LoanIntRate+Var_buffer,minVar_rate)/12,(MIN(Acct1LoanTerm-Acct1IntOnlyPrd,30)*12),IF(AND(ISNUMBER(LDFValue),(LMIcap_flag="Y")),LDFValue,0),0,0)*12) -> 0
C200: Limit | G200: Interest Rate | I200: Monthly Repayments
B201: Existing Home Loan 1 | K201: =MAX(AF356,AG356) -> 0 | O201: =IF(OR(Mortgage_1_Rate="",Mortgage_1_Rate=0),1,IF(AND(G74="yes",OR(K74="4 years",K74="5 years")),MAX(Mortgage_1_Rate,minVar_rate)+Fix_buffer,MAX(Mortgage_1_Rate,minVar_rate)+Var_buffer)) -> 1
B203: Existing Home Loan 2 | K203: =MAX(AF357,AG357) -> 0
B205: Existing Home Loan 3 | K205: =MAX(AF358,AG358) -> 0
B207: Existing Home Loan 4 | K207: =MAX(AF359,AG359) -> 0
B209: Personal loan limits | K209: =MAX(AF360,AG360) -> 0
B211: Hire Purchase | K211: =MAX(AF361,AG361) -> 0
B213: Lease/car loan | K213: =MAX(AF362,AG362) -> 0
B215: Other debts | K215: =MAX(AF363,AG363) -> 0
B217: Margin/Term/Other loans | K217: =MAX(AF364,AG364) -> 0
C220: Limit | E220: Balance | I220: Monthly Repayment
B221: Buy Now Pay Later | K221: =IF(E221=0,MAX(AF365:AG365),IF(I221=0,MAX(AF365:AG365),MIN(AF365:AG365))) -> 0
C223: Limit
B224: Credit card total limit | E224: (Serviceability based on 45.6% p.a. of credit card limit) | K224: =C224*0.456 -> 0
B225: Credit card (proposed) | K225: =C225*0.456 -> 0
B226: Other (e.g. rent, board, child maintenance) | I226: Annual amount
B228: Total annual outgoings | K228: =SUM(K198:K226) -> 0
B230: Monthly living expenses (combined) | K230: Annual
D231: Include Medical and health (excluding health insurance), Groceries, Clothing & Personal Care, Recreation & entertainment (includes petcare), Childcare, Telephone/Internet/Media Streaming, Transport, Higher Education (excludes HECS), Public primary/Secondary education, General Insurance (includes home and contents and car), Primary Residence Costs (excludes insurance),
B232: General living expenses (per month) | E232: Include - Medical and health (excludes health insurance), Groceries, Clothing & Personal Care, Recreation & entertainment (includes petcare), Childcare, Telephone/Internet/Media Streaming, Transport, Higher Education (excludes HECS), Public Primary/Secondary education, General Insurance (includes home and contents, car), Primary Residence Costs. | K232: =LE_Basic*12 -> 0
B235: Additional living expenses (per month) | E235: Include - Personal Insurance (health, life, personal accident), Private education, Owner occupied strata/body corporate fees, Secondary residence/holiday home costs, Other regular expenses. | K235: =LE_Other*12 -> 0
B237: Total (per month) | C237: =C232+C235 -> 0 | E237: PLEASE NOTE - DO NOT INCLUDE INVESTMENT PROPERTY EXPENSES IN THIS SECTION | K237: =C237*12 -> 0
C238: =IF(OR(BenchMarkHEMValue="-",OR(LE_Other="",LE_Basic="")),"",IF(OR(TotalDeclaredLivingExpense<(0.6*BenchMarkHEMValue),AND(TotalDeclaredLivingExpense<(0.8*BenchMarkHEMValue),K263>6)),"Declared living expenses appear low in relation to HEM. Bank statements from the past 3 months will be required","")) -> 
C239: 1 | E239: 2 | G239: 3 | I239: 4
A240: H | B240: Read only | C240: Applicant 1 | E240: Applicant 2 | G240: Applicant 3 | I240: Applicant 4 | K240: Total
A241: I | B241: Gross annual income | C241: =C178 -> 0 | E241: =E178 -> 0 | G241: =G178 -> 0 | I241: =I178 -> 0 | K241: =C241+E241+G241+I241 -> 0
A242: D | B242: Rental (75% used) | C242: =IF(Total_Rental>Total_Income,(C184/Total_Rental)*Total_Income,C184) -> 0 | E242: =IF(Total_Rental>Total_Income,(E184/Total_Rental)*Total_Income,E184) -> 0 | G242: =IF(Total_Rental>Total_Income,(G184/Total_Rental)*Total_Income,G184) -> 0 | I242: =IF(Total_Rental>Total_Income,(I184/Total_Rental)*Total_Income,I184) -> 0 | K242: =C242+E242+G242+I242 -> 0
A243: E | B243: Interest Component (Inv. Loan) | C243: =MIN(0,-VALUE(MIN(_NGB1*1,IF(LMIcap_flag="Y",MAX(Loanamt,Final_Loan),Loanamt)))*IF(Bwr_rate=1,0,Bwr_rate)) ->  | E243: =MIN(0,-VALUE(MIN(_NGB2*1,IF(LMIcap_flag="Y",MAX(Loanamt,Final_Loan),Loanamt)-_NGB1))*IF(Bwr_rate=1,0,Bwr_rate)) ->  | G243: =MIN(0,-VALUE(MIN(_NGB3*1,IF(LMIcap_flag="Y",MAX(Loanamt,Final_Loan),Loanamt)-_NGB2-_NGB1))*IF(Bwr_rate=1,0,Bwr_rate)) ->  | I243: =MIN(0,-VALUE(MIN(_NGB4*1,IF(LMIcap_flag="Y",MAX(Loanamt,Final_Loan),Loanamt)-_NGB3-_NGB2-_NGB1))*IF(Bwr_rate=1,0,Bwr_rate)) -> 
B244: Interest Comp other loan | C244: =-NGB_other1*(Bwr_rate) ->  | E244: =-NGB_other2*(Bwr_rate) ->  | G244: =-NGB_other3*(Bwr_rate) ->  | I244: =-NGB_other4*(Bwr_rate) -> 
A245: R | B245: Interest component (Inv. loan) | C245: =IF(C243+C244>-(C241+C242),C243+C244,-(C241+C242)) ->  | E245: =IF(E243+E244>-(E241+E242),E243+E244,-(E241+E242)) ->  | G245: =IF(G243+G244>-(G241+G242),G243+G244,-(G241+G242)) ->  | I245: =IF(I243+I244>-(I241+I242),I243+I244,-(I241+I242)) -> 
B246: Extra Investment Property expenses | C246: =MAX(0,(SUM(IPE_Other1,IPE_Security1))-((RentalInc1+RentalIncOth1)*0.2)) -> 0 | E246: =MAX(0,(SUM(IPE_Other2,IPE_Security2))-((RentalInc2+RentalIncOth2)*0.2)) -> 0 | G246: =MAX(0,(SUM(IPE_Other3,IPE_Security3))-((RentalInc3+RentalIncOth3)*0.2)) -> 0 | I246: =MAX(0,(SUM(IPE_Other4,IPE_Security4))-((RentalInc4+RentalIncOth4)*0.2)) -> 0
A247: O | B247: Taxable income | C247: =MAX(0,C241+C242+C243+C244)-C175-C246 ->  | E247: =MAX(0,E241+E242+E243+E244)-E175-E246 ->  | G247: =MAX(0,G241+G242+G243+G244)-G175-G246 ->  | I247: =MAX(0,I241+I242+I243+I244)-I175-I246 -> 
A248: W | B248: Applicable tax | C248: =IF(C247<=0,0,References!F20+C247*Medicare) ->  | E248: =IF(E247<=0,0,References!G20+E247*Medicare) ->  | G248: =IF(G247<=0,0,References!H20+G247*Medicare) ->  | I248: =IF(I247<=0,0,References!I20+I247*Medicare) -> 
A249: S | B249: Net income after tax | C249: =IF(AND(Inc_Tier="Y",C78=""),0,C247-C248+C175-C245) ->  | E249: =IF(AND(Inc_Tier="Y",E78=""),0,E247-E248+E175-E245) ->  | G249: =IF(AND(Inc_Tier="Y",G78=""),0,G247-G248+G175-G245) ->  | I249: =IF(AND(Inc_Tier="Y",I78=""),0,I247-I248+I175-I245) -> 
... 95 more rows

Sheet Guarantor Serviceability (hidden)
F2: 2
B3: GUARANTOR LOAN SERVICEABILITY WORKSHEET
B4: PLEASE ENSURE THAT ALL HIGHLIGHTED (PALE GREY) FIELDS HAVE BEEN COMPLETED
B5: Applicant details | I5: =Version -> Version: (15 Feb 2024)
B7: Applicant name/s | I7: =IF(PledgeResult="","Please complete Pledge Calculator",IF(PledgeResult="Pass","","Error - Refer to Pledge Calculator")) -> Please complete Pledge Calculator | O7: Hide Columns
C9: 1 | E9: 2 | G9: 3 | I9: 4
B10: Applicant name
B11: Status (Couple or single) | J11: =IF(SUMIF(C187:I187,">0",C187:I187)<4,"Please complete status","") ->  | O11: Number of couples | P11: =COUNTIF(C11:I11, "Couple") -> 0
B12: Couple with other applicant | D12: =IF(Status1="Couple","",".") -> . | F12: =IF(Status2="Couple","",".") -> . | H12: =IF(Status3="Couple","",".") -> . | J12: =IF(Status4="Couple","",".") -> . | O12: Number of single adults | P12: =COUNTIF(C11:I11, "Single") -> 0
B13: Number of dependants* | O13: Number of children | P13: =no_ofchild1+no_ofchild2+no_ofchild3+no_ofchild4 -> 0
B15: *Only include common dependants once | D15: 100% Investment (Y/N) | I15: Loan (incl. pledge) | K15: =MIN(Gtr_RefiAmt)+MIN(Pledge) -> 0 | L15: =IF(K120>0,"",".") -> .
E17: Max borrower rate | I17: Security value | K17: =MIN(Gtr_SecValue) -> 0
E19: Assessment rate | G19: =IF(OR(G17="",G17=0),1,IF(AND(G21="yes",OR(K21="4 years",K21="5 years")),MAX(G17,minVar_rate)+Fix_buffer,MAX(G17,minVar_rate)+Var_buffer)) -> 1 | I19: =IF(LVR="","LVR ",IF((LVR>0.9),"Max LVR Breached","LVR ")) -> LVR | K19: =IF(K17>0,K15/K17,"") -> 
A21: Hide | E21: Total loan fixed? | I21: Max fixed period
B22: Living expense calc
B23: Taxable income | C23: =C120 -> 0 | E23: =E120 -> 0 | G23: =G120 -> 0 | I23: =I120 -> 0
B24: Spouse income | C24: =HLOOKUP(C12,$C$9:$I$23,15,0) ->  | E24: =HLOOKUP(E12,$C$9:$I$23,15,0) ->  | G24: =HLOOKUP(G12,$C$9:$I$23,15,0) ->  | I24: =HLOOKUP(I12,$C$9:$I$23,15,0) -> 
B25: Total income | C25: =SUMIF(C23:C24,">0") -> 0 | E25: =SUMIF(E23:E24,">0") -> 0 | G25: =SUMIF(G23:G24,">0") -> 0 | I25: =SUMIF(I23:I24,">0") -> 0
B26: Income for HEM | C26: =(SUM(C113:C118)+((SUM(C123:C124)*0.8)+C179+C180))-C182 -> 0 | E26: =(SUM(E113:E118)+((SUM(E123:E124)*0.8)+E179+E180))-E182 -> 0 | G26: =(SUM(G113:G118)+((SUM(G123:G124)*0.8)+G179+G180))-G182 -> 0 | I26: =(SUM(I113:I118)+((SUM(I123:I124)*0.8)+I179+I180))-I182 -> 0
B27: Spouse Income for HEM | C27: =IFERROR(HLOOKUP(C12,$C$9:$I$26,18,0),0) -> 0 | E27: =IFERROR(HLOOKUP(E12,$C$9:$I$26,18,0),0) -> 0 | G27: =IFERROR(HLOOKUP(G12,$C$9:$I$26,18,0),0) -> 0 | I27: 0
B28: Total Income for HEM | C28: =SUM(C26:C27) -> 0 | E28: =SUM(E26:E27) -> 0 | G28: 0 | I28: 0
B29: Exclude for LE calc | C29: FALSE | E29: =E9=C12 -> FALSE | G29: =OR(G9=E12,G9=C12) -> FALSE | I29: =OR(I9=G12,I9=E12,I9=C12) -> FALSE
B30: Applicant children | C30: =C13 -> 0 | E30: =E13 -> 0 | G30: =G13 -> 0 | I30: =I13 -> 0
B31: Spouse children | C31: =HLOOKUP(C12,$C$9:$I$13,5,0) ->  | E31: =HLOOKUP(E12,$C$9:$I$13,5,0) ->  | G31: =HLOOKUP(G12,$C$9:$I$13,5,0) ->  | I31: =HLOOKUP(I12,$C$9:$I$13,5,0) -> 
B32: Total children | C32: =SUMIF(C30:C31,">0") -> 0 | E32: =SUMIF(E30:E31,">0") -> 0 | G32: =SUMIF(G30:G31,">0") -> 0 | I32: =SUMIF(I30:I31,">0") -> 0
B33: Code | C33: =IF(C29=FALSE,IF(AND(C11="",C10<>""),"S",LEFT(C11))&MIN(C32,20),"") -> 0 | E33: =IF(E29=FALSE,IF(AND(E11="",E10<>""),"S",LEFT(E11))&MIN(E32,20),"") -> 0 | G33: =IF(G29=FALSE,IF(AND(G11="",G10<>""),"S",LEFT(G11))&MIN(G32,20),"") -> 0 | I33: =IF(I29=FALSE,IF(AND(I11="",I10<>""),"S",LEFT(I11))&MIN(I32,20),"") -> 0
B34: Living expense | C34: =IF(C28<0,VLOOKUP(C33,'HEM Table'!B8:C30,2,TRUE)*52,HLOOKUP(C28, 'HEM Table'!$C$7:$W$30, MATCH(C33, 'HEM Table'!$B$7:$B$30, 0),TRUE)*52) ->  | E34: =IF(E28<0,VLOOKUP(E33,'HEM Table'!B8:C30,2,TRUE)*52,HLOOKUP(E28, 'HEM Table'!$C$7:$W$30, MATCH(E33, 'HEM Table'!$B$7:$B$30, 0),TRUE)*52) ->  | G34: =IF(G28<0,VLOOKUP(G33,'HEM Table'!B8:C30,2,TRUE)*52,HLOOKUP(G28, 'HEM Table'!$C$7:$W$30, MATCH(G33, 'HEM Table'!$B$7:$B$30, 0),TRUE)*52) ->  | I34: =IF(I28<0,VLOOKUP(I33,'HEM Table'!B8:C30,2,TRUE)*52,HLOOKUP(I28, 'HEM Table'!$C$7:$W$30, MATCH(I33, 'HEM Table'!$B$7:$B$30, 0),TRUE)*52) ->  | K34: =IF(Inc_Tier="Y",SUMIF(C34:I34,">0"),($P$11*LE_Couple+$P$12*LE_Single+IF(No_couples=0,$P$13*LE_Single_Child,$P$13*LE_Couple_Child))*52) -> 0
B35: Is this an applicant? | C35: =OR(C10<>"",C11<>"",C185>0) -> FALSE | E35: =OR(E10<>"",E11<>"",E185>0) -> FALSE | G35: =OR(G10<>"",G11<>"",G185>0) -> FALSE | I35: =OR(I10<>"",I11<>"",I185>0) -> FALSE | K35: =COUNTIF(C35:I35,TRUE) -> 0
B37: Living exp calc for max loan | C37: NSR | E37: =O250 -> 1
B38: Step1 | C38: 1 | E38: 2 | G38: 3 | I38: 4
B39: Taxable income | C39: =Q216-C207 -> 0 | E39: =Q221-E207 -> 0 | G39: =Q226-G207 -> 0 | I39: =Q231-I207 -> 0
B40: Spouse income | C40: =HLOOKUP(C$12,$C38:$I39,2,0) ->  | E40: =HLOOKUP(E$12,$C38:$I39,2,0) ->  | G40: =HLOOKUP(G$12,$C38:$I39,2,0) ->  | I40: =HLOOKUP(I$12,$C38:$I39,2,0) -> 
B41: Total income | C41: =SUMIF(C39:C40,">0") -> 0 | E41: =SUMIF(E39:E40,">0") -> 0 | G41: =SUMIF(G39:G40,">0") -> 0 | I41: =SUMIF(I39:I40,">0") -> 0
B42: Living expense | C42: =HLOOKUP(C41, 'HEM Table'!$C$7:$W$30, MATCH(C33, 'HEM Table'!$B$7:$B$30, 0),TRUE)*52 ->  | E42: =HLOOKUP(E41, 'HEM Table'!$C$7:$W$30, MATCH(E33, 'HEM Table'!$B$7:$B$30, 0),TRUE)*52 ->  | G42: =HLOOKUP(G41, 'HEM Table'!$C$7:$W$30, MATCH(G33, 'HEM Table'!$B$7:$B$30, 0),TRUE)*52 ->  | I42: =HLOOKUP(I41, 'HEM Table'!$C$7:$W$30, MATCH(I33, 'HEM Table'!$B$7:$B$30, 0),TRUE)*52 ->  | K42: =IF(Inc_Tier="Y",MAX(SUMIF(C42:I42,">0"),$K$173),MAX($K$173,($P$11*LE_Couple+$P$12*LE_Single+IF(No_couples=0,$P$13*LE_Single_Child,$P$13*LE_Couple_Child))*52)) -> 0
B43: Step2 | C43: 1 | E43: 2 | G43: 3 | I43: 4
B44: Taxable income | C44: =R216-C207 -> 0 | E44: =R221-E207 -> 0 | G44: =R226-G207 -> 0 | I44: =R231-I207 -> 0
B45: Spouse income | C45: =HLOOKUP(C$12,$C43:$I44,2,0) ->  | E45: =HLOOKUP(E$12,$C43:$I44,2,0) ->  | G45: =HLOOKUP(G$12,$C43:$I44,2,0) ->  | I45: =HLOOKUP(I$12,$C43:$I44,2,0) -> 
B46: Total income | C46: =SUMIF(C44:C45,">0") -> 0 | E46: =SUMIF(E44:E45,">0") -> 0 | G46: =SUMIF(G44:G45,">0") -> 0 | I46: =SUMIF(I44:I45,">0") -> 0
B47: Living expense | C47: =HLOOKUP(C46, 'HEM Table'!$C$7:$W$30, MATCH(C33, 'HEM Table'!$B$7:$B$30, 0),TRUE)*52 ->  | E47: =HLOOKUP(E46, 'HEM Table'!$C$7:$W$30, MATCH(E33, 'HEM Table'!$B$7:$B$30, 0),TRUE)*52 ->  | G47: =HLOOKUP(G46, 'HEM Table'!$C$7:$W$30, MATCH(G33, 'HEM Table'!$B$7:$B$30, 0),TRUE)*52 ->  | I47: =HLOOKUP(I46, 'HEM Table'!$C$7:$W$30, MATCH(I33, 'HEM Table'!$B$7:$B$30, 0),TRUE)*52 ->  | K47: =IF(Inc_Tier="Y",MAX(SUMIF(C47:I47,">0"),$K$173),MAX($K$173,($P$11*LE_Couple+$P$12*LE_Single+IF(No_couples=0,$P$13*LE_Single_Child,$P$13*LE_Couple_Child))*52)) -> 0
B48: Step3 | C48: 1 | E48: 2 | G48: 3 | I48: 4
B49: Taxable income | C49: =S216-C207 -> 0 | E49: =S221-E207 -> 0 | G49: =S226-G207 -> 0 | I49: =S231-I207 -> 0
B50: Spouse income | C50: =HLOOKUP(C$12,$C48:$I49,2,0) ->  | E50: =HLOOKUP(E$12,$C48:$I49,2,0) ->  | G50: =HLOOKUP(G$12,$C48:$I49,2,0) ->  | I50: =HLOOKUP(I$12,$C48:$I49,2,0) -> 
B51: Total income | C51: =SUMIF(C49:C50,">0") -> 0 | E51: =SUMIF(E49:E50,">0") -> 0 | G51: =SUMIF(G49:G50,">0") -> 0 | I51: =SUMIF(I49:I50,">0") -> 0
B52: Living expense | C52: =HLOOKUP(C51, 'HEM Table'!$C$7:$W$30, MATCH(C33, 'HEM Table'!$B$7:$B$30, 0),TRUE)*52 ->  | E52: =HLOOKUP(E51, 'HEM Table'!$C$7:$W$30, MATCH(E33, 'HEM Table'!$B$7:$B$30, 0),TRUE)*52 ->  | G52: =HLOOKUP(G51, 'HEM Table'!$C$7:$W$30, MATCH(G33, 'HEM Table'!$B$7:$B$30, 0),TRUE)*52 ->  | I52: =HLOOKUP(I51, 'HEM Table'!$C$7:$W$30, MATCH(I33, 'HEM Table'!$B$7:$B$30, 0),TRUE)*52 ->  | K52: =IF(Inc_Tier="Y",MAX(SUMIF(C52:I52,">0"),$K$173),MAX($K$173,($P$11*LE_Couple+$P$12*LE_Single+IF(No_couples=0,$P$13*LE_Single_Child,$P$13*LE_Couple_Child))*52)) -> 0
B53: Step4 | C53: 1 | E53: 2 | G53: 3 | I53: 4
B54: Taxable income | C54: =T216-C207 -> 0 | E54: =T221-E207 -> 0 | G54: =T226-G207 -> 0 | I54: =T231-I207 -> 0
B55: Spouse income | C55: =HLOOKUP(C$12,$C53:$I54,2,0) ->  | E55: =HLOOKUP(E$12,$C53:$I54,2,0) ->  | G55: =HLOOKUP(G$12,$C53:$I54,2,0) ->  | I55: =HLOOKUP(I$12,$C53:$I54,2,0) -> 
B56: Total income | C56: =SUMIF(C54:C55,">0") -> 0 | E56: =SUMIF(E54:E55,">0") -> 0 | G56: =SUMIF(G54:G55,">0") -> 0 | I56: =SUMIF(I54:I55,">0") -> 0
B57: Living expense | C57: =HLOOKUP(C56, 'HEM Table'!$C$7:$W$30, MATCH(C33, 'HEM Table'!$B$7:$B$30, 0),TRUE)*52 ->  | E57: =HLOOKUP(E56, 'HEM Table'!$C$7:$W$30, MATCH(E33, 'HEM Table'!$B$7:$B$30, 0),TRUE)*52 ->  | G57: =HLOOKUP(G56, 'HEM Table'!$C$7:$W$30, MATCH(G33, 'HEM Table'!$B$7:$B$30, 0),TRUE)*52 ->  | I57: =HLOOKUP(I56, 'HEM Table'!$C$7:$W$30, MATCH(I33, 'HEM Table'!$B$7:$B$30, 0),TRUE)*52 ->  | K57: =IF(Inc_Tier="Y",MAX(SUMIF(C57:I57,">0"),$K$173),MAX($K$173,($P$11*LE_Couple+$P$12*LE_Single+IF(No_couples=0,$P$13*LE_Single_Child,$P$13*LE_Couple_Child))*52)) -> 0
B58: Step5 | C58: 1 | E58: 2 | G58: 3 | I58: 4
B59: Taxable income | C59: =U216-C207 -> 0 | E59: =U221-E207 -> 0 | G59: =U226-G207 -> 0 | I59: =U231-I207 -> 0
B60: Spouse income | C60: =HLOOKUP(C$12,$C58:$I59,2,0) ->  | E60: =HLOOKUP(E$12,$C58:$I59,2,0) ->  | G60: =HLOOKUP(G$12,$C58:$I59,2,0) ->  | I60: =HLOOKUP(I$12,$C58:$I59,2,0) -> 
B61: Total income | C61: =SUMIF(C59:C60,">0") -> 0 | E61: =SUMIF(E59:E60,">0") -> 0 | G61: =SUMIF(G59:G60,">0") -> 0 | I61: =SUMIF(I59:I60,">0") -> 0
B62: Living expense | C62: =HLOOKUP(C61, 'HEM Table'!$C$7:$W$30, MATCH(C33, 'HEM Table'!$B$7:$B$30, 0),TRUE)*52 ->  | E62: =HLOOKUP(E61, 'HEM Table'!$C$7:$W$30, MATCH(E33, 'HEM Table'!$B$7:$B$30, 0),TRUE)*52 ->  | G62: =HLOOKUP(G61, 'HEM Table'!$C$7:$W$30, MATCH(G33, 'HEM Table'!$B$7:$B$30, 0),TRUE)*52 ->  | I62: =HLOOKUP(I61, 'HEM Table'!$C$7:$W$30, MATCH(I33, 'HEM Table'!$B$7:$B$30, 0),TRUE)*52 ->  | K62: =IF(Inc_Tier="Y",MAX(SUMIF(C62:I62,">0"),$K$173),MAX($K$173,($P$11*LE_Couple+$P$12*LE_Single+IF(No_couples=0,$P$13*LE_Single_Child,$P$13*LE_Couple_Child))*52)) -> 0
B63: Step6 | C63: 1 | E63: 2 | G63: 3 | I63: 4
B64: Taxable income | C64: =V216-C207 -> 0 | E64: =V221-E207 -> 0 | G64: =V226-G207 -> 0 | I64: =V231-I207 -> 0
B65: Spouse income | C65: =HLOOKUP(C$12,$C63:$I64,2,0) ->  | E65: =HLOOKUP(E$12,$C63:$I64,2,0) ->  | G65: =HLOOKUP(G$12,$C63:$I64,2,0) ->  | I65: =HLOOKUP(I$12,$C63:$I64,2,0) -> 
B66: Total income | C66: =SUMIF(C64:C65,">0") -> 0 | E66: =SUMIF(E64:E65,">0") -> 0 | G66: =SUMIF(G64:G65,">0") -> 0 | I66: =SUMIF(I64:I65,">0") -> 0
B67: Living expense | C67: =HLOOKUP(C66, 'HEM Table'!$C$7:$W$30, MATCH(C33, 'HEM Table'!$B$7:$B$30, 0),TRUE)*52 ->  | E67: =HLOOKUP(E66, 'HEM Table'!$C$7:$W$30, MATCH(E33, 'HEM Table'!$B$7:$B$30, 0),TRUE)*52 ->  | G67: =HLOOKUP(G66, 'HEM Table'!$C$7:$W$30, MATCH(G33, 'HEM Table'!$B$7:$B$30, 0),TRUE)*52 ->  | I67: =HLOOKUP(I66, 'HEM Table'!$C$7:$W$30, MATCH(I33, 'HEM Table'!$B$7:$B$30, 0),TRUE)*52 ->  | K67: =IF(Inc_Tier="Y",MAX(SUMIF(C67:I67,">0"),$K$173),MAX($K$173,($P$11*LE_Couple+$P$12*LE_Single+IF(No_couples=0,$P$13*LE_Single_Child,$P$13*LE_Couple_Child))*52)) -> 0
B68: Step7 | C68: 1 | E68: 2 | G68: 3 | I68: 4
B69: Taxable income | C69: =W216-C207 -> 0 | E69: =W221-E207 -> 0 | G69: =W226-G207 -> 0 | I69: =W231-I207 -> 0
B70: Spouse income | C70: =HLOOKUP(C$12,$C68:$I69,2,0) ->  | E70: =HLOOKUP(E$12,$C68:$I69,2,0) ->  | G70: =HLOOKUP(G$12,$C68:$I69,2,0) ->  | I70: =HLOOKUP(I$12,$C68:$I69,2,0) -> 
B71: Total income | C71: =SUMIF(C69:C70,">0") -> 0 | E71: =SUMIF(E69:E70,">0") -> 0 | G71: =SUMIF(G69:G70,">0") -> 0 | I71: =SUMIF(I69:I70,">0") -> 0
B72: Living expense | C72: =HLOOKUP(C71, 'HEM Table'!$C$7:$W$30, MATCH(C33, 'HEM Table'!$B$7:$B$30, 0),TRUE)*52 ->  | E72: =HLOOKUP(E71, 'HEM Table'!$C$7:$W$30, MATCH(E33, 'HEM Table'!$B$7:$B$30, 0),TRUE)*52 ->  | G72: =HLOOKUP(G71, 'HEM Table'!$C$7:$W$30, MATCH(G33, 'HEM Table'!$B$7:$B$30, 0),TRUE)*52 ->  | I72: =HLOOKUP(I71, 'HEM Table'!$C$7:$W$30, MATCH(I33, 'HEM Table'!$B$7:$B$30, 0),TRUE)*52 ->  | K72: =IF(Inc_Tier="Y",MAX(SUMIF(C72:I72,">0"),$K$173),MAX($K$173,($P$11*LE_Couple+$P$12*LE_Single+IF(No_couples=0,$P$13*LE_Single_Child,$P$13*LE_Couple_Child))*52)) -> 0
B73: Living exp calc for max loan | C73: NSR | E73: =Y250 -> 1.1
B74: Step1 | C74: 1 | E74: 2 | G74: 3 | I74: 4
B75: Taxable income | C75: =AA216-C207 -> 0 | E75: =AA221-E207 -> 0 | G75: =AA226-G207 -> 0 | I75: =AA231-I207 -> 0
B76: Spouse income | C76: =HLOOKUP(C$12,$C74:$I75,2,0) ->  | E76: =HLOOKUP(E$12,$C74:$I75,2,0) ->  | G76: =HLOOKUP(G$12,$C74:$I75,2,0) ->  | I76: =HLOOKUP(I$12,$C74:$I75,2,0) -> 
B77: Total income | C77: =SUMIF(C75:C76,">0") -> 0 | E77: =SUMIF(E75:E76,">0") -> 0 | G77: =SUMIF(G75:G76,">0") -> 0 | I77: =SUMIF(I75:I76,">0") -> 0
B78: Living expense | C78: =HLOOKUP(C77, 'HEM Table'!$C$7:$W$30, MATCH(C33, 'HEM Table'!$B$7:$B$30, 0),TRUE)*52 ->  | E78: =HLOOKUP(E77, 'HEM Table'!$C$7:$W$30, MATCH(E33, 'HEM Table'!$B$7:$B$30, 0),TRUE)*52 ->  | G78: =HLOOKUP(G77, 'HEM Table'!$C$7:$W$30, MATCH(G33, 'HEM Table'!$B$7:$B$30, 0),TRUE)*52 ->  | I78: =HLOOKUP(I77, 'HEM Table'!$C$7:$W$30, MATCH(I33, 'HEM Table'!$B$7:$B$30, 0),TRUE)*52 ->  | K78: =IF(Inc_Tier="Y",MAX(SUMIF(C78:I78,">0"),$K$173),MAX($K$173,($P$11*LE_Couple+$P$12*LE_Single+IF(No_couples=0,$P$13*LE_Single_Child,$P$13*LE_Couple_Child))*52)) -> 0
B79: Step2 | C79: 1 | E79: 2 | G79: 3 | I79: 4
B80: Taxable income | C80: =AB216-C207 -> 0 | E80: =AB221-E207 -> 0 | G80: =AB226-G207 -> 0 | I80: =AB231-I207 -> 0
B81: Spouse income | C81: =HLOOKUP(C$12,$C79:$I80,2,0) ->  | E81: =HLOOKUP(E$12,$C79:$I80,2,0) ->  | G81: =HLOOKUP(G$12,$C79:$I80,2,0) ->  | I81: =HLOOKUP(I$12,$C79:$I80,2,0) -> 
B82: Total income | C82: =SUMIF(C80:C81,">0") -> 0 | E82: =SUMIF(E80:E81,">0") -> 0 | G82: =SUMIF(G80:G81,">0") -> 0 | I82: =SUMIF(I80:I81,">0") -> 0
B83: Living expense | C83: =HLOOKUP(C82, 'HEM Table'!$C$7:$W$30, MATCH(C33, 'HEM Table'!$B$7:$B$30, 0),TRUE)*52 ->  | E83: =HLOOKUP(E82, 'HEM Table'!$C$7:$W$30, MATCH(E33, 'HEM Table'!$B$7:$B$30, 0),TRUE)*52 ->  | G83: =HLOOKUP(G82, 'HEM Table'!$C$7:$W$30, MATCH(G33, 'HEM Table'!$B$7:$B$30, 0),TRUE)*52 ->  | I83: =HLOOKUP(I82, 'HEM Table'!$C$7:$W$30, MATCH(I33, 'HEM Table'!$B$7:$B$30, 0),TRUE)*52 ->  | K83: =IF(Inc_Tier="Y",MAX(SUMIF(C83:I83,">0"),$K$173),MAX($K$173,($P$11*LE_Couple+$P$12*LE_Single+IF(No_couples=0,$P$13*LE_Single_Child,$P$13*LE_Couple_Child))*52)) -> 0
B84: Step3 | C84: 1 | E84: 2 | G84: 3 | I84: 4
B85: Taxable income | C85: =AC216-C207 -> 0 | E85: =AC221-E207 -> 0 | G85: =AC226-G207 -> 0 | I85: =AC231-I207 -> 0
B86: Spouse income | C86: =HLOOKUP(C$12,$C84:$I85,2,0) ->  | E86: =HLOOKUP(E$12,$C84:$I85,2,0) ->  | G86: =HLOOKUP(G$12,$C84:$I85,2,0) ->  | I86: =HLOOKUP(I$12,$C84:$I85,2,0) -> 
B87: Total income | C87: =SUMIF(C85:C86,">0") -> 0 | E87: =SUMIF(E85:E86,">0") -> 0 | G87: =SUMIF(G85:G86,">0") -> 0 | I87: =SUMIF(I85:I86,">0") -> 0
B88: Living expense | C88: =HLOOKUP(C87, 'HEM Table'!$C$7:$W$30, MATCH(C33, 'HEM Table'!$B$7:$B$30, 0),TRUE)*52 ->  | E88: =HLOOKUP(E87, 'HEM Table'!$C$7:$W$30, MATCH(E33, 'HEM Table'!$B$7:$B$30, 0),TRUE)*52 ->  | G88: =HLOOKUP(G87, 'HEM Table'!$C$7:$W$30, MATCH(G33, 'HEM Table'!$B$7:$B$30, 0),TRUE)*52 ->  | I88: =HLOOKUP(I87, 'HEM Table'!$C$7:$W$30, MATCH(I33, 'HEM Table'!$B$7:$B$30, 0),TRUE)*52 ->  | K88: =IF(Inc_Tier="Y",MAX(SUMIF(C88:I88,">0"),$K$173),MAX($K$173,($P$11*LE_Couple+$P$12*LE_Single+IF(No_couples=0,$P$13*LE_Single_Child,$P$13*LE_Couple_Child))*52)) -> 0
B89: Step4 | C89: 1 | E89: 2 | G89: 3 | I89: 4
B90: Taxable income | C90: =AD216-C207 -> 0 | E90: =AD221-E207 -> 0 | G90: =AD226-G207 -> 0 | I90: =AD231-I207 -> 0
B91: Spouse income | C91: =HLOOKUP(C$12,$C89:$I90,2,0) ->  | E91: =HLOOKUP(E$12,$C89:$I90,2,0) ->  | G91: =HLOOKUP(G$12,$C89:$I90,2,0) ->  | I91: =HLOOKUP(I$12,$C89:$I90,2,0) -> 
B92: Total income | C92: =SUMIF(C90:C91,">0") -> 0 | E92: =SUMIF(E90:E91,">0") -> 0 | G92: =SUMIF(G90:G91,">0") -> 0 | I92: =SUMIF(I90:I91,">0") -> 0
B93: Living expense | C93: =HLOOKUP(C92, 'HEM Table'!$C$7:$W$30, MATCH(C33, 'HEM Table'!$B$7:$B$30, 0),TRUE)*52 ->  | E93: =HLOOKUP(E92, 'HEM Table'!$C$7:$W$30, MATCH(E33, 'HEM Table'!$B$7:$B$30, 0),TRUE)*52 ->  | G93: =HLOOKUP(G92, 'HEM Table'!$C$7:$W$30, MATCH(G33, 'HEM Table'!$B$7:$B$30, 0),TRUE)*52 ->  | I93: =HLOOKUP(I92, 'HEM Table'!$C$7:$W$30, MATCH(I33, 'HEM Table'!$B$7:$B$30, 0),TRUE)*52 ->  | K93: =IF(Inc_Tier="Y",MAX(SUMIF(C93:I93,">0"),$K$173),MAX($K$173,($P$11*LE_Couple+$P$12*LE_Single+IF(No_couples=0,$P$13*LE_Single_Child,$P$13*LE_Couple_Child))*52)) -> 0
B94: Step5 | C94: 1 | E94: 2 | G94: 3 | I94: 4
B95: Taxable income | C95: =AE216-C207 -> 0 | E95: =AE221-E207 -> 0 | G95: =AE226-G207 -> 0 | I95: =AE231-I207 -> 0
B96: Spouse income | C96: =HLOOKUP(C$12,$C94:$I95,2,0) ->  | E96: =HLOOKUP(E$12,$C94:$I95,2,0) ->  | G96: =HLOOKUP(G$12,$C94:$I95,2,0) ->  | I96: =HLOOKUP(I$12,$C94:$I95,2,0) -> 
B97: Total income | C97: =SUMIF(C95:C96,">0") -> 0 | E97: =SUMIF(E95:E96,">0") -> 0 | G97: =SUMIF(G95:G96,">0") -> 0 | I97: =SUMIF(I95:I96,">0") -> 0
B98: Living expense | C98: =HLOOKUP(C97, 'HEM Table'!$C$7:$W$30, MATCH(C33, 'HEM Table'!$B$7:$B$30, 0),TRUE)*52 ->  | E98: =HLOOKUP(E97, 'HEM Table'!$C$7:$W$30, MATCH(E33, 'HEM Table'!$B$7:$B$30, 0),TRUE)*52 ->  | G98: =HLOOKUP(G97, 'HEM Table'!$C$7:$W$30, MATCH(G33, 'HEM Table'!$B$7:$B$30, 0),TRUE)*52 ->  | I98: =HLOOKUP(I97, 'HEM Table'!$C$7:$W$30, MATCH(I33, 'HEM Table'!$B$7:$B$30, 0),TRUE)*52 ->  | K98: =IF(Inc_Tier="Y",MAX(SUMIF(C98:I98,">0"),$K$173),MAX($K$173,($P$11*LE_Couple+$P$12*LE_Single+IF(No_couples=0,$P$13*LE_Single_Child,$P$13*LE_Couple_Child))*52)) -> 0
B99: Step6 | C99: 1 | E99: 2 | G99: 3 | I99: 4
B100: Taxable income | C100: =AF216-C207 -> 0 | E100: =AF221-E207 -> 0 | G100: =AF226-G207 -> 0 | I100: =AF231-I207 -> 0
B101: Spouse income | C101: =HLOOKUP(C$12,$C99:$I100,2,0) ->  | E101: =HLOOKUP(E$12,$C99:$I100,2,0) ->  | G101: =HLOOKUP(G$12,$C99:$I100,2,0) ->  | I101: =HLOOKUP(I$12,$C99:$I100,2,0) -> 
B102: Total income | C102: =SUMIF(C100:C101,">0") -> 0 | E102: =SUMIF(E100:E101,">0") -> 0 | G102: =SUMIF(G100:G101,">0") -> 0 | I102: =SUMIF(I100:I101,">0") -> 0
B103: Living expense | C103: =HLOOKUP(C102, 'HEM Table'!$C$7:$W$30, MATCH(C33, 'HEM Table'!$B$7:$B$30, 0),TRUE)*52 ->  | E103: =HLOOKUP(E102, 'HEM Table'!$C$7:$W$30, MATCH(E33, 'HEM Table'!$B$7:$B$30, 0),TRUE)*52 ->  | G103: =HLOOKUP(G102, 'HEM Table'!$C$7:$W$30, MATCH(G33, 'HEM Table'!$B$7:$B$30, 0),TRUE)*52 ->  | I103: =HLOOKUP(I102, 'HEM Table'!$C$7:$W$30, MATCH(I33, 'HEM Table'!$B$7:$B$30, 0),TRUE)*52 ->  | K103: =IF(Inc_Tier="Y",MAX(SUMIF(C103:I103,">0"),$K$173),MAX($K$173,($P$11*LE_Couple+$P$12*LE_Single+IF(No_couples=0,$P$13*LE_Single_Child,$P$13*LE_Couple_Child))*52)) -> 0
B104: Step7 | C104: 1 | E104: 2 | G104: 3 | I104: 4
B105: Taxable income | C105: =AG216-C207 -> 0 | E105: =AG221-E207 -> 0 | G105: =AG226-G207 -> 0 | I105: =AG231-I207 -> 0
B106: Spouse income | C106: =HLOOKUP(C$12,$C104:$I105,2,0) ->  | E106: =HLOOKUP(E$12,$C104:$I105,2,0) ->  | G106: =HLOOKUP(G$12,$C104:$I105,2,0) ->  | I106: =HLOOKUP(I$12,$C104:$I105,2,0) -> 
B107: Total income | C107: =SUMIF(C105:C106,">0") -> 0 | E107: =SUMIF(E105:E106,">0") -> 0 | G107: =SUMIF(G105:G106,">0") -> 0 | I107: =SUMIF(I105:I106,">0") -> 0
B108: Living expense | C108: =HLOOKUP(C107, 'HEM Table'!$C$7:$W$30, MATCH(C33, 'HEM Table'!$B$7:$B$30, 0),TRUE)*52 ->  | E108: =HLOOKUP(E107, 'HEM Table'!$C$7:$W$30, MATCH(E33, 'HEM Table'!$B$7:$B$30, 0),TRUE)*52 ->  | G108: =HLOOKUP(G107, 'HEM Table'!$C$7:$W$30, MATCH(G33, 'HEM Table'!$B$7:$B$30, 0),TRUE)*52 ->  | I108: =HLOOKUP(I107, 'HEM Table'!$C$7:$W$30, MATCH(I33, 'HEM Table'!$B$7:$B$30, 0),TRUE)*52 ->  | K108: =IF(Inc_Tier="Y",MAX(SUMIF(C108:I108,">0"),$K$173),MAX($K$173,($P$11*LE_Couple+$P$12*LE_Single+IF(No_couples=0,$P$13*LE_Single_Child,$P$13*LE_Couple_Child))*52)) -> 0
B111: Gross annual income | C111: Applicant 1 | E111: Applicant 2 | G111: Applicant 3 | I111: Applicant 4 | K111: Total
B113: Base income (PAYG) | K113: =C113+E113+G113+I113 -> 0
B114: Overtime/Bonus/Commission | K114: =(C114+E114+G114+I114)*0.8 -> 0
B115: Foreign(in AUD)/Investment | K115: =(C115+E115+G115+I115)*0.8 -> 0
B116: Other income (taxable) | K116: =C116+E116+G116+I116 -> 0
B117: Non-taxable income | K117: =C117+E117+G117+I117 -> 0
B118: Self employed income | K118: =C118+E118+G118+I118 -> 0
B120: Total income | C120: =C113+(C114*0.8)+(C115*0.8)+C116+C117+C118 -> 0 | E120: =E113+(E114*0.8)+(E115*0.8)+E116+E117+E118 -> 0 | G120: =G113+(G114*0.8)+(G115*0.8)+G116+G117+G118 -> 0 | I120: =I113+(I114*0.8)+(I115*0.8)+I116+I117+I118 -> 0 | K120: =K113+K114+K115+K116+K117+K118 -> 0
B122: Annual rental income received (apportion rental income to each applicant as per % of property ownership)
B123: Security property | K123: =C123+E123+G123+I123 -> 0
B124: Other property | K124: =C124+E124+G124+I124 -> 0
B126: Total annual rental @ 75% | C126: =SUM(C123:C124)*0.75 -> 0 | E126: =SUM(E123:E124)*0.75 -> 0 | G126: =SUM(G123:G124)*0.75 -> 0 | I126: =SUM(I123:I124)*0.75 -> 0 | K126: =SUM(K123:K124)*0.75 -> 0
B128: Tax deductibility - Investment loans (apportion investment loan amounts to each applicant as per % of asset ownership)
B129: This loan investment portion | K129: =C129+E129+G129+I129 -> 0
B130: Other investment loans | K130: =C130+E130+G130+I130 -> 0
B131: (Deductibility on any other investment loan can be used) | K131: =SUM(K129:K130) -> 0
B133: Annual investment property expenses (apportion expenses to each applicant as per % of property ownership)
B134: Security Property | K134: =C134+E134+G134+I134 -> 0
B135: Other Property | K135: =C135+E135+G135+I135 -> 0
K136: =SUM(K134:K135) -> 0
B138: Annual commitments (combined) | D138: (Enter details) | K138: Annual
B140: This loan @ assessment rate | C140: 30 | D140: Interest Only period | K140: =(PMT(AssessRate/12,(C140-G140)*12,Loanamt*-1))*12 -> 0
C142: Limit | E142: Remaining P&I Loan Term (Months) | G142: Interest Rate | I142: Monthly Repayments
B143: Existing Home Loan 1 | K143: =MAX(P292,Q292) -> 0
B145: Existing Home Loan 2 | K145: =MAX(P293,Q293) -> 0
B147: Existing Home Loan 3 | K147: =MAX(P294,Q294) -> 0
B149: Existing Home Loan 4 | K149: =MAX(P295,Q295) -> 0
B151: Personal loan limits | K151: =+MAX(P296,Q296) -> 0
B153: Hire Purchase | K153: =+MAX(P297,Q297) -> 0
B155: Lease/car loan | K155: =+MAX(P298,Q298) -> 0
B157: Other debts | K157: =MAX(P299,Q299) -> 0
B159: Margin/Term/Other loans | K159: =MAX(P300,Q300) -> 0
B161: Credit card total limit | E161: (Serviceability based on 45.6% of credit card limit) | K161: =C161*0.456 -> 0
B162: Credit card (proposed) | K162: =C162*0.456 -> 0
B163: Other (eg rent)
B165: Total annual outgoings | K165: =SUM(K140:K163) -> 0
B167: Monthly living expenses (combined) | K167: Annual
D168: (Include clothing, personal care, groceries, transport, owner occupied rates & utilities and other basic living expenses)
B169: Basic living expenses (p/m) | K169: =C169*12 -> 0
B171: Discretionary living expenses (p/m) | D171: (Include childcare, education, insurance, medical, health, recreation, entertainment, telephone, internet, pay TV and any other expenses, DO NOT INCLUDE INVESTMENT PROPERTY EXPENSES IN THIS SECTION) | K171: =C171*12 -> 0
B173: Total (p/m) | C173: =C169+C171 -> 0 | K173: =C173*12 -> 0
C175: 1 | E175: 2 | G175: 3 | I175: 4
A176: H | B176: Read only | C176: Applicant 1 | E176: Applicant 2 | G176: Applicant 3 | I176: Applicant 4 | K176: Total
A177: I | B177: Gross annual income | C177: =C120 -> 0 | E177: =E120 -> 0 | G177: =G120 -> 0 | I177: =I120 -> 0 | K177: =C177+E177+G177+I177 -> 0
A178: D | B178: Rental (75% used) | C178: =IF(Total_Rental>Total_Income,(C126/Total_Rental)*Total_Income,C126) -> 0 | E178: =IF(Total_Rental>Total_Income,(E126/Total_Rental)*Total_Income,E126) -> 0 | G178: =IF(Total_Rental>Total_Income,(G126/Total_Rental)*Total_Income,G126) -> 0 | I178: =IF(Total_Rental>Total_Income,(I126/Total_Rental)*Total_Income,I126) -> 0 | K178: 0
A179: E | B179: Interest Component (Inv. Loan) | C179: =MIN(0,-VALUE(MIN(_NGB1*1,Loanamt))*IF(Bwr_rate=1,0,Bwr_rate)) -> 0 | E179: =MIN(0,-VALUE(MIN(_NGB2*1,Loanamt-_NGB1))*IF(Bwr_rate=1,0,Bwr_rate)) -> 0 | G179: =MIN(0,-VALUE(MIN(_NGB3*1,Loanamt-_NGB2-_NGB1))*IF(Bwr_rate=1,0,Bwr_rate)) -> 0 | I179: =MIN(0,-VALUE(MIN(_NGB4*1,Loanamt-_NGB3-_NGB2-_NGB1))*IF(Bwr_rate=1,0,Bwr_rate)) -> 0 | K179: 0
B180: Interest Comp other loan | C180: =-NGB_other1*(Bwr_rate) -> 0 | E180: =-NGB_other2*(Bwr_rate) -> 0 | G180: =-NGB_other3*(Bwr_rate) -> 0 | I180: =-NGB_other4*(Bwr_rate) -> 0 | K180: 0
A181: R | B181: Interest component (Inv. loan) | C181: =IF(C179+C180>-(C177+C178),C179+C180,-(C177+C178)) -> 0 | E181: =IF(E179+E180>-(E177+E178),E179+E180,-(E177+E178)) -> 0 | G181: =IF(G179+G180>-(G177+G178),G179+G180,-(G177+G178)) -> 0 | I181: =IF(I179+I180>-(I177+I178),I179+I180,-(I177+I178)) -> 0 | K181: 0
B182: Extra Investment Property Expense | C182: =MAX(0,(GIPE_Other1+GIPE_Security1)-(('Guarantor Serviceability'!RentalInc1+'Guarantor Serviceability'!RentalIncOth1)*0.2)) -> 0 | E182: =MAX(0,(GIPE_Other2+GIPE_Security2)-(('Guarantor Serviceability'!RentalInc2+'Guarantor Serviceability'!RentalIncOth2)*0.2)) -> 0 | G182: =MAX(0,(GIPE_Other3+GIPE_Security3)-(('Guarantor Serviceability'!RentalInc3+'Guarantor Serviceability'!RentalIncOth3)*0.2)) -> 0 | I182: =MAX(0,(GIPE_Other4+GIPE_Security4)-(('Guarantor Serviceability'!RentalInc4+'Guarantor Serviceability'!RentalIncOth4)*0.2)) -> 0 | K182: 0
A183: O | B183: Taxable income | C183: =MAX(0,C177+C178+C179+C180)-C117-C182 -> 0 | E183: =MAX(0,E177+E178+E179+E180)-E117-E182 -> 0 | G183: =MAX(0,G177+G178+G179+G180)-G117-G182 -> 0 | I183: =MAX(0,I177+I178+I179+I180)-I117-I182 -> 0 | K183: 0
A184: W | B184: Applicable tax | C184: =IF(C183<=0,0,References!F29+C183*Medicare) -> 0 | E184: =IF(E183<=0,0,References!G29+E183*Medicare) -> 0 | G184: =IF(G183<=0,0,References!H29+G183*Medicare) -> 0 | I184: =IF(I183<=0,0,References!I29+I183*Medicare) -> 0 | K184: 0
A185: S | B185: Net income after tax | C185: =IF(AND(Inc_Tier="Y",C11=""),0,C183-C184+C117-C181) -> 0 | E185: =IF(AND(Inc_Tier="Y",E11=""),0,E183-E184+E117-E181) -> 0 | G185: =IF(AND(Inc_Tier="Y",G11=""),0,G183-G184+G117-G181) -> 0 | I185: =IF(AND(Inc_Tier="Y",I11=""),0,I183-I184+I117-I181) -> 0 | K185: 0
B187: Code-App status cond. Format | C187: =IF(AND(C177+C178>0,C11=""),"",1) -> 1 | E187: =IF(AND(E177+E178>0,E11=""),"",1) -> 1 | G187: =IF(AND(G177+G178>0,G11=""),"",1) -> 1 | I187: =IF(AND(I177+I178>0,I11=""),"",1) -> 1
B188: Calculated living expenses | K188: =MAX(K34,K173) -> 0
B189: Net available | C189: Please check NOTES and GUIDELINES page to ensure this NSR ratio and surplus is applicable for this type of transaction | K189: =K185-K188 -> 0
B190: Total outgoings | K190: =K165 -> 0
B193: Surplus | C193: =IF(AND(Loanamt>0,Bwr_rate=""),"Please enter borrower rate",IF(AND(Loanamt>0,OR(LE_Basic="",LE_Basic=0,LE_Other="")),"Please enter living expense amounts",IF(AND(Loanamt>0,COUNTA(C11:I11)=0,Inc_Tier="Y"),"Must enter relationship status",IF(AND(ROUND(GSURPLUS,0)>0,ROUND(GSURPLUS,0)<500,GDeclaredTotalLivingExpense<(GBenchmarkHEMValue*1.2)),NSRTest4,IF(NSR<BaseNSR,NSRTest3,NSRTest1))))) -> Passes serviceability test | K193: =K189-K190 -> 0
B195: Serviceability test (NSR) | K195: =IF(AND(Loanamt>0,OR(Bwr_rate="",LE_Basic="",LE_Basic=0,LE_Other="")),"",IF(AND(Inc_Tier="Y",COUNTA(C11:I11)=0),"",IF(ISERROR(K189/K190),"",TRUNC(K189/K190,2)))) ->  | L195: =IF(C193=NSRTest2,NSR+2,IF(C193=NSRTest3,NSR+1,NSR)) -> 
B198: Maximum loan amount | C198: (Based on NSR. For investment loans, maximum tax deductibility split evenly per applicant) | K198: =IF(ISERROR(MAX(MIN(V258,K221),0.0001)),0.0001,MAX(MIN(V258,K221),0.0001)) -> 0.0001
B200: The information contained in this calculator is by way of example only and should not be regarded as a prediction. Interest rates and living expenses contained herein are for information purposes only and are subject to change. The information in this printout does not constitute an offer to lend. If you wish to apply for a loan, then you need to complete the application form available from our staff.
B201: The information contained in this calculator is provided by Macquarie Bank Limited ABN 46 008 583 542 AFSL and Australian Credit Licence 237502 for illustrative purposes only and should not be regarded as a prediction, or as personal advice. Calculations are not forecasts or projections but is a tool that may assist you to make your own projections. The calculator is not intended to be a substitute for professional financial advice. The information in this calculator does not constitute an offer to lend, or imply the product is suitable for clients. Before acting on this general information, your client must consider its appropriateness having regard to their own objectives, financial situation and need and also seek independent financial, legal and taxation advice. No guarantee, warranty, or representation is given or implied as to the reliability or accuracy of the information used to compile each index or each calculation. Macquarie specifically disclaims any liability for any direct, indirect, incidental, consequential, or special damages or for any loss arising out of or in any way connected with the access to, reliance on, or use of this calculator.
A204: H
A205: I
A206: D | B206: Gross annual income | C206: =C177 -> 0 | E206: =E177 -> 0 | G206: =G177 -> 0 | I206: =I177 -> 0
A207: E | B207: Rental income (80% used) | C207: =C178 -> 0 | E207: =E178 -> 0 | G207: =G178 -> 0 | I207: =I178 -> 0
B208: Non-taxable income | C208: =C117 -> 0 | E208: =E117 -> 0 | G208: =G117 -> 0 | I208: =I117 -> 0
A209: R | B209: Tax deductibility - Investment loans
A210: O | B210: This loan amount | C210: =MIN(C129*1,Loanamt) -> 0 | E210: =MIN(_NGB2*1,Loanamt-C210) -> 0 | G210: =MIN(_NGB3*1,Loanamt-E210-C210) -> 0 | I210: =MIN(_NGB4*1,Loanamt-G210-E210-C210) -> 0 | K210: =C210+E210+G210+I210 -> 0
A211: W | B211: Other loan amount | C211: =C130 -> 0 | E211: =E130 -> 0 | G211: =G130 -> 0 | I211: =I130 -> 0 | K211: =C211+E211+G211+I211 -> 0
B212: Extra Investment Property Expense | K212: =C212+E212+G212+I212 -> 
A213: S | B213: Taxable income | C213: =C183 -> 0 | E213: =E183 -> 0 | G213: =G183 -> 0 | I213: =I183 -> 0 | K213: =C213+E213+G213+I213 -> 0
B215: This loan @ assessment rate | E215: =G19 -> 1
B216: This loan pa | K216: =K140 -> 0 | O216: App1 Inc | Q216: =$C$206+$C$207 -> 0 | R216: 0 | S216: 0 | T216: 0 | U216: 0 | V216: 0 | W216: 0 | Y216: App1 Inc | AA216: =$C$206+$C$207 -> 0 | AB216: 0 | AC216: 0 | AD216: 0 | AE216: 0 | AF216: 0 | AG216: 0
B217: Net available | K217: =K189 -> 0 | O217: App1 NGB | Q217: =MIN(0,-IF(OR($V$255<>"Y",$G$15<>"Y"),$C$210*$E$215,P$248*$E$215/$K$35*$C$35)-$C$211*($G$17)) -> 0 | R217: 0 | S217: 0 | T217: 0 | U217: 0 | V217: 0 | W217: 0 | Y217: App1 NGB | AA217: =MIN(0,-IF(OR($V$255<>"Y",$G$15<>"Y"),$C$210*$E$215,Z$248*$E$215/$K$35*$C$35)-$C$211*($G$17)) -> 0 | AB217: 0 | AC217: 0 | AD217: 0 | AE217: 0 | AF217: 0 | AG217: 0
B218: Total annual outgoings | K218: =K190 -> 0 | O218: App1 Tax Inc | Q218: =MAX(0,Q217+Q216-$C$208) -> 0 | R218: 0 | S218: 0 | T218: 0 | U218: 0 | V218: 0 | W218: 0 | Y218: App1 Tax Inc | AA218: =MAX(0,AA217+AA216-$C$208) -> 0 | AB218: 0 | AC218: 0 | AD218: 0 | AE218: 0 | AF218: 0 | AG218: 0
O219: App1 Tax | Q219: =MAX(MIN(Q218,$P$255),0)*$Q$255+MAX(MIN(Q218,$P$256)-$P$255,0)*$Q$256+MAX(MIN(Q218,$P$257)-$P$256,0)*$Q$257+MAX(MIN(Q218,$P$258)-$P$257,0)*$Q$258+MAX(Q218-$P$258,0)*$Q$259+Q218*$Q$252 -> 0 | R219: 0 | S219: 0 | T219: 0 | U219: 0 | V219: 0 | W219: 0 | Y219: App1 Tax | AA219: =MAX(MIN(AA218,$P$255),0)*$Q$255+MAX(MIN(AA218,$P$256)-$P$255,0)*$Q$256+MAX(MIN(AA218,$P$257)-$P$256,0)*$Q$257+MAX(MIN(AA218,$P$258)-$P$257,0)*$Q$258+MAX(AA218-$P$258,0)*$Q$259+AA218*$Q$252 -> 0 | AB219: 0 | AC219: 0 | AD219: 0 | AE219: 0 | AF219: 0 | AG219: 0
O220: App1 Net Inc | Q220: =Q216-Q219 -> 0 | R220: 0 | S220: 0 | T220: 0 | U220: 0 | V220: 0 | W220: 0 | Y220: App1 Net Inc | AA220: =AA216-AA219 -> 0 | AB220: 0 | AC220: 0 | AD220: 0 | AE220: 0 | AF220: 0 | AG220: 0
B221: Max loan | K221: 2000000 | O221: App2 Tax Inc | Q221: =$E$206+$E$207 -> 0 | R221: 0 | S221: 0 | T221: 0 | U221: 0 | V221: 0 | W221: 0 | Y221: App2 Tax Inc | AA221: =$E$206+$E$207 -> 0 | AB221: 0 | AC221: 0 | AD221: 0 | AE221: 0 | AF221: 0 | AG221: 0
O222: App2 NGB | Q222: =MIN(0,-IF(OR($V$255<>"Y",$G$15<>"Y"),$E$210*$E$215,P$248*$E$215/$K$35*$E$35)-$E$211*($G$17)) -> 0 | R222: 0 | S222: 0 | T222: 0 | U222: 0 | V222: 0 | W222: 0 | Y222: App2 NGB | AA222: =MIN(0,-IF(OR($V$255<>"Y",$G$15<>"Y"),$E$210*$E$215,Z$248*$E$215/$K$35*$E$35)-$E$211*($G$17)) -> 0 | AB222: 0 | AC222: 0 | AD222: 0 | AE222: 0 | AF222: 0 | AG222: 0
O223: App2 Tax Inc | Q223: =MAX(0,Q222+Q221-$E$208) -> 0 | R223: 0 | S223: 0 | T223: 0 | U223: 0 | V223: 0 | W223: 0 | Y223: App2 Tax Inc | AA223: =MAX(0,AA222+AA221-$E$208) -> 0 | AB223: 0 | AC223: 0 | AD223: 0 | AE223: 0 | AF223: 0 | AG223: 0
O224: App2 Tax | Q224: =MAX(MIN(Q223,$P$255),0)*$Q$255+MAX(MIN(Q223,$P$256)-$P$255,0)*$Q$256+MAX(MIN(Q223,$P$257)-$P$256,0)*$Q$257+MAX(MIN(Q223,$P$258)-$P$257,0)*$Q$258+MAX(Q223-$P$258,0)*$Q$259+Q223*$Q$252 -> 0 | R224: 0 | S224: 0 | T224: 0 | U224: 0 | V224: 0 | W224: 0 | Y224: App2 Tax | AA224: =MAX(MIN(AA223,$P$255),0)*$Q$255+MAX(MIN(AA223,$P$256)-$P$255,0)*$Q$256+MAX(MIN(AA223,$P$257)-$P$256,0)*$Q$257+MAX(MIN(AA223,$P$258)-$P$257,0)*$Q$258+MAX(AA223-$P$258,0)*$Q$259+AA223*$Q$252 -> 0 | AB224: 0 | AC224: 0 | AD224: 0 | AE224: 0 | AF224: 0 | AG224: 0
O225: App2 Net Inc | Q225: =Q221-Q224 -> 0 | R225: 0 | S225: 0 | T225: 0 | U225: 0 | V225: 0 | W225: 0 | Y225: App2 Net Inc | AA225: =AA221-AA224 -> 0 | AB225: 0 | AC225: 0 | AD225: 0 | AE225: 0 | AF225: 0 | AG225: 0
O226: App3 Tax Inc | Q226: =$G$206+$G$207 -> 0 | R226: 0 | S226: 0 | T226: 0 | U226: 0 | V226: 0 | W226: 0 | Y226: App3 Tax Inc | AA226: =$G$206+$G$207 -> 0 | AB226: 0 | AC226: 0 | AD226: 0 | AE226: 0 | AF226: 0 | AG226: 0
O227: App3 NGB | Q227: =MIN(0,-IF(OR($V$255<>"Y",$G$15<>"Y"),$G$210*$E$215,P$248*$E$215/$K$35*$G$35)-$G$211*($G$17)) -> 0 | R227: 0 | S227: 0 | T227: 0 | U227: 0 | V227: 0 | W227: 0 | Y227: App3 NGB | AA227: =MIN(0,-IF(OR($V$255<>"Y",$G$15<>"Y"),$G$210*$E$215,Z$248*$E$215/$K$35*$G$35)-$G$211*($G$17)) -> 0 | AB227: 0 | AC227: 0 | AD227: 0 | AE227: 0 | AF227: 0 | AG227: 0
O228: App3 Tax Inc | Q228: =MAX(0,Q227+Q226-$G$208) -> 0 | R228: 0 | S228: 0 | T228: 0 | U228: 0 | V228: 0 | W228: 0 | Y228: App3 Tax Inc | AA228: =MAX(0,AA227+AA226-$G$208) -> 0 | AB228: 0 | AC228: 0 | AD228: 0 | AE228: 0 | AF228: 0 | AG228: 0
O229: App3 Tax | Q229: =MAX(MIN(Q228,$P$255),0)*$Q$255+MAX(MIN(Q228,$P$256)-$P$255,0)*$Q$256+MAX(MIN(Q228,$P$257)-$P$256,0)*$Q$257+MAX(MIN(Q228,$P$258)-$P$257,0)*$Q$258+MAX(Q228-$P$258,0)*$Q$259+Q228*$Q$252 -> 0 | R229: 0 | S229: 0 | T229: 0 | U229: 0 | V229: 0 | W229: 0 | Y229: App3 Tax | AA229: =MAX(MIN(AA228,$P$255),0)*$Q$255+MAX(MIN(AA228,$P$256)-$P$255,0)*$Q$256+MAX(MIN(AA228,$P$257)-$P$256,0)*$Q$257+MAX(MIN(AA228,$P$258)-$P$257,0)*$Q$258+MAX(AA228-$P$258,0)*$Q$259+AA228*$Q$252 -> 0 | AB229: 0 | AC229: 0 | AD229: 0 | AE229: 0 | AF229: 0 | AG229: 0
O230: App3 Net Inc | Q230: =Q226-Q229 -> 0 | R230: 0 | S230: 0 | T230: 0 | U230: 0 | V230: 0 | W230: 0 | Y230: App3 Net Inc | AA230: =AA226-AA229 -> 0 | AB230: 0 | AC230: 0 | AD230: 0 | AE230: 0 | AF230: 0 | AG230: 0
O231: App4 Tax Inc | Q231: =$I$206+$I$207 -> 0 | R231: 0 | S231: 0 | T231: 0 | U231: 0 | V231: 0 | W231: 0 | Y231: App4 Tax Inc | AA231: =$I$206+$I$207 -> 0 | AB231: 0 | AC231: 0 | AD231: 0 | AE231: 0 | AF231: 0 | AG231: 0
O232: App4 NGB | Q232: =MIN(0,-IF(OR($V$255<>"Y",$G$15<>"Y"),$I$210*$E$215,P$248*$E$215/$K$35*$I$35)-$I$211*($G$17)) -> 0 | R232: 0 | S232: 0 | T232: 0 | U232: 0 | V232: 0 | W232: 0 | Y232: App4 NGB | AA232: =MIN(0,-IF(OR($V$255<>"Y",$G$15<>"Y"),$I$210*$E$215,Z$248*$E$215/$K$35*$I$35)-$I$211*($G$17)) -> 0 | AB232: 0 | AC232: 0 | AD232: 0 | AE232: 0 | AF232: 0 | AG232: 0
O233: App4 Tax Inc | Q233: =MAX(0,Q232+Q231-$I$208) -> 0 | R233: 0 | S233: 0 | T233: 0 | U233: 0 | V233: 0 | W233: 0 | Y233: App4 Tax Inc | AA233: =MAX(0,AA232+AA231-$I$208) -> 0 | AB233: 0 | AC233: 0 | AD233: 0 | AE233: 0 | AF233: 0 | AG233: 0
O234: App4 Tax | Q234: =MAX(MIN(Q233,$P$255),0)*$Q$255+MAX(MIN(Q233,$P$256)-$P$255,0)*$Q$256+MAX(MIN(Q233,$P$257)-$P$256,0)*$Q$257+MAX(MIN(Q233,$P$258)-$P$257,0)*$Q$258+MAX(Q233-$P$258,0)*$Q$259+Q233*$Q$252 -> 0 | R234: 0 | S234: 0 | T234: 0 | U234: 0 | V234: 0 | W234: 0 | Y234: App4 Tax | AA234: =MAX(MIN(AA233,$P$255),0)*$Q$255+MAX(MIN(AA233,$P$256)-$P$255,0)*$Q$256+MAX(MIN(AA233,$P$257)-$P$256,0)*$Q$257+MAX(MIN(AA233,$P$258)-$P$257,0)*$Q$258+MAX(AA233-$P$258,0)*$Q$259+AA233*$Q$252 -> 0 | AB234: 0 | AC234: 0 | AD234: 0 | AE234: 0 | AF234: 0 | AG234: 0
O235: App4 Net Inc | Q235: =Q231-Q234 -> 0 | R235: 0 | S235: 0 | T235: 0 | U235: 0 | V235: 0 | W235: 0 | Y235: App4 Net Inc | AA235: =AA231-AA234 -> 0 | AB235: 0 | AC235: 0 | AD235: 0 | AE235: 0 | AF235: 0 | AG235: 0
O238: This loan pa | Q238: =(PMT($E$215/12,$C$140*12,P248*-1))*12 -> 0 | R238: 0 | S238: 0 | T238: 0 | U238: 0 | V238: 0 | W238: 0 | Y238: This loan pa | AA238: =(PMT($E$215/12,$C$140*12,Z248*-1))*12 -> 0 | AB238: 0 | AC238: 0 | AD238: 0 | AE238: 0 | AF238: 0 | AG238: 0
O239: Net Avail | Q239: =Q220+Q225+Q230+Q235-K42 -> 0 | R239: =R220+R225+R230+R235-K47 -> 0 | S239: =S220+S225+S230+S235-K52 -> 0 | T239: =T220+T225+T230+T235-K57 -> 0 | U239: =U220+U225+U230+U235-K62 -> 0 | V239: =V220+V225+V230+V235-K67 -> 0 | W239: =W220+W225+W230+W235-K72 -> 0 | Y239: Net Avail | AA239: =AA220+AA225+AA230+AA235-K78 -> 0 | AB239: =AB220+AB225+AB230+AB235-K83 -> 0 | AC239: =AC220+AC225+AC230+AC235-K88 -> 0 | AD239: =AD220+AD225+AD230+AD235-K93 -> 0 | AE239: =AE220+AE225+AE230+AE235-K98 -> 0 | AF239: =AF220+AF225+AF230+AF235-K103 -> 0 | AG239: =AG220+AG225+AG230+AG235-K108 -> 0
O240: Total Out | Q240: =SUM($K$143,$K$145,$K$161,$K$162,$K$163)+Q238 -> 0 | R240: 0 | S240: 0 | T240: 0 | U240: 0 | V240: 0 | W240: 0 | Y240: Total Out | AA240: =SUM($K$143,$K$145,$K$161,$K$162,$K$163)+AA238 -> 0 | AB240: 0 | AC240: 0 | AD240: 0 | AE240: 0 | AF240: 0 | AG240: 0
O243: NSR | Q243: =Q239/Q240 ->  | Y243: NSR | AA243: =AA239/AA240 -> 
O248: Max loan | P248: =-PV($E$215/12,360,($K$217/$O$250-$K$218+$K$216)/12,,0) -> 0 | Q248: =-PV($E$215/12,360,(Q239/$O$250-Q240+Q238)/12,,0) -> 0 | R248: 0 | S248: 0 | T248: 0 | U248: 0 | V248: 0 | W248: =INT(-PV($E$215/12,360,(W239/$O$250-W240+W238)/12,,0)/1000)*1000 -> 0 | Y248: Max loan | Z248: =-PV($E$215/12,360,($K$217/$Y$250-$K$218+$K$216)/12,,0) -> 0 | AA248: =-PV($E$215/12,360,($AA$239/$Y$250-$AA$240+$AA$238)/12,,0) -> 0 | AB248: 0 | AC248: 0 | AD248: 0 | AE248: 0 | AF248: 0 | AG248: =INT(-PV($E$215/12,360,(AG239/$Y$250-AG240+AG238)/12,,0)/1000)*1000 -> 0
O249: ="NSR "&O250 -> NSR 1 | Y249: ="NSR "&Y250 -> NSR 1.1
O250: 1 | Y250: 1.1
O252: Medicare levy | Q252: 0.015 | R252: Higher NSR where loan > | U252: 750000 | V252: Y | W252: (Y/N)
... 17 more rows

Sheet Self Employed Calculator (hidden)
C4: Self employed worksheet | D4: =Version -> Version: (15 Feb 2024)
C5: Self employed - Business 1
D7: Current year | F7: Previous year | H7: Comments
C8: Tax year ending | H8: =IF(OR(TaxYearPrev=0,TaxYearCur=0),IF(D24<F24,"Please explain lower current year net income:",IF(D24>F24*1.2,"Please explain > 20% increase in net income:","")),IF(ISERROR(VALUE(D8)<>VALUE(F8)+1),IF(D24<F24,"Please explain lower current year net income:",IF(D24>F24*1.2,"Please explain > 20% increase in net income:","")),IF(VALUE(D8)<>VALUE(F8)+1,"Error - Tax years not in consecutive order",IF(D24<F24,"Please explain lower current year net income:",IF(D24>F24*1.2,"Please explain > 20% increase in net income:",""))))) -> 
C10: Profit/loss (before tax)
C11: minus Non-recurring income
C13: Total profit/loss | D13: =ProfitCur-NonRecIncCur -> 0 | F13: =ProfitPrev-NonRecIncPrev -> 0
C14: Allowable add-backs
C15: Director salary/fees (before tax)
C16: Depreciation *
C17: Interest expenses (loans being refinanced)
C18: Superannuation (in excess of compulsory)
C19: Non-recurring expenses (please specify)
C20: Other (please specify)
C22: Total add-backs | D22: =D15+D17+D18+D19+D20+MIN(VALUE(D16),MAX(D13*20%,0)) -> 0 | F22: =F15+F17+F18+F19+F20+MIN(VALUE(F16),MAX(F13*20%,0)) -> 0
C24: Net available income | D24: =D13+D22 -> 0 | F24: =F13+F22 -> 0 | M24: 2
C26: Average net available income | F26: =(F24+D24)/2 -> 0 | H26: =IF(AND(SE1netAv>0,SE1netAv>SE1netAvAdj,SE1Test=1),"This amount can only be considered on an exception basis","") -> 
C28: Income for serviceability | F28: =IF(D24<F24,MIN(D24,F26),MIN(F26,F24+ABS(F24*0.2))) -> 0 | H28: (this amount auto populates serviceability worksheet)
C29: (uses lower current year or max 20% increase rule)
D31: Applicant 1 | F31: Applicant 2 | H31: Applicant 3 | J31: Applicant 4 | K31: Total allocation
C32: Income allocation to applicants (%) | K32: =IF(ROUND(D32+F32+H32+J32,3)>100%,"Error - Total >100%",TEXT(ROUND(D32+F32+H32+J32,3),"0.00%")) -> 0.00% | L32: =IF(ROUND(D32+F32+H32+J32,3)>100%,K32,"") ->  | M32: =ROUND(MAX(1-Bus1_App2Distr-Bus1_App3Distr-Bus1_App4Distr,0),8) -> 1 | N32: =ROUND(MAX(1-Bus1_App1Distr-Bus1_App3Distr-Bus1_App4Distr,0),8) -> 1 | O32: =ROUND(MAX(1-Bus1_App2Distr-Bus1_App1Distr-Bus1_App4Distr,0),8) -> 1 | P32: =ROUND(1-Bus1_App2Distr-Bus1_App3Distr-Bus1_App1Distr,8) -> 1
C34: Income distribution for business 1 | D34: =IF(SE1Test=1,Bus1_App1Distr*SE1netAv,IF(SE1Test=2,Bus1_App1Distr*SE1netAvAdj,0)) -> 0 | F34: =IF(SE1Test=1,Bus1_App2Distr*SE1netAv,IF(SE1Test=2,Bus1_App2Distr*SE1netAvAdj,0)) -> 0 | H34: =IF(SE1Test=1,Bus1_App3Distr*SE1netAv,IF(SE1Test=2,Bus1_App3Distr*SE1netAvAdj,0)) -> 0 | J34: =IF(SE1Test=1,Bus1_App4Distr*SE1netAv,IF(SE1Test=2,Bus1_App4Distr*SE1netAvAdj,0)) -> 0
B36: * Depreciation add-back automatically limited to a maximum 20% of profit in the total add-backs.
C37: Self employed - Business 2
D39: Current year | F39: Previous year | H39: Comments
C40: Tax year ending | H40: =IF(OR(TaxYearPrev2=0,TaxYearCur2=0),IF(D56<F56,"Please explain lower current year net income:",IF(D56>F56*1.2,"Please explain > 20% increase in net income:","")),IF(ISERROR(VALUE(D40)<>VALUE(F40)+1),IF(D56<F56,"Please explain lower current year net income:",IF(D56>F56*1.2,"Please explain > 20% increase in net income:","")),IF(VALUE(D40)<>VALUE(F40)+1,"Error - Tax years not in consecutive order",IF(D56<F56,"Please explain lower current year net income:",IF(D56>F56*1.2,"Please explain > 20% increase in net income:",""))))) -> 
C42: Profit/loss (before tax)
C43: minus Non-recurring income
C45: Total profit/loss | D45: =ProfitCur2-NonRecIncCur2 -> 0 | F45: =ProfitPrev2-NonRecIncPrev2 -> 0
C46: Allowable add-backs
C47: Director salary/fees (before tax)
C48: Depreciation *
C49: Interest expenses (loans being refinanced)
C50: Superannuation (in excess of compulsory)
C51: Non-recurring expenses (please specify)
C52: Other (please specify)
C54: Total add-backs | D54: =D47+D49+D50+D51+D52+MIN(VALUE(D48),MAX(D45*20%,0)) -> 0 | F54: =F47+F49+F50+F51+F52+MIN(VALUE(F48),MAX(F45*20%,0)) -> 0
C56: Net available income | D56: =D45+D54 -> 0 | F56: =F45+F54 -> 0 | M56: 2
C58: Average net available income | F58: =(F56+D56)/2 -> 0 | H58: =IF(AND(SE2netAv>0,SE2netAv>SE2netAvAdj,SE2Test=1),"This amount can only be considered on an exception basis","") -> 
C60: Income for serviceability | F60: =IF(D56<F56,MIN(D56,F58),MIN(F58,F56+ABS(F56*0.2))) -> 0 | H60: (this amount auto populates serviceability worksheet)
C61: (uses lower current year or max 20% increase rule)
D63: Applicant 1 | F63: Applicant 2 | H63: Applicant 3 | J63: Applicant 4 | K63: Total allocation
C64: Income allocation to applicants (%) | K64: =IF(ROUND(D64+F64+H64+J64,3)>100%,"Error - Total >100%",TEXT(ROUND(D64+F64+H64+J64,3),"0.00%")) -> 0.00% | L64: =IF(ROUND(D64+F64+H64+J64,3)>100%,K64,"") ->  | M64: =ROUND(MAX(1-Bus2_App2Distr-Bus2_App3Distr-Bus2_App4Distr,0),8) -> 1 | N64: =ROUND(MAX(1-Bus2_App1Distr-Bus2_App3Distr-Bus2_App4Distr,0),8) -> 1 | O64: =ROUND(MAX(1-Bus2_App2Distr-Bus2_App1Distr-Bus2_App4Distr,0),8) -> 1 | P64: =ROUND(MAX(1-Bus2_App2Distr-Bus2_App3Distr-Bus2_App1Distr,0),8) -> 1
C66: Income distribution for business 2 | D66: =IF(SE2Test=1,Bus2_App1Distr*SE2netAv,IF(SE2Test=2,Bus2_App1Distr*SE2netAvAdj,0)) -> 0 | F66: =IF(SE2Test=1,Bus2_App2Distr*SE2netAv,IF(SE2Test=2,Bus2_App2Distr*SE2netAvAdj,0)) -> 0 | H66: =IF(SE2Test=1,Bus2_App3Distr*SE2netAv,IF(SE2Test=2,Bus2_App3Distr*SE2netAvAdj,0)) -> 0 | J66: =IF(SE2Test=1,Bus2_App4Distr*SE2netAv,IF(SE2Test=2,Bus2_App4Distr*SE2netAvAdj,0)) -> 0
B68: * Depreciation add-back automatically limited to a maximum 20% of profit in the total add-backs.
B69: The information contained in this calculator is by way of example only and should not be regarded as a prediction. The information in this printout does not constitute
B70: an offer to lend. If you wish to apply for a loan, then you need to complete the application form available from our staff.
B71: Macquarie Securitisation Limited is not an authorised deposit-taking institution for the purposes of the Banking Act (Cth) 1959, and Macquarie
B72: Securitisation Limited’s obligations do not represent deposits or other liabilities of Macquarie Bank Limited ABN 46 008 583 542. Macquarie Bank
B73: Limited does not guarantee or otherwise provide assurance in respect of the obligations of Macquarie Securitisation Limited.

Sheet EIV Income Calculator (hidden)
B2: Macquarie Bank
B4: Expanded Income Verification (EIV) - Self employed income calculator (using BAS)
B5: (Please complete pale yellow highlighted fields) | H5: =Version -> Version: (15 Feb 2024)
B6: Step 1. Input BAS turnover for last 4 consecutive quarters (minimum 12 months)
B8: Last 12 months BAS turnover | C8: Quarter 1 | D8: 0
C9: Quarter 2 | D9: 0
C10: Quarter 3 | D10: 0
C11: Quarter 4 | D11: 0 | F11: Most recent BAS (to be no older than 3 months)
B13: Total gross turnover | D13: =SUM(D8:D11) -> 0
B15: Step 2. Input Income and expenses from recent tax return to calculate expense ratio
C17: Tax year ending | D17: 2010 | F17: (Financial year end to be no older than 2 year and 9 months)
B19: Gross income | D19: 0
B21: Total expenses/costs | D21: 0 | F21: (Including staff, director salary/fees)
B24: Net profit before tax | D24: =D19-D21 -> 0
B26: Non-recurring income | D26: 0 | F26: Please specify
B28: Total profit/loss | D28: =D24-D26 -> 0
B30: Allowable add-backs
B31: Depreciation | D31: 0 | F31: (Max 20% of net available income used in calculation) | O31: Depreciation used | P31: =MIN((D28+SUM(D32:D34,D36))*20%,MIN(Addback_Depr)) -> 0
B32: Directors salary/fees (before tax) | D32: 0 | F32: (Include directors remuneration as per expenses)
B33: Directors superannuation | D33: 0 | F33: (In excess of compulsory contribution)
B34: Interest expenses | D34: 0 | F34: (For existing loans being refinanced)
B36: Non-recurring expenses | D36: 0 | F36: Please specify
F37: (Must be supported by an accountants letter)
B38: Total add-backs | D38: =MAX(MIN(SUM(D32:D36)+MIN((D28+SUM(D32:D34,D36))*20%,MIN(Addback_Depr)),VALUE(D21)),0) -> 0
B40: Net available income | D40: =D28+D38 -> 0
B42: Step 3. Calculate income to be used in serviceability assessment
B44: Expense ratio | D44: =IF(MIN(Gross_Profit)=0,0,MAX((D21-D38)/(D19-D26),0)) -> 0
B45: Calculated expenses (using expense ratio) | D45: =IF(D44="",0,MAX(D13*(D44),(D21-D38)*1.03)) -> 0 | F45: ="(Minimum is "&IF(OR(D17=0,D17=""),"previous year",D17)&" expenses + 3% CPI)" -> (Minimum is 2010 expenses + 3% CPI)
B46: Borrower income | D46: =IF(D44="",0,MAX(D13-D45,0)) -> 0
B48: Maximum allowable income | D48: =MAX(MIN(D40*1.2,D46),0) -> 0 | F48: Use this figure in the serviceability calculator
B49: (Maximum 20% increase on previous year)
B50: Other than Macquarie Bank Limited ABN 46 008 583 542 (also referred to as Macquarie Bank), any Macquarie Group entity noted in this document is not an
B51: authorised deposit-taking institution for the purposes of the Banking Act (Cth) 1959. That entity’s obligations do not represent deposits or other liabilities of
B52: Macquarie Bank Limited and Macquarie Bank Limited does not guarantee or otherwise provide assurance in respect of the obligations of that entity.

Sheet Notes and Guidelines
C3: LOAN SERVICEABILITY WORKSHEET - NOTES and GUIDELINES
C5: User notes
C8: • For construction accounts/splits, a minimum 2 year interest only period is required.
C9: • Complete all highlighted cells that apply to the applicant(s)
C10: • Non highlighted cells will populate automatically
C11: • Enter the verified amount of anticipated or existing rental income from ALL sources (including self-employed) for each applicant per their
C12: percentage ownership split for security and other investment property(s) into the Annual rental income received field(s)
C13: • 45.6% p.a of credit card limits will be used in assessment. Insert the full amount of combined limits (existing) and proposed credit
C14: card limits (for loan packages) and the spreadsheet will calculate automatically
C15: • Tax deductibility on all investment loans may be considered in assessment. Enter the investment portion of this loan amount
C16: and any other investment loan into the tax deductible section for each applicant (split by asset ownership)
C17: • Applicants who reside with family or friends rent free or at an unusually low cost, $650 per month notional rent is to be included as an
C18: expense in for serviceability.
C20: Maximum loan amount / LVR
C23: Maximum loan | D23: 10000000
C25: Maximum LVR | D25: Property purchase | F25: 0.95 | G25: (including LMI/LDF capitalisation where applicable)
D27: Refinance | F27: 0.9 | G27: (including LMI/LDF capitalisation where applicable)
D29: Construction | F29: 0.8
C31: Note: Other LVR restrictions may apply depending on loan purpose, LVR, security location, security type, valuation risk assessment etc.
C32: Please refer to policy for further details
C34: Serviceability Guidelines
C37: Serviceability Test | D37: The NSR must be equal to at least | F37: 1 | G37: times.
D39: Where the final LVR is greater than 90% (including LMI premium capitalisation) | J39: 1.2 | K39: times is required.
D41: Note: Where the NSR is less than | F41: 1.05 | G41: the loan approval is considered based on the overall strengths
D42: and merits of the application. Please refer to your BDM
D44: Minimum NSR is 1.10 where the family guarantee feature is used, for construction loans or where the
D45: loan amount is greater than $2,000,000.
C47: Self Employed Worksheet
C50: • Click on | F50: in the serviceability worksheet to access the self employed worksheet
C51: • To go back to the serviceability worksheet from the self employed worksheet click on
C52: • The worksheet is to assist with calculating income for self employed individuals (including company directors)
C53: • Enter all income details, expenses and allowable add backs
C54: • Any non-recurring (one off ) expenses will require an accountants letter to justify
C55: • Please add notes where required, including for one off expenses, where income has reduced or increased (by more than 20%)
C56: • The income figure for serviceability will be calculated by using the average of 2 years or 20% max increase on the previous year
C57: (where current year is lower that figure will be used). The calculated figure will be auto-populated to the serviceability worksheet
C58: • Any income figure (outside this rule), required for serviceability will be considered only on an exception basis.
C60: Expanded income verification (EIV) feature
C62: • For self employed applicants wanting to use business activity statements (BAS) in lieu of tax returns for income verification
C63: • Click on | F63: in the serviceability worksheet to access the EIV income calculator
C64: • Follow the instructions on the page to calculate income for serviceability using recent 12 months BAS and previous tax return
C65: • Please refer to the lending policy document for full EIV parameters and documentation requirements.
C67: Family Guarantee feature
C69: • Select family guarantee in the product drop down box (the family guarantee calculator and guarantor serviceability worksheets
C70: will then become available)
C71: • Complete the pledge calculator. The borrower(s) and guarantor(s) loan amount and LVR (including allowance for pledge) will populate
C72: to the respective serviceability worksheets
C73: • Complete the borrower and guarantor serviceability worksheets (including loans to be refinanced on the guarantor's property)

Sheet Pledge Calculator (hidden)
N2: 2020-01-01
B3: FAMILY GUARANTEE - PLEDGE CALCULATOR
H4: =Version -> Version: (15 Feb 2024)
B5: PLEASE COMPLETE ALL HIGHLIGHTED (PALE GREY) FIELDS
B6: Borrower details
B8: Borrower name/s | H8: Relationship to guarantor
B10: Loan amount | D10: Purchase price | I10: Valuation amount
B12: Security address
B14: Guarantor details
B16: Guarantor name/s | H16: Relationship to borrower
B18: Refinance loan amount | D18: (MBMS to hold 1st RM) | H18: Guarantor security value
B20: Security address
B22: Pledge calculation
B24: Borrower LVR | C24: =IF(AND(G10=0,K10=0),"",C10/IF(K10=0,G10,IF(G10=0,K10,MIN(G10,K10)))) ->  | D24: (Max 110%) | F24: Guarantor pledge LVR | J24: =IF(AND(C28>0,K18=0),"",IF(C31="","",C31/K18)) ->  | K24: (Max 50%)
B25: (without pledge)
B28: Proposed borrower LVR | C28: 0.8 | D28: (Max 80%) | F28: Overall guarantor LVR | J28: =IF(OR(C31="",J24=""),"",(C18+C31)/K18) ->  | K28: (Max 70%)
B29: (with pledge) | D29: =IF(BwrLVR_Pledge>80%," LMI Payable","") ->  | F29: (including refinanced loan)
B31: Required pledge amount | C31: =IF(OR(AND(G10=0,K10=0),Gtr_SecValue=0,BwrLVR_Pledge=0,Loan_amount=0),"",ROUNDUP(C10/C28-IF(K10=0,G10,IF(G10=0,K10,MIN(G10,K10))),0)) -> 
E32: =IF(OR(AND(G10=0,K10=0),BwrLVR_Pledge=0,Loan_amount=0),"",VLOOKUP(TRUE,J37:K44,2,0)) -> 
B34: Loan/LVR Parameters | C34: =IF(OR(AND(G10=0,K10=0),Gtr_SecValue=0,BwrLVR_Pledge=0,Loan_amount=0),"",IF(OR(E32=" ",E32=0),"Pass","Fail")) -> 
B36: Rules matrix | J36: Result | K36: Error messages
B37: BwrLVR_NoPledge | C37: <= | D37: 0 | J37: =INDIRECT(B37)<=D37 -> FALSE | K37: Family guarantee not required
B38: BwrLVR_NoPledge | C38: > | D38: 1.1 | J38: =INDIRECT(B38)>D38 -> TRUE | K38: ="Max borrower LVR (without pledge) is "&TEXT(D38,"0%") -> Max borrower LVR (without pledge) is 110%
B39: BwrLVR_Pledge | C39: > | D39: 0 | E39: Gtr_SecValue | H39: = | I39: 0 | J39: =AND(INDIRECT(B39)>D39,INDIRECT(E39)=I39) -> TRUE | K39: Please enter guarantor security value
B40: BwrLVR_Pledge | C40: > | D40: 0.85 | J40: =INDIRECT(B40)>D40 -> FALSE | K40: ="Max borrower LVR (with pledge) is "&TEXT(D40,"0%") -> Max borrower LVR (with pledge) is 85%
B41: Gtr_PledgeLVR | C41: > | D41: 0.5 | J41: =INDIRECT(B41)>D41 -> TRUE | K41: ="Max guarantor pleadge LVR is "&TEXT(D41,"0%") -> Max guarantor pleadge LVR is 50%
B42: Total_GtrLVR | C42: > | D42: 0.7 | J42: =INDIRECT(B42)>D42 -> TRUE | K42: ="Max overall guarantor LVR is "&TEXT(D42,"0%") -> Max overall guarantor LVR is 70%
B43: BwrLVR_Pledge | C43: < | D43: MinBwrLVR | J43: =INDIRECT(B43)<INDIRECT(D43) -> TRUE | K43: ="Min borrower LVR based on available pledge amount is "&TEXT(ROUNDUP(C46,4),"0.00%") -> 
J44: TRUE
B46: Min borrower LVR | C46: =IF(C24="","",ROUNDUP(C10/(IF(K10=0,G10,IF(G10=0,K10,MIN(G10,K10)))+J46),4)) ->  | D46: (Max 85%) | I46: Max available pledge amount | J46: =MAX(MIN(K18*50%,K18*70%-C18),0) -> 0
B47: (based on availabe pledge)
G49: Required pledge amount | J49: =ROUNDUP(IF(AND(G10=0,K10=0),"",C10/C28-IF(K10=0,G10,IF(G10=0,K10,MIN(G10,K10)))),0) -> 

Sheet References (hidden)
B1: References | Z1: postcode | AA1: state | AB1: Location cat | AC1: Large loan_MedV band_Cat1 | AD1: State/Location Cat | AE1: 12 mth Median Value* | AF1: Restricted List | AG1: High Density | AI1: 12 mth Median Value bands
F2: Product dropdown list | H2: Calcuator type: | Z2: 800 | AA2: NT | AB2: 1 | AC2: >=450-750K | AD2: NT Cat 1 | AE2: 610839 | AG2: Yes | AI2: 0
F3: [Please Select] | K3: Applicant couple matching matrix (currently not used - hidden in servicing worksheet - required to be activated where living expense tiering based on household income is used ) | Z3: 801 | AA3: NT | AB3: 4 | AD3: NT Cat 4 | AI3: 0.01 | AJ3: <300K
B4: NSR test responses | F4: Standard | H4: Cell link | I4: 2 | O4: List 1 | R4: List 2 | U4: List 3 | X4: List 4 | Z4: 804 | AA4: NT | AB4: 1 | AD4: NT Cat 1 | AI4: 300000.01 | AJ4: >=300-450K
B5: Passes serviceability test | F5: Construction | H5: List: | I5: Internal | K5: Applicant | L5: 1 | O5: N/A | P5: ='Serviceability Worksheet'!C13 -> 0 | Q5: =IF('Serviceability Worksheet'!$E11<>"Couple","",IF(OR(P7=2,P8=2,'Serviceability Worksheet'!$C13=$L7,'Serviceability Worksheet'!$C13=$L8,ISERROR(MATCH($L5,P$5:P$8,0))=FALSE),"",$L5)) ->  | R5: N/A | S5: ='Serviceability Worksheet'!C13 -> 0 | T5: =IF('Serviceability Worksheet'!$G11<>"Couple","",IF(OR(S6=3,S8=3,'Serviceability Worksheet'!$C13=$L6,'Serviceability Worksheet'!$C13=$L8,ISERROR(MATCH($L5,S$5:S$8,0))=FALSE),"",$L5)) ->  | U5: N/A | V5: ='Serviceability Worksheet'!C13 -> 0 | W5: =IF('Serviceability Worksheet'!$I11<>"Couple","",IF(OR(V6=4,V7=4,'Serviceability Worksheet'!$C13=$L7,'Serviceability Worksheet'!$C13=$L6,ISERROR(MATCH($L5,V$5:V$8,0))=FALSE),"",$L5)) ->  | X5: N/A | Z5: 810 | AA5: NT | AB5: 1 | AC5: >=450-750K | AD5: NT Cat 1 | AE5: 689341 | AG5: Yes | AI5: 450000.01 | AJ5: >=450-750K
B6: Please refer to your BDM | F6: Family Guarantee | I6: External | K6: Applicant | L6: 2 | M6: ='Serviceability Worksheet'!E13 -> 0 | N6: =IF('Serviceability Worksheet'!$C11<>"Couple","",IF(OR(M7=1,M8=1,'Serviceability Worksheet'!$E13=$L8,'Serviceability Worksheet'!$E13=$L7,ISERROR(MATCH($L6,M$5:M$8,0))=FALSE),"",$L6)) ->  | O6: =IF(ISERROR(SMALL(N5:N8,1)),"",SMALL(N5:N8,1)) ->  | R6: =IF(ISERROR(SMALL(Q5:Q8,1)),"",SMALL(Q5:Q8,1)) ->  | S6: ='Serviceability Worksheet'!E13 -> 0 | T6: =IF('Serviceability Worksheet'!$G11<>"Couple","",IF(OR(S5=3,S8=3,'Serviceability Worksheet'!$E13=$L8,'Serviceability Worksheet'!$E13=$L5,ISERROR(MATCH($L6,S$5:S$8,0))=FALSE),"",$L6)) ->  | U6: =IF(ISERROR(SMALL(T5:T8,1)),"",SMALL(T5:T8,1)) ->  | V6: ='Serviceability Worksheet'!E13 -> 0 | W6: =IF('Serviceability Worksheet'!$I11<>"Couple","",IF(OR(V5=4,V7=4,'Serviceability Worksheet'!$E13=$L5,'Serviceability Worksheet'!$E13=$L7,ISERROR(MATCH($L6,V$5:V$8,0))=FALSE),"",$L6)) ->  | X6: =IF(ISERROR(SMALL(W5:W8,1)),"",SMALL(W5:W8,1)) ->  | Z6: 811 | AA6: NT | AB6: 1 | AD6: NT Cat 1 | AI6: 750000.01 | AJ6: >=750-900K
B7: Fails serviceability test - Please refer to 'Notes and Guidelines' tab | F7: Large Loan (>$2m) | K7: Applicant | L7: 3 | M7: ='Serviceability Worksheet'!G13 -> 0 | N7: =IF('Serviceability Worksheet'!$C11<>"Couple","",IF(OR(M6=1,M8=1,'Serviceability Worksheet'!$G13=$L6,'Serviceability Worksheet'!$G13=$L8,ISERROR(MATCH($L7,M$5:M$8,0))=FALSE),"",$L7)) ->  | O7: =IF(ISERROR(SMALL(N5:N8,2)),"",SMALL(N5:N8,2)) ->  | P7: ='Serviceability Worksheet'!G13 -> 0 | Q7: =IF('Serviceability Worksheet'!$E11<>"Couple","",IF(OR(P5=2,P8=2,'Serviceability Worksheet'!$G13=$L5,'Serviceability Worksheet'!$G13=$L8,ISERROR(MATCH($L7,P$5:P$8,0))=FALSE),"",$L7)) ->  | R7: =IF(ISERROR(SMALL(Q5:Q8,2)),"",SMALL(Q5:Q8,2)) ->  | U7: =IF(ISERROR(SMALL(T5:T8,2)),"",SMALL(T5:T8,2)) ->  | V7: ='Serviceability Worksheet'!G13 -> 0 | W7: =IF('Serviceability Worksheet'!$I11<>"Couple","",IF(OR(V5=4,V6=4,'Serviceability Worksheet'!$G13=$L5,'Serviceability Worksheet'!$G13=$L6,ISERROR(MATCH($L7,V$5:V$8,0))=FALSE),"",$L7)) ->  | X7: =IF(ISERROR(SMALL(W5:W8,2)),"",SMALL(W5:W8,2)) ->  | Z7: 812 | AA7: NT | AB7: 1 | AC7: >=450-750K | AD7: NT Cat 1 | AE7: 617590 | AI7: 900000.01 | AJ7: >=900K
B8: Refer BDM – Minimum surplus of $500 is required unless satisfactory evidence of at least $10,000 in savings/redraw/liquid assets is provided (for purchases this is based on the post settlement funds position). | K8: Applicant | L8: 4 | M8: ='Serviceability Worksheet'!I13 -> 0 | N8: =IF('Serviceability Worksheet'!$C11<>"Couple","",IF(OR(M6=1,M7=1,'Serviceability Worksheet'!$I13=$L7,'Serviceability Worksheet'!$I13=$L6,ISERROR(MATCH($L8,M$5:M$8,0))=FALSE),"",$L8)) ->  | O8: =IF(ISERROR(SMALL(N5:N8,3)),"",SMALL(N5:N8,3)) ->  | P8: ='Serviceability Worksheet'!I13 -> 0 | Q8: =IF('Serviceability Worksheet'!$E11<>"Couple","",IF(OR(P5=2,P7=2,'Serviceability Worksheet'!$I13=$L7,'Serviceability Worksheet'!$I13=$L5,ISERROR(MATCH($L8,P$5:P$8,0))=FALSE),"",$L8)) ->  | R8: =IF(ISERROR(SMALL(Q5:Q8,3)),"",SMALL(Q5:Q8,3)) ->  | S8: ='Serviceability Worksheet'!I13 -> 0 | T8: =IF('Serviceability Worksheet'!$G11<>"Couple","",IF(OR(S5=3,S6=3,'Serviceability Worksheet'!$I13=$L6,'Serviceability Worksheet'!$I13=$L5,ISERROR(MATCH($L8,S$5:S$8,0))=FALSE),"",$L8)) ->  | U8: =IF(ISERROR(SMALL(T5:T8,3)),"",SMALL(T5:T8,3)) ->  | X8: =IF(ISERROR(SMALL(W5:W8,3)),"",SMALL(W5:W8,3)) ->  | Z8: 813 | AA8: NT | AB8: 1 | AD8: NT Cat 1
F9: Min variable rate | H9: 0.053 | Z9: 814 | AA9: NT | AB9: 1 | AD9: NT Cat 1
F10: Var assessment rate buffer | H10: 0.03 | K10: Applicant couple matching matrix - Family Guarantee - Guarantor Serviceability | Z10: 815 | AA10: NT | AB10: 1 | AD10: NT Cat 1 | AI10: * Rpdata last 12 months median values. Max of houses/units used and averaged for suburbs in postcode (PC)
F11: Fix(4,5) assessment rate buffer | H11: 0.0225 | O11: List 1 | R11: List 2 | U11: List 3 | X11: List 4 | Z11: 816 | AA11: NT | AB11: 1 | AD11: NT Cat 1 | AI11: MV last updated March 2015
K12: Applicant | L12: 1 | O12: N/A | P12: ='Guarantor Serviceability'!C12 -> 0 | Q12: =IF('Guarantor Serviceability'!$E11<>"Couple","",IF(OR(P14=2,P15=2,'Guarantor Serviceability'!$C12=$L14,'Guarantor Serviceability'!$C12=$L15,ISERROR(MATCH($L12,P$12:P$15,0))=FALSE),"",$L12)) ->  | R12: N/A | S12: ='Guarantor Serviceability'!C12 -> 0 | T12: =IF('Guarantor Serviceability'!$G11<>"Couple","",IF(OR(S13=3,S15=3,'Guarantor Serviceability'!$C12=$L13,'Guarantor Serviceability'!$C12=$L15,ISERROR(MATCH($L12,S$12:S$15,0))=FALSE),"",$L12)) ->  | U12: N/A | V12: ='Guarantor Serviceability'!C12 -> 0 | W12: =IF('Guarantor Serviceability'!$I11<>"Couple","",IF(OR(V13=4,V14=4,'Guarantor Serviceability'!$C12=$L14,'Guarantor Serviceability'!$C12=$L13,ISERROR(MATCH($L12,V$12:V$15,0))=FALSE),"",$L12)) ->  | X12: N/A | Z12: 817 | AA12: NT | AB12: 1 | AD12: NT Cat 1
B13: Tax Scales (effective 1/7/2011) | F13: Tax applicable per applicant | K13: Applicant | L13: 2 | M13: ='Guarantor Serviceability'!E12 -> 0 | N13: =IF('Guarantor Serviceability'!$C11<>"Couple","",IF(OR(M14=1,M15=1,'Guarantor Serviceability'!$E12=$L15,'Guarantor Serviceability'!$E12=$L14,ISERROR(MATCH($L13,M$12:M$15,0))=FALSE),"",$L13)) ->  | O13: =IF(ISERROR(SMALL(N12:N15,1)),"",SMALL(N12:N15,1)) ->  | R13: =IF(ISERROR(SMALL(Q12:Q15,1)),"",SMALL(Q12:Q15,1)) ->  | S13: ='Guarantor Serviceability'!E12 -> 0 | T13: =IF('Guarantor Serviceability'!$G11<>"Couple","",IF(OR(S12=3,S15=3,'Guarantor Serviceability'!$E12=$L15,'Guarantor Serviceability'!$E12=$L12,ISERROR(MATCH($L13,S$12:S$15,0))=FALSE),"",$L13)) ->  | U13: =IF(ISERROR(SMALL(T12:T15,1)),"",SMALL(T12:T15,1)) ->  | V13: ='Guarantor Serviceability'!E12 -> 0 | W13: =IF('Guarantor Serviceability'!$I11<>"Couple","",IF(OR(V12=4,V14=4,'Guarantor Serviceability'!$E12=$L12,'Guarantor Serviceability'!$E12=$L14,ISERROR(MATCH($L13,V$12:V$15,0))=FALSE),"",$L13)) ->  | X13: =IF(ISERROR(SMALL(W12:W15,1)),"",SMALL(W12:W15,1)) ->  | Z13: 818 | AA13: NT | AB13: 1 | AD13: NT Cat 1 | AI13: Security location categories
B14: From | C14: To | D14: Tax rate | F14: App1 | G14: App2 | H14: App3 | I14: App4 | K14: Applicant | L14: 3 | M14: ='Guarantor Serviceability'!G12 -> 0 | N14: =IF('Guarantor Serviceability'!$C11<>"Couple","",IF(OR(M13=1,M15=1,'Guarantor Serviceability'!$G12=$L13,'Guarantor Serviceability'!$G12=$L15,ISERROR(MATCH($L14,M$12:M$15,0))=FALSE),"",$L14)) ->  | O14: =IF(ISERROR(SMALL(N12:N15,2)),"",SMALL(N12:N15,2)) ->  | P14: ='Guarantor Serviceability'!G12 -> 0 | Q14: =IF('Guarantor Serviceability'!$E11<>"Couple","",IF(OR(P12=2,P15=2,'Guarantor Serviceability'!$G12=$L12,'Guarantor Serviceability'!$G12=$L15,ISERROR(MATCH($L14,P$12:P$15,0))=FALSE),"",$L14)) ->  | R14: =IF(ISERROR(SMALL(Q12:Q15,2)),"",SMALL(Q12:Q15,2)) ->  | U14: =IF(ISERROR(SMALL(T12:T15,2)),"",SMALL(T12:T15,2)) ->  | V14: ='Guarantor Serviceability'!G12 -> 0 | W14: =IF('Guarantor Serviceability'!$I11<>"Couple","",IF(OR(V12=4,V13=4,'Guarantor Serviceability'!$G12=$L12,'Guarantor Serviceability'!$G12=$L13,ISERROR(MATCH($L14,V$12:V$15,0))=FALSE),"",$L14)) ->  | X14: =IF(ISERROR(SMALL(W12:W15,2)),"",SMALL(W12:W15,2)) ->  | Z14: 819 | AA14: NT | AB14: 1 | AD14: NT Cat 1 | AI14: Metropolitan | AJ14: 1
B15: 0 | C15: 18200 | D15: 0 | F15: =MIN('Serviceability Worksheet'!$C$247,C15)*D15 ->  | G15: =MIN('Serviceability Worksheet'!$E$247,C15)*D15 ->  | H15: =MIN('Serviceability Worksheet'!$G$247,C15)*D15 ->  | I15: =MIN('Serviceability Worksheet'!$I$247,C15)*D15 ->  | K15: Applicant | L15: 4 | M15: ='Guarantor Serviceability'!I12 -> 0 | N15: =IF('Guarantor Serviceability'!$C11<>"Couple","",IF(OR(M13=1,M14=1,'Guarantor Serviceability'!$I12=$L14,'Guarantor Serviceability'!$I12=$L13,ISERROR(MATCH($L15,M$12:M$15,0))=FALSE),"",$L15)) ->  | O15: =IF(ISERROR(SMALL(N12:N15,3)),"",SMALL(N12:N15,3)) ->  | P15: ='Guarantor Serviceability'!I12 -> 0 | Q15: =IF('Guarantor Serviceability'!$E11<>"Couple","",IF(OR(P12=2,P14=2,'Guarantor Serviceability'!$I12=$L14,'Guarantor Serviceability'!$I12=$L12,ISERROR(MATCH($L15,P$12:P$15,0))=FALSE),"",$L15)) ->  | R15: =IF(ISERROR(SMALL(Q12:Q15,3)),"",SMALL(Q12:Q15,3)) ->  | S15: ='Guarantor Serviceability'!I12 -> 0 | T15: =IF('Guarantor Serviceability'!$G11<>"Couple","",IF(OR(S12=3,S13=3,'Guarantor Serviceability'!$I12=$L13,'Guarantor Serviceability'!$I12=$L12,ISERROR(MATCH($L15,S$12:S$15,0))=FALSE),"",$L15)) ->  | U15: =IF(ISERROR(SMALL(T12:T15,3)),"",SMALL(T12:T15,3)) ->  | X15: =IF(ISERROR(SMALL(W12:W15,3)),"",SMALL(W12:W15,3)) ->  | Z15: 820 | AA15: NT | AB15: 1 | AC15: >=750-900K | AD15: NT Cat 1 | AE15: 872790 | AF15: Yes | AG15: Yes | AI15: Major Regional | AJ15: 2
B16: 18201 | C16: 45000 | D16: 0.19 | F16: =MAX(MIN('Serviceability Worksheet'!$C$247-C15,C16-C15),0)*D16 ->  | G16: =MAX(MIN('Serviceability Worksheet'!$E$247-C15,C16-C15),0)*D16 ->  | H16: =MAX(MIN('Serviceability Worksheet'!$G$247-C15,C16-C15),0)*D16 ->  | I16: =MAX(MIN('Serviceability Worksheet'!$I$247-C15,C16-C15),0)*D16 ->  | Z16: 821 | AA16: NT | AB16: 4 | AD16: NT Cat 4 | AI16: Regional | AJ16: 3
B17: 45001 | C17: 120000 | D17: 0.325 | F17: =MAX(MIN('Serviceability Worksheet'!$C$247-C16,C17-C16),0)*D17 ->  | G17: =MAX(MIN('Serviceability Worksheet'!$E$247-C16,C17-C16),0)*D17 ->  | H17: =MAX(MIN('Serviceability Worksheet'!$G$247-C16,C17-C16),0)*D17 ->  | I17: =MAX(MIN('Serviceability Worksheet'!$I$247-C16,C17-C16),0)*D17 ->  | Z17: 822 | AA17: NT | AB17: 3 | AC17: >=450-750K | AD17: NT Cat 3 | AE17: 596908 | AI17: National (country) | AJ17: 4
B18: 120001 | C18: 180000 | D18: 0.37 | F18: =MAX(MIN('Serviceability Worksheet'!$C$247-C17,C18-C17),0)*D18 ->  | G18: =MAX(MIN('Serviceability Worksheet'!$E$247-C17,C18-C17),0)*D18 ->  | H18: =MAX(MIN('Serviceability Worksheet'!$G$247-C17,C18-C17),0)*D18 ->  | I18: =MAX(MIN('Serviceability Worksheet'!$I$247-C17,C18-C17),0)*D18 ->  | Z18: 828 | AA18: NT | AB18: 1 | AC18: >=900K | AD18: NT Cat 1 | AE18: 1952158 | AF18: Yes | AI18: Based on Genworth LMI category ratings
B19: 180001 | D19: 0.45 | F19: =MAX('Serviceability Worksheet'!$C$247-C18,0)*D19 ->  | G19: =MAX('Serviceability Worksheet'!$E$247-C18,0)*D19 ->  | H19: =MAX('Serviceability Worksheet'!$G$247-C18,0)*D19 ->  | I19: =MAX('Serviceability Worksheet'!$I$247-C18,0)*D19 ->  | Z19: 829 | AA19: NT | AB19: 1 | AD19: NT Cat 1
E20: Total | F20: =SUM(F15:F19) ->  | G20: =SUM(G15:G19) ->  | H20: =SUM(H15:H19) ->  | I20: =SUM(I15:I19) ->  | Z20: 830 | AA20: NT | AB20: 1 | AC20: >=450-750K | AD20: NT Cat 1 | AE20: 578267 | AF20: Yes | AI20: Note: need to fill down MV band formula when updating median values
K21: Dropdown box list | Z21: 831 | AA21: NT | AB21: 1 | AD21: NT Cat 1
B22: Medicare levy | C22: 0.02 | F22: Tax applicable per applicant - Family Pledge Guarantors | K22: No. of securities (Large loans & standard loans) | Z22: 832 | AA22: NT | AB22: 1 | AC22: >=450-750K | AD22: NT Cat 1 | AE22: 620433 | AF22: Yes
F23: App1 | G23: App2 | H23: App3 | I23: App4 | K23: 1 | Z23: 835 | AA23: NT | AB23: 2 | AC23: >=750-900K | AD23: NT Cat 2 | AE23: 814228 | AF23: Yes
B24: Default Loan Assess Term (Months) | C24: 294 | F24: =MIN('Guarantor Serviceability'!$C$183,C15)*D15 -> 0 | G24: =MIN('Guarantor Serviceability'!$E$183,C15)*D15 -> 0 | H24: =MIN('Guarantor Serviceability'!$G$183,C15)*D15 -> 0 | I24: =MIN('Guarantor Serviceability'!$I$183,C15)*D15 -> 0 | K24: 2 | Z24: 836 | AA24: NT | AB24: 2 | AC24: >=750-900K | AD24: NT Cat 2 | AE24: 761553
F25: =MAX(MIN('Guarantor Serviceability'!$C$183-C15,C16-C15),0)*D16 -> 0 | G25: =MAX(MIN('Guarantor Serviceability'!$E$183-C15,C16-C15),0)*D16 -> 0 | H25: =MAX(MIN('Guarantor Serviceability'!$G$183-C15,C16-C15),0)*D16 -> 0 | I25: =MAX(MIN('Guarantor Serviceability'!$I$183-C15,C16-C15),0)*D16 -> 0 | K25: 3 | Z25: 837 | AA25: NT | AB25: 4 | AC25: >=750-900K | AD25: NT Cat 4 | AE25: 872766
F26: =MAX(MIN('Guarantor Serviceability'!$C$183-C16,C17-C16),0)*D17 -> 0 | G26: =MAX(MIN('Guarantor Serviceability'!$E$183-C16,C17-C16),0)*D17 -> 0 | H26: =MAX(MIN('Guarantor Serviceability'!$G$183-C16,C17-C16),0)*D17 -> 0 | I26: =MAX(MIN('Guarantor Serviceability'!$I$183-C16,C17-C16),0)*D17 -> 0 | K26: 4 | Z26: 838 | AA26: NT | AB26: 4 | AC26: >=450-750K | AD26: NT Cat 4 | AE26: 675643
F27: =MAX(MIN('Guarantor Serviceability'!$C$183-C17,C18-C17),0)*D18 -> 0 | G27: =MAX(MIN('Guarantor Serviceability'!$E$183-C17,C18-C17),0)*D18 -> 0 | H27: =MAX(MIN('Guarantor Serviceability'!$G$183-C17,C18-C17),0)*D18 -> 0 | I27: =MAX(MIN('Guarantor Serviceability'!$I$183-C17,C18-C17),0)*D18 -> 0 | K27: 5 | Z27: 840 | AA27: NT | AB27: 4 | AC27: >=300-450K | AD27: NT Cat 4 | AE27: 398486
F28: =MAX('Guarantor Serviceability'!$C$183-C18,0)*D19 -> 0 | G28: =MAX('Guarantor Serviceability'!$E$183-C18,0)*D19 -> 0 | H28: =MAX('Guarantor Serviceability'!$G$183-C18,0)*D19 -> 0 | I28: =MAX('Guarantor Serviceability'!$I$183-C18,0)*D19 -> 0 | K28: 6 | Z28: 841 | AA28: NT | AB28: 4 | AC28: >=450-750K | AD28: NT Cat 4 | AE28: 551591
E29: Total | F29: =SUM(F24:F28) -> 0 | G29: =SUM(G24:G28) -> 0 | H29: =SUM(H24:H28) -> 0 | I29: =SUM(I24:I28) -> 0 | Z29: 845 | AA29: NT | AB29: 4 | AC29: >=300-450K | AD29: NT Cat 4 | AE29: 324510
B30: Living expenses | Z30: 846 | AA30: NT | AB30: 4 | AC30: >=300-450K | AD30: NT Cat 4 | AE30: 329779
B31: Updated March 2015 | F31: HEM - Per child basis | I31: This is for when income tiering is used and children are captured per household (currently hidden & dormant) | Z31: 847 | AA31: NT | AB31: 4 | AD31: NT Cat 4
B32: HEM - Per child basis (pw) | F32: Code | G32: Per week | H32: Per annum | Z32: 850 | AA32: NT | AB32: 3 | AC32: >=300-450K | AD32: NT Cat 3 | AE32: 421310
B33: Couple | C33: 475.9157414 | D33: =C33*52 -> 24747.61855 | F33: C0 | G33: =C33 -> 475.9157414 | H33: =G33*52 -> 24747.61855 | J33: Interest only dropdown list | Z33: 851 | AA33: NT | AB33: 4 | AD33: NT Cat 4
B34: per child | C34: 84.00500226 | D34: =C34*52 -> 4368.260117 | F34: C1 | G34: =G33+$C$34 -> 559.9207437 | H34: 29115.87867 | J34: 0 | Z34: 852 | AA34: NT | AB34: 4 | AD34: NT Cat 4
F35: C2 | G35: =G34+$C$34 -> 643.9257459 | H35: 33484.13879 | J35: 1 | Z35: 853 | AA35: NT | AB35: 4 | AD35: NT Cat 4
B36: Single | C36: 268.1552379 | D36: =C36*52 -> 13944.07237 | F36: C3 | G36: =G35+$C$34 -> 727.9307482 | H36: 37852.39891 | J36: 2 | Z36: 854 | AA36: NT | AB36: 4 | AD36: NT Cat 4
B37: per child | C37: 35.40344 | D37: =C37*52 -> 1840.97888 | F37: C4 | G37: =G36+$C$34 -> 811.9357504 | H37: 42220.65902 | J37: 3 | Z37: 860 | AA37: NT | AB37: 4 | AC37: <300K | AD37: NT Cat 4 | AE37: 285451
F38: C5 | G38: 895.9407527 | H38: 46588.91914 | J38: 4 | Z38: 861 | AA38: NT | AB38: 4 | AD38: NT Cat 4
B39: Use income tiering | C39: Y | D39: =IF(Inc_Tier="N","Dormant","active") -> active | F39: C6 | G39: 979.9457549 | H39: 50957.17926 | J39: 5 | Z39: 862 | AA39: NT | AB39: 4 | AD39: NT Cat 4
B40: (note: where income tiering, the following input cells to be unhidden in worksheet: Status, couple matching, and child # per applicant) | F40: C7 | G40: 1063.950757 | H40: 55325.43937 | Z40: 870 | AA40: NT | AB40: 2 | AC40: >=450-750K | AD40: NT Cat 2 | AE40: 555172
F41: C8 | G41: 1147.955759 | H41: 59693.69949 | Z41: 871 | AA41: NT | AB41: 4 | AD41: NT Cat 4
B42: Income tiering | C42: Single | D42: Couple | F42: C9 | G42: 1231.960762 | H42: 64061.95961 | Z42: 872 | AA42: NT | AB42: 4 | AD42: NT Cat 4
B43: 0 | C43: 1 | D43: 1 | F43: C10 | G43: 1315.965764 | H43: 68430.21973 | Z43: 880 | AA43: NT | AB43: 4 | AD43: NT Cat 4
B44: 30000 | C44: 1 | D44: 1 | F44: C11 | G44: 1399.970766 | H44: 72798.47984 | Z44: 881 | AA44: NT | AB44: 4 | AD44: NT Cat 4
B45: 35000 | C45: 1.08 | D45: 1 | F45: C12 | G45: 1483.975768 | H45: 77166.73996 | Z45: 886 | AA45: NT | AB45: 4 | AD45: NT Cat 4
B46: 40000 | C46: 1.14 | D46: 1.04 | F46: C13 | G46: =G45+$C$34 -> 1567.980771 | H46: 81535.00008 | Z46: 2000 | AA46: NSW | AB46: 1 | AC46: >=900K | AD46: NSW Cat 1 | AE46: 1335050 | AG46: Yes
B47: 45000 | C47: 1.22 | D47: 1.08 | F47: C14 | G47: 1651.985773 | H47: 85903.2602 | Z47: 2001 | AA47: NSW | AB47: 1 | AD47: NSW Cat 1
B48: 50000 | C48: 1.24 | D48: 1.09 | F48: C15 | G48: 1735.990775 | H48: 90271.52031 | Z48: 2002 | AA48: NSW | AB48: 1 | AD48: NSW Cat 1
B49: 55000 | C49: 1.24 | D49: 1.09 | F49: C16 | G49: 1819.995778 | H49: 94639.78043 | Z49: 2003 | AA49: NSW | AB49: 1 | AD49: NSW Cat 1
B50: 60000 | C50: 1.38 | D50: 1.17 | F50: C17 | G50: 1904.00078 | H50: 99008.04055 | Z50: 2004 | AA50: NSW | AB50: 1 | AD50: NSW Cat 1
B51: 65000 | C51: 1.38 | D51: 1.17 | F51: C18 | G51: 1988.005782 | H51: 103376.3007 | Z51: 2005 | AA51: NSW | AB51: 1 | AD51: NSW Cat 1
B52: 70000 | C52: 1.5 | D52: 1.24 | F52: C19 | G52: 2072.010784 | H52: 107744.5608 | Z52: 2006 | AA52: NSW | AB52: 1 | AD52: NSW Cat 1
B53: 75000 | C53: 1.5 | D53: 1.24 | F53: C20 | G53: 2156.015787 | H53: 112112.8209 | Z53: 2007 | AA53: NSW | AB53: 1 | AC53: >=750-900K | AD53: NSW Cat 1 | AE53: 857608 | AG53: Yes
B54: 80000 | C54: 1.57 | D54: 1.28 | F54: S0 | G54: =C36 -> 268.1552379 | H54: 13944.07237 | Z54: 2008 | AA54: NSW | AB54: 1 | AC54: >=900K | AD54: NSW Cat 1 | AE54: 1022394 | AG54: Yes
B55: 85000 | C55: 1.57 | D55: 1.28 | F55: S1 | G55: =G54+$C$37 -> 303.5586779 | H55: 15785.05125 | Z55: 2009 | AA55: NSW | AB55: 1 | AC55: >=750-900K | AD55: NSW Cat 1 | AE55: 896024
B56: 90000 | C56: 1.59 | D56: 1.28 | F56: S2 | G56: 338.9621179 | H56: 17626.03013 | Z56: 2010 | AA56: NSW | AB56: 1 | AC56: >=900K | AD56: NSW Cat 1 | AE56: 1313090
B57: 95000 | C57: 1.59 | D57: 1.28 | F57: S3 | G57: 374.3655579 | H57: 19467.00901 | Z57: 2011 | AA57: NSW | AB57: 1 | AC57: >=450-750K | AD57: NSW Cat 1 | AE57: 704413
B58: 100000 | C58: 1.62 | D58: 1.3 | F58: S4 | G58: 409.7689979 | H58: 21307.98789 | Z58: 2015 | AA58: NSW | AB58: 1 | AC58: >=900K | AD58: NSW Cat 1 | AE58: 976176 | AG58: No
B59: 105000 | C59: 1.62 | D59: 1.3 | F59: S5 | G59: 445.1724379 | H59: 23148.96677 | Z59: 2016 | AA59: NSW | AB59: 1 | AC59: >=900K | AD59: NSW Cat 1 | AE59: 1113945
B60: 110000 | C60: 1.65 | D60: 1.32 | F60: S6 | G60: 480.5758779 | H60: 24989.94565 | Z60: 2017 | AA60: NSW | AB60: 1 | AC60: >=900K | AD60: NSW Cat 1 | AE60: 941188 | AG60: Yes
B61: 115000 | C61: 1.65 | D61: 1.32 | F61: S7 | G61: 515.9793179 | H61: 26830.92453 | Z61: 2018 | AA61: NSW | AB61: 1 | AC61: >=900K | AD61: NSW Cat 1 | AE61: 1082801 | AG61: Yes
B62: 120000 | C62: 1.68 | D62: 1.34 | F62: S8 | G62: 551.3827579 | H62: 28671.90341 | Z62: 2019 | AA62: NSW | AB62: 1 | AC62: >=900K | AD62: NSW Cat 1 | AE62: 987351 | AG62: Yes
B63: 125000 | C63: 1.68 | D63: 1.34 | F63: S9 | G63: 586.7861979 | H63: 30512.88229 | Z63: 2020 | AA63: NSW | AB63: 1 | AC63: >=900K | AD63: NSW Cat 1 | AE63: 960124 | AG63: Yes
B64: 130000 | C64: 1.71 | D64: 1.35 | F64: S10 | G64: 622.1896379 | H64: 32353.86117 | Z64: 2021 | AA64: NSW | AB64: 1 | AC64: >=900K | AD64: NSW Cat 1 | AE64: 3261225
B65: 135000 | C65: 1.71 | D65: 1.35 | F65: S11 | G65: 657.5930779 | H65: 34194.84005 | Z65: 2022 | AA65: NSW | AB65: 1 | AC65: >=900K | AD65: NSW Cat 1 | AE65: 1726870 | AG65: Yes
B66: 140000 | C66: 1.74 | D66: 1.37 | F66: S12 | G66: 692.9965179 | H66: 36035.81893 | Z66: 2023 | AA66: NSW | AB66: 1 | AC66: >=900K | AD66: NSW Cat 1 | AE66: 3747610
B67: 145000 | C67: 1.74 | D67: 1.37 | F67: S13 | G67: 728.3999579 | H67: 37876.79781 | Z67: 2024 | AA67: NSW | AB67: 1 | AC67: >=900K | AD67: NSW Cat 1 | AE67: 2127551
B68: 150000 | C68: 1.77 | D68: 1.39 | F68: S14 | G68: 763.8033979 | H68: 39717.77669 | Z68: 2025 | AA68: NSW | AB68: 1 | AC68: >=900K | AD68: NSW Cat 1 | AE68: 2155722
B69: 155000 | C69: 1.77 | D69: 1.39 | F69: S15 | G69: 799.2068379 | H69: 41558.75557 | Z69: 2026 | AA69: NSW | AB69: 1 | AC69: >=900K | AD69: NSW Cat 1 | AE69: 2157599
B70: 160000 | C70: 1.8 | D70: 1.41 | F70: S16 | G70: 834.6102779 | H70: 43399.73445 | Z70: 2027 | AA70: NSW | AB70: 1 | AC70: >=900K | AD70: NSW Cat 1 | AE70: 3964812
B71: 165000 | C71: 1.8 | D71: 1.41 | F71: S17 | G71: 870.0137179 | H71: 45240.71333 | Z71: 2028 | AA71: NSW | AB71: 1 | AC71: >=900K | AD71: NSW Cat 1 | AE71: 2900511
B72: 170000 | C72: 1.83 | D72: 1.42 | F72: S18 | G72: 905.4171579 | H72: 47081.69221 | Z72: 2029 | AA72: NSW | AB72: 1 | AC72: >=900K | AD72: NSW Cat 1 | AE72: 2517028
B73: 175000 | C73: 1.83 | D73: 1.42 | F73: S19 | G73: 940.8205979 | H73: 48922.67109 | Z73: 2030 | AA73: NSW | AB73: 1 | AC73: >=900K | AD73: NSW Cat 1 | AE73: 3242108
B74: 180000 | C74: 1.87 | D74: 1.44 | F74: S20 | G74: 976.2240379 | H74: 50763.64997 | Z74: 2031 | AA74: NSW | AB74: 1 | AC74: >=900K | AD74: NSW Cat 1 | AE74: 1759083
B75: 185000 | C75: 1.87 | D75: 1.44 | Z75: 2032 | AA75: NSW | AB75: 1 | AC75: >=900K | AD75: NSW Cat 1 | AE75: 1230899
B76: 190000 | C76: 1.87 | D76: 1.44 | Z76: 2033 | AA76: NSW | AB76: 1 | AC76: >=900K | AD76: NSW Cat 1 | AE76: 1766292
B77: 195000 | C77: 1.87 | D77: 1.44 | Z77: 2034 | AA77: NSW | AB77: 1 | AC77: >=900K | AD77: NSW Cat 1 | AE77: 1771335
B78: 200000 | C78: 1.87 | D78: 1.44 | Z78: 2035 | AA78: NSW | AB78: 1 | AC78: >=900K | AD78: NSW Cat 1 | AE78: 1240217
B79: 205000 | C79: 1.87 | D79: 1.44 | Z79: 2036 | AA79: NSW | AB79: 1 | AC79: >=900K | AD79: NSW Cat 1 | AE79: 1237994
B80: 210000 | C80: 1.87 | D80: 1.44 | Z80: 2037 | AA80: NSW | AB80: 1 | AC80: >=900K | AD80: NSW Cat 1 | AE80: 1155697 | AG80: Yes
B81: 215000 | C81: 1.87 | D81: 1.44 | Z81: 2038 | AA81: NSW | AB81: 1 | AC81: >=900K | AD81: NSW Cat 1 | AE81: 1138931
B82: 220000 | C82: 1.87 | D82: 1.44 | Z82: 2039 | AA82: NSW | AB82: 1 | AC82: >=900K | AD82: NSW Cat 1 | AE82: 1176041
B83: 225000 | C83: 1.87 | D83: 1.44 | Z83: 2040 | AA83: NSW | AB83: 1 | AC83: >=900K | AD83: NSW Cat 1 | AE83: 1135419
B84: 230000 | C84: 1.87 | D84: 1.44 | Z84: 2041 | AA84: NSW | AB84: 1 | AC84: >=900K | AD84: NSW Cat 1 | AE84: 1778409
B85: 235000 | C85: 1.87 | D85: 1.44 | Z85: 2042 | AA85: NSW | AB85: 1 | AC85: >=900K | AD85: NSW Cat 1 | AE85: 1023598
B86: 240000 | C86: 1.87 | D86: 1.44 | Z86: 2043 | AA86: NSW | AB86: 1 | AC86: >=900K | AD86: NSW Cat 1 | AE86: 986211
B87: 245000 | C87: 1.87 | D87: 1.44 | Z87: 2044 | AA87: NSW | AB87: 1 | AC87: >=750-900K | AD87: NSW Cat 1 | AE87: 864882
B88: 250000 | C88: 1.87 | D88: 1.44 | Z88: 2045 | AA88: NSW | AB88: 1 | AC88: >=900K | AD88: NSW Cat 1 | AE88: 1622279
B89: 255000 | C89: 1.87 | D89: 1.44 | Z89: 2046 | AA89: NSW | AB89: 1 | AC89: >=900K | AD89: NSW Cat 1 | AE89: 1496700
B90: 260000 | C90: 1.87 | D90: 1.44 | Z90: 2047 | AA90: NSW | AB90: 1 | AC90: >=900K | AD90: NSW Cat 1 | AE90: 1453178
B91: 265000 | C91: 1.87 | D91: 1.44 | Z91: 2048 | AA91: NSW | AB91: 1 | AC91: >=900K | AD91: NSW Cat 1 | AE91: 1104556
B92: 270000 | C92: 1.87 | D92: 1.44 | Z92: 2049 | AA92: NSW | AB92: 1 | AC92: >=900K | AD92: NSW Cat 1 | AE92: 1081360
B93: 275000 | C93: 1.87 | D93: 1.44 | Z93: 2050 | AA93: NSW | AB93: 1 | AC93: >=900K | AD93: NSW Cat 1 | AE93: 1031947
B94: 280000 | C94: 1.87 | D94: 1.44 | Z94: 2051 | AA94: NSW | AB94: 1 | AD94: NSW Cat 1
B95: 285000 | C95: 1.87 | D95: 1.44 | Z95: 2052 | AA95: NSW | AB95: 1 | AD95: NSW Cat 1
B96: 290000 | C96: 1.87 | D96: 1.44 | Z96: 2053 | AA96: NSW | AB96: 1 | AD96: NSW Cat 1
B97: 295000 | C97: 1.87 | D97: 1.44 | Z97: 2054 | AA97: NSW | AB97: 1 | AD97: NSW Cat 1
B98: 300000 | C98: 1.87 | D98: 1.44 | Z98: 2055 | AA98: NSW | AB98: 1 | AD98: NSW Cat 1
B99: 305000 | C99: 1.87 | D99: 1.44 | Z99: 2056 | AA99: NSW | AB99: 1 | AD99: NSW Cat 1
B100: 310000 | C100: 1.87 | D100: 1.44 | Z100: 2057 | AA100: NSW | AB100: 1 | AD100: NSW Cat 1
B101: 315000 | C101: 1.87 | D101: 1.44 | Z101: 2058 | AA101: NSW | AB101: 1 | AD101: NSW Cat 1
B102: 320000 | C102: 1.87 | D102: 1.44 | Z102: 2059 | AA102: NSW | AB102: 1 | AD102: NSW Cat 1
B103: 325000 | C103: 1.87 | D103: 1.44 | Z103: 2060 | AA103: NSW | AB103: 1 | AC103: >=900K | AD103: NSW Cat 1 | AE103: 2222881
B104: 330000 | C104: 1.87 | D104: 1.44 | Z104: 2061 | AA104: NSW | AB104: 1 | AC104: >=900K | AD104: NSW Cat 1 | AE104: 1792624
B105: 335000 | C105: 1.87 | D105: 1.44 | Z105: 2062 | AA105: NSW | AB105: 1 | AC105: >=900K | AD105: NSW Cat 1 | AE105: 1585319
B106: 340000 | C106: 1.87 | D106: 1.44 | Z106: 2063 | AA106: NSW | AB106: 1 | AC106: >=900K | AD106: NSW Cat 1 | AE106: 2078832
B107: 345000 | C107: 1.87 | D107: 1.44 | Z107: 2064 | AA107: NSW | AB107: 1 | AC107: >=900K | AD107: NSW Cat 1 | AE107: 1790223
B108: 350000 | C108: 1.87 | D108: 1.44 | Z108: 2065 | AA108: NSW | AB108: 1 | AC108: >=900K | AD108: NSW Cat 1 | AE108: 1639537
B109: 355000 | C109: 1.87 | D109: 1.44 | Z109: 2066 | AA109: NSW | AB109: 1 | AC109: >=900K | AD109: NSW Cat 1 | AE109: 1864950 | AG109: No
B110: 360000 | C110: 1.87 | D110: 1.44 | Z110: 2067 | AA110: NSW | AB110: 1 | AC110: >=900K | AD110: NSW Cat 1 | AE110: 1531795 | AG110: Yes
B111: 365000 | C111: 1.87 | D111: 1.44 | Z111: 2068 | AA111: NSW | AB111: 1 | AC111: >=900K | AD111: NSW Cat 1 | AE111: 1718031
B112: 370000 | C112: 1.87 | D112: 1.44 | Z112: 2069 | AA112: NSW | AB112: 1 | AC112: >=900K | AD112: NSW Cat 1 | AE112: 1730591
B113: 375000 | C113: 1.87 | D113: 1.44 | Z113: 2070 | AA113: NSW | AB113: 1 | AC113: >=900K | AD113: NSW Cat 1 | AE113: 1818053
B114: 380000 | C114: 1.87 | D114: 1.44 | Z114: 2071 | AA114: NSW | AB114: 1 | AC114: >=900K | AD114: NSW Cat 1 | AE114: 1516999
B115: 385000 | C115: 1.87 | D115: 1.44 | Z115: 2072 | AA115: NSW | AB115: 1 | AC115: >=900K | AD115: NSW Cat 1 | AE115: 1589339
B116: 390000 | C116: 1.87 | D116: 1.44 | Z116: 2073 | AA116: NSW | AB116: 1 | AC116: >=900K | AD116: NSW Cat 1 | AE116: 1400982
B117: 395000 | C117: 1.87 | D117: 1.44 | Z117: 2074 | AA117: NSW | AB117: 1 | AC117: >=900K | AD117: NSW Cat 1 | AE117: 1441883
B118: 400000 | C118: 1.87 | D118: 1.44 | Z118: 2075 | AA118: NSW | AB118: 1 | AC118: >=900K | AD118: NSW Cat 1 | AE118: 1296831
B119: 405000 | C119: 1.87 | D119: 1.44 | Z119: 2076 | AA119: NSW | AB119: 1 | AC119: >=900K | AD119: NSW Cat 1 | AE119: 1183043
B120: 410000 | C120: 1.87 | D120: 1.44 | Z120: 2077 | AA120: NSW | AB120: 1 | AC120: >=900K | AD120: NSW Cat 1 | AE120: 933942 | AG120: No
B121: 415000 | C121: 1.87 | D121: 1.44 | Z121: 2078 | AA121: NSW | AB121: 1 | AD121: NSW Cat 1
B122: 420000 | C122: 1.87 | D122: 1.44 | Z122: 2079 | AA122: NSW | AB122: 1 | AC122: >=750-900K | AD122: NSW Cat 1 | AE122: 827137
B123: 425000 | C123: 1.87 | D123: 1.44 | Z123: 2080 | AA123: NSW | AB123: 1 | AC123: >=750-900K | AD123: NSW Cat 1 | AE123: 787100
B124: 430000 | C124: 1.87 | D124: 1.44 | Z124: 2081 | AA124: NSW | AB124: 1 | AC124: >=750-900K | AD124: NSW Cat 1 | AE124: 775784
B125: 435000 | C125: 1.87 | D125: 1.44 | Z125: 2082 | AA125: NSW | AB125: 1 | AC125: >=450-750K | AD125: NSW Cat 1 | AE125: 738138
B126: 440000 | C126: 1.87 | D126: 1.44 | Z126: 2083 | AA126: NSW | AB126: 1 | AC126: >=450-750K | AD126: NSW Cat 1 | AE126: 638716
B127: 445000 | C127: 1.87 | D127: 1.44 | Z127: 2084 | AA127: NSW | AB127: 1 | AC127: >=900K | AD127: NSW Cat 1 | AE127: 2078046
B128: 450000 | C128: 1.87 | D128: 1.44 | Z128: 2085 | AA128: NSW | AB128: 1 | AC128: >=900K | AD128: NSW Cat 1 | AE128: 1123306
B129: 455000 | C129: 1.87 | D129: 1.44 | Z129: 2086 | AA129: NSW | AB129: 1 | AC129: >=900K | AD129: NSW Cat 1 | AE129: 1081591
B130: 460000 | C130: 1.87 | D130: 1.44 | Z130: 2087 | AA130: NSW | AB130: 1 | AC130: >=900K | AD130: NSW Cat 1 | AE130: 1263291
B131: 465000 | C131: 1.87 | D131: 1.44 | Z131: 2088 | AA131: NSW | AB131: 1 | AC131: >=900K | AD131: NSW Cat 1 | AE131: 2653946
B132: 470000 | C132: 1.87 | D132: 1.44 | Z132: 2089 | AA132: NSW | AB132: 1 | AC132: >=900K | AD132: NSW Cat 1 | AE132: 1278751
B133: 475000 | C133: 1.87 | D133: 1.44 | Z133: 2090 | AA133: NSW | AB133: 1 | AC133: >=900K | AD133: NSW Cat 1 | AE133: 2973146
B134: 480000 | C134: 1.87 | D134: 1.44 | Z134: 2091 | AA134: NSW | AB134: 1 | AD134: NSW Cat 1
B135: 485000 | C135: 1.87 | D135: 1.44 | Z135: 2092 | AA135: NSW | AB135: 1 | AC135: >=900K | AD135: NSW Cat 1 | AE135: 1628884
B136: 490000 | C136: 1.87 | D136: 1.44 | Z136: 2093 | AA136: NSW | AB136: 1 | AC136: >=900K | AD136: NSW Cat 1 | AE136: 1815403
B137: 495000 | C137: 1.87 | D137: 1.44 | Z137: 2094 | AA137: NSW | AB137: 1 | AC137: >=900K | AD137: NSW Cat 1 | AE137: 1489580
B138: 500000 | C138: 1.87 | D138: 1.44 | Z138: 2095 | AA138: NSW | AB138: 1 | AC138: >=900K | AD138: NSW Cat 1 | AE138: 1846930
Z139: 2096 | AA139: NSW | AB139: 1 | AC139: >=900K | AD139: NSW Cat 1 | AE139: 1586700
Z140: 2097 | AA140: NSW | AB140: 1 | AC140: >=900K | AD140: NSW Cat 1 | AE140: 1330524
Z141: 2098 | AA141: NSW | AB141: 1 | AD141: NSW Cat 1
Z142: 2099 | AA142: NSW | AB142: 1 | AC142: >=900K | AD142: NSW Cat 1 | AE142: 1155122
Z143: 2100 | AA143: NSW | AB143: 1 | AC143: >=900K | AD143: NSW Cat 1 | AE143: 1053381
Z144: 2101 | AA144: NSW | AB144: 1 | AC144: >=900K | AD144: NSW Cat 1 | AE144: 1362378
Z145: 2102 | AA145: NSW | AB145: 1 | AC145: >=900K | AD145: NSW Cat 1 | AE145: 1112849
Z146: 2103 | AA146: NSW | AB146: 1 | AC146: >=900K | AD146: NSW Cat 1 | AE146: 1148502
Z147: 2104 | AA147: NSW | AB147: 1 | AC147: >=900K | AD147: NSW Cat 1 | AE147: 1656867
Z148: 2105 | AA148: NSW | AB148: 1 | AC148: >=900K | AD148: NSW Cat 1 | AE148: 1285508
Z149: 2106 | AA149: NSW | AB149: 1 | AC149: >=900K | AD149: NSW Cat 1 | AE149: 1340418
Z150: 2107 | AA150: NSW | AB150: 1 | AC150: >=900K | AD150: NSW Cat 1 | AE150: 1626257
Z151: 2108 | AA151: NSW | AB151: 1 | AC151: >=900K | AD151: NSW Cat 1 | AE151: 1703135
Z152: 2109 | AA152: NSW | AB152: 1 | AD152: NSW Cat 1
Z153: 2110 | AA153: NSW | AB153: 1 | AC153: >=900K | AD153: NSW Cat 1 | AE153: 2478389
Z154: 2111 | AA154: NSW | AB154: 1 | AC154: >=900K | AD154: NSW Cat 1 | AE154: 2048950
Z155: 2112 | AA155: NSW | AB155: 1 | AC155: >=900K | AD155: NSW Cat 1 | AE155: 1297225 | AG155: Yes
Z156: 2113 | AA156: NSW | AB156: 1 | AC156: >=900K | AD156: NSW Cat 1 | AE156: 932050 | AG156: Yes
Z157: 2114 | AA157: NSW | AB157: 1 | AC157: >=900K | AD157: NSW Cat 1 | AE157: 969886 | AG157: Yes
Z158: 2115 | AA158: NSW | AB158: 1 | AC158: >=900K | AD158: NSW Cat 1 | AE158: 900600 | AG158: No
Z159: 2116 | AA159: NSW | AB159: 1 | AC159: >=750-900K | AD159: NSW Cat 1 | AE159: 814359
Z160: 2117 | AA160: NSW | AB160: 1 | AC160: >=900K | AD160: NSW Cat 1 | AE160: 906146
Z161: 2118 | AA161: NSW | AB161: 1 | AC161: >=900K | AD161: NSW Cat 1 | AE161: 1017633 | AG161: Yes
Z162: 2119 | AA162: NSW | AB162: 1 | AC162: >=900K | AD162: NSW Cat 1 | AE162: 1307213
Z163: 2120 | AA163: NSW | AB163: 1 | AC163: >=900K | AD163: NSW Cat 1 | AE163: 965986
Z164: 2121 | AA164: NSW | AB164: 1 | AC164: >=900K | AD164: NSW Cat 1 | AE164: 1205965 | AG164: Yes
Z165: 2122 | AA165: NSW | AB165: 1 | AC165: >=900K | AD165: NSW Cat 1 | AE165: 1252883
Z166: 2123 | AA166: NSW | AB166: 1 | AD166: NSW Cat 1
Z167: 2124 | AA167: NSW | AB167: 1 | AD167: NSW Cat 1
Z168: 2125 | AA168: NSW | AB168: 1 | AC168: >=900K | AD168: NSW Cat 1 | AE168: 1220596
Z169: 2126 | AA169: NSW | AB169: 1 | AC169: >=900K | AD169: NSW Cat 1 | AE169: 1055698
Z170: 2127 | AA170: NSW | AB170: 1 | AC170: >=750-900K | AD170: NSW Cat 1 | AE170: 767992 | AG170: Yes
Z171: 2128 | AA171: NSW | AB171: 1 | AC171: >=450-750K | AD171: NSW Cat 1 | AE171: 727564
Z172: 2129 | AA172: NSW | AB172: 1 | AD172: NSW Cat 1
Z173: 2130 | AA173: NSW | AB173: 1 | AC173: >=900K | AD173: NSW Cat 1 | AE173: 1132963
Z174: 2131 | AA174: NSW | AB174: 1 | AC174: >=900K | AD174: NSW Cat 1 | AE174: 1109516
Z175: 2132 | AA175: NSW | AB175: 1 | AC175: >=900K | AD175: NSW Cat 1 | AE175: 1130873
Z176: 2133 | AA176: NSW | AB176: 1 | AC176: >=900K | AD176: NSW Cat 1 | AE176: 990464
Z177: 2134 | AA177: NSW | AB177: 1 | AC177: >=900K | AD177: NSW Cat 1 | AE177: 1401600 | AG177: Yes
Z178: 2135 | AA178: NSW | AB178: 1 | AC178: >=900K | AD178: NSW Cat 1 | AE178: 1704644 | AG178: Yes
Z179: 2136 | AA179: NSW | AB179: 1 | AC179: >=900K | AD179: NSW Cat 1 | AE179: 1194371
Z180: 2137 | AA180: NSW | AB180: 1 | AC180: >=900K | AD180: NSW Cat 1 | AE180: 1474655
Z181: 2138 | AA181: NSW | AB181: 1 | AC181: >=900K | AD181: NSW Cat 1 | AE181: 1024092 | AG181: Yes
Z182: 2139 | AA182: NSW | AB182: 1 | AD182: NSW Cat 1
Z183: 2140 | AA183: NSW | AB183: 1 | AC183: >=900K | AD183: NSW Cat 1 | AE183: 1110047 | AG183: Yes
Z184: 2141 | AA184: NSW | AB184: 1 | AC184: >=750-900K | AD184: NSW Cat 1 | AE184: 819296
Z185: 2142 | AA185: NSW | AB185: 1 | AC185: >=450-750K | AD185: NSW Cat 1 | AE185: 695923
Z186: 2143 | AA186: NSW | AB186: 1 | AC186: >=450-750K | AD186: NSW Cat 1 | AE186: 640918
Z187: 2144 | AA187: NSW | AB187: 1 | AC187: >=450-750K | AD187: NSW Cat 1 | AE187: 748716 | AG187: Yes
Z188: 2145 | AA188: NSW | AB188: 1 | AC188: >=450-750K | AD188: NSW Cat 1 | AE188: 719749
Z189: 2146 | AA189: NSW | AB189: 1 | AC189: >=450-750K | AD189: NSW Cat 1 | AE189: 642334
Z190: 2147 | AA190: NSW | AB190: 1 | AC190: >=450-750K | AD190: NSW Cat 1 | AE190: 584911
Z191: 2148 | AA191: NSW | AB191: 1 | AC191: >=450-750K | AD191: NSW Cat 1 | AE191: 544267
Z192: 2149 | AA192: NSW | AB192: 1 | AD192: NSW Cat 1
Z193: 2150 | AA193: NSW | AB193: 1 | AC193: >=450-750K | AD193: NSW Cat 1 | AE193: 739801 | AG193: Yes
Z194: 2151 | AA194: NSW | AB194: 1 | AC194: >=750-900K | AD194: NSW Cat 1 | AE194: 880724
Z195: 2152 | AA195: NSW | AB195: 1 | AC195: >=450-750K | AD195: NSW Cat 1 | AE195: 741567
Z196: 2153 | AA196: NSW | AB196: 1 | AC196: >=900K | AD196: NSW Cat 1 | AE196: 905139
Z197: 2154 | AA197: NSW | AB197: 1 | AC197: >=900K | AD197: NSW Cat 1 | AE197: 1105048 | AG197: Yes
Z198: 2155 | AA198: NSW | AB198: 1 | AC198: >=750-900K | AD198: NSW Cat 1 | AE198: 861659 | AG198: Yes
Z199: 2156 | AA199: NSW | AB199: 1 | AC199: >=900K | AD199: NSW Cat 1 | AE199: 1381786
Z200: 2157 | AA200: NSW | AB200: 1 | AC200: >=900K | AD200: NSW Cat 1 | AE200: 1241469
... 2050 more rows

Sheet HEM Table (hidden)
D1: "HEM Table 1" equivalent: by Income Level and Residency
D2: BASED ON PREDICTED VALUES FROM THE QUANTILE REGRESSIONS
D3: NEW FROM 2012Q3: Smoothed HEM
D4: Total current gross HH income from all sources (measured in 2010 dollars)
A6: Australia | C6: $025,000 or less | D6: $025,000 to $038,000 | E6: $038,000 to $050,000 | F6: $050,000 to $063,000 | G6: $063,000 to $075,000 | H6: $075,000 to $100,000 | I6: $100,000 to $125,000 | J6: $125,000 to $150,000 | K6: $150,000 to $175,000 | L6: $175,000 to $200,000 | M6: $200,000 to $251,000 | N6: $251,000 to $313,000 | O6: $313,000 to $376,000 | P6: $376,000 to $626,000 | Q6: $626,000 to $876,000 | R6: $876,000 to $1,126,000 | S6: $1,126,000 to $1,376,000 | T6: $1,376,000 to $000,000
A7: Income Lookup | B7: Code | C7: 0 | D7: 25000 | E7: 38000 | F7: 50000 | G7: 63000 | H7: 75000 | I7: 100000 | J7: 125000 | K7: 150000 | L7: 175000 | M7: 200000 | N7: 251000 | O7: 313000 | P7: 376000 | Q7: 626000 | R7: 876000 | S7: 1126000 | T7: 1376000
A8: Couple | B8: C0 | C8: 588.51 | D8: 588.51 | E8: 588.51 | F8: 604.7995849 | G8: 642.8876782 | H8: 699.7570768 | I8: 781.0275359 | J8: 850.9850961 | K8: 939.3644623 | L8: 984.2986615 | M8: 1028.60815 | N8: 1150.164256 | O8: 1263.753038 | P8: 1329.223945 | Q8: 1378.229115 | R8: 1410.899229 | S8: 1443.569342 | T8: 1443.569342
A9: Couple with 1 child | B9: C1 | C9: 676.4311993 | D9: 676.4311993 | E9: 676.4311993 | F9: 696.8057831 | G9: 735.1014172 | H9: 792.2806952 | I9: 873.9939573 | J9: 944.3327509 | K9: 1033.193767 | L9: 1078.372737 | M9: 1122.923741 | N9: 1245.142128 | O9: 1359.349852 | P9: 1425.177508 | Q9: 1474.449705 | R9: 1507.297837 | S9: 1540.145968 | T9: 1540.145968
A10: Couple with 2 children | B10: C2 | C10: 747.9269773 | D10: 747.9269773 | E10: 747.9269773 | F10: 768.3530633 | G10: 806.7455 | H10: 864.069314 | I10: 945.9891655 | J10: 1016.505759 | K10: 1105.591322 | L10: 1150.884568 | M10: 1195.548075 | N10: 1318.075513 | O10: 1432.571928 | P10: 1498.565981 | Q10: 1547.962727 | R10: 1580.893891 | S10: 1613.825055 | T10: 1613.825055
A11: Couple with 3 or more children | B11: C3 | C11: 847.0966061 | D11: 847.0966061 | E11: 847.0966061 | F11: 847.0966061 | G11: 885.8695669 | H11: 943.7615562 | I11: 1026.493371 | J11: 1097.708903 | K11: 1187.677453 | L11: 1233.419631 | M11: 1278.525866 | N11: 1402.267719 | O11: 1517.898911 | P11: 1584.547151 | Q11: 1634.433558 | R11: 1667.691162 | S11: 1700.948767 | T11: 1700.948767
A12: Couple with 4 children | B12: C4 | C12: 925.8401488 | D12: 925.8401488 | E12: 925.8401488 | F12: 925.8401488 | G12: 964.9936338 | H12: 1023.453798 | I12: 1106.997577 | J12: 1178.912046 | K12: 1269.763584 | L12: 1315.954694 | M12: 1361.503657 | N12: 1486.459926 | O12: 1603.225894 | P12: 1670.528321 | Q12: 1720.904389 | R12: 1754.488434 | S12: 1788.072479 | T12: 1788.072479
A13: Couple with 5 children | B13: C5 | C13: 1004.583692 | D13: 1004.583692 | E13: 1004.583692 | F13: 1004.583692 | G13: 1044.117701 | H13: 1103.146041 | I13: 1187.501782 | J13: 1260.11519 | K13: 1351.849715 | L13: 1398.489758 | M13: 1444.481448 | N13: 1570.652132 | O13: 1688.552877 | P13: 1756.509491 | Q13: 1807.375219 | R13: 1841.285705 | S13: 1875.196191 | T13: 1875.196191
A14: Couple with 6 children | B14: C6 | C14: 1083.327234 | D14: 1083.327234 | E14: 1083.327234 | F14: 1083.327234 | G14: 1123.241768 | H14: 1182.838283 | I14: 1268.005988 | J14: 1341.318333 | K14: 1433.935846 | L14: 1481.024821 | M14: 1527.459239 | N14: 1654.844338 | O14: 1773.879861 | P14: 1842.490661 | Q14: 1893.84605 | R14: 1928.082976 | S14: 1962.319903 | T14: 1962.319903
A15: Couple with 7 children | B15: C7 | C15: 1162.070777 | D15: 1162.070777 | E15: 1162.070777 | F15: 1162.070777 | G15: 1202.365834 | H15: 1262.530525 | I15: 1348.510193 | J15: 1422.521476 | K15: 1516.021977 | L15: 1563.559884 | M15: 1610.43703 | N15: 1739.036544 | O15: 1859.206844 | P15: 1928.471831 | Q15: 1980.316881 | R15: 2014.880248 | S15: 2049.443615 | T15: 2049.443615
A16: Couple with 8 children | B16: C8 | C16: 1240.81432 | D16: 1240.81432 | E16: 1240.81432 | F16: 1240.81432 | G16: 1281.489901 | H16: 1342.222767 | I16: 1429.014399 | J16: 1503.72462 | K16: 1598.108108 | L16: 1646.094947 | M16: 1693.414821 | N16: 1823.228751 | O16: 1944.533827 | P16: 2014.453001 | Q16: 2066.787712 | R16: 2101.677519 | S16: 2136.567326 | T16: 2136.567326
A17: Couple with 9 children | B17: C9 | C17: 1319.557862 | D17: 1319.557862 | E17: 1319.557862 | F17: 1319.557862 | G17: 1360.613968 | H17: 1421.915009 | I17: 1509.518604 | J17: 1584.927763 | K17: 1680.194239 | L17: 1728.63001 | M17: 1776.392612 | N17: 1907.420957 | O17: 2029.86081 | P17: 2100.434171 | Q17: 2153.258542 | R17: 2188.47479 | S17: 2223.691038 | T17: 2223.691038
A18: Couple with 10 children | B18: C10 | C18: 1398.301405 | D18: 1398.301405 | E18: 1398.301405 | F18: 1398.301405 | G18: 1439.738035 | H18: 1501.607252 | I18: 1590.02281 | J18: 1666.130907 | K18: 1762.28037 | L18: 1811.165073 | M18: 1859.370403 | N18: 1991.613163 | O18: 2115.187793 | P18: 2186.415341 | Q18: 2239.729373 | R18: 2275.272062 | S18: 2310.81475 | T18: 2310.81475
A20: Single person | B20: S0 | C20: 404.8 | D20: 404.8 | E20: 404.8 | F20: 404.8 | G20: 404.8 | H20: 436.5239617 | I20: 517.3200654 | J20: 586.8693466 | K20: 674.7328829 | L20: 719.4047941 | M20: 763.455641 | N20: 884.3022724 | O20: 997.2280657 | P20: 1062.316835 | Q20: 1111.035974 | R20: 1143.5154 | S20: 1175.994826 | T20: 1175.994826
A21: Single parent with 1 child | B21: S1 | C21: 411.6214832 | D21: 411.6214832 | E21: 428.6027038 | F21: 448.8740024 | G21: 486.975504 | H21: 543.8649133 | I21: 625.1639915 | J21: 695.146216 | K21: 783.5566946 | L21: 828.5067121 | M21: 872.8317807 | N21: 994.4306782 | O21: 1108.059448 | P21: 1173.553366 | Q21: 1222.57576 | R21: 1255.257356 | S21: 1287.938952 | T21: 1287.938952
A22: Single parent with 2 children | B22: S2 | C22: 521.3810902 | D22: 521.3810902 | E22: 538.3469338 | F22: 558.5998763 | G22: 596.6669127 | H22: 653.5048163 | I22: 734.7302301 | J22: 804.6490837 | K22: 892.9795595 | L22: 937.8888736 | M22: 982.1737863 | N22: 1103.662591 | O22: 1217.188393 | P22: 1282.623115 | Q22: 1331.601201 | R22: 1364.253258 | S22: 1396.905314 | T22: 1396.905314
A23: Single parent with 3 or more children | B23: S3 | C23: 648.0911638 | D23: 648.0911638 | E23: 648.0911638 | F23: 668.3257501 | G23: 706.3583214 | H23: 763.1447193 | I23: 844.2964686 | J23: 914.1519515 | K23: 1002.402424 | L23: 1047.271035 | M23: 1091.515792 | N23: 1212.894504 | O23: 1326.317339 | P23: 1391.692865 | Q23: 1440.626642 | R23: 1473.249159 | S23: 1505.871677 | T23: 1505.871677
A24: Single parent with 4 children | B24: S4 | C24: 757.8353939 | D24: 757.8353939 | E24: 757.8353939 | F24: 778.0516239 | G24: 816.0497301 | H24: 872.7846223 | I24: 953.8627072 | J24: 1023.654819 | K24: 1111.825289 | L24: 1156.653197 | M24: 1200.857797 | N24: 1322.126417 | O24: 1435.446284 | P24: 1500.762614 | Q24: 1549.652082 | R24: 1582.245061 | S24: 1614.83804 | T24: 1614.83804
A25: Single parent with 5 children | B25: S5 | C25: 867.5796239 | D25: 867.5796239 | E25: 867.5796239 | F25: 887.7774978 | G25: 925.7411388 | H25: 982.4245253 | I25: 1063.428946 | J25: 1133.157687 | K25: 1221.248154 | L25: 1266.035358 | M25: 1310.199803 | N25: 1431.35833 | O25: 1544.57523 | P25: 1609.832363 | Q25: 1658.677523 | R25: 1691.240963 | S25: 1723.804403 | T25: 1723.804403
A26: Single parent with 6 children | B26: S6 | C26: 977.323854 | D26: 977.323854 | E26: 977.323854 | F26: 997.5033716 | G26: 1035.432547 | H26: 1092.064428 | I26: 1172.995184 | J26: 1242.660555 | K26: 1330.671019 | L26: 1375.41752 | M26: 1419.541809 | N26: 1540.590243 | O26: 1653.704175 | P26: 1718.902113 | Q26: 1767.702964 | R26: 1800.236865 | S26: 1832.770766 | T26: 1832.770766
A27: Single parent with 7 children | B27: S7 | C27: 1087.068084 | D27: 1087.068084 | E27: 1087.068084 | F27: 1107.229245 | G27: 1145.123956 | H27: 1201.704331 | I27: 1282.561423 | J27: 1352.163423 | K27: 1440.093884 | L27: 1484.799681 | M27: 1528.883814 | N27: 1649.822156 | O27: 1762.833121 | P27: 1827.971862 | Q27: 1876.728405 | R27: 1909.232767 | S27: 1941.737128 | T27: 1941.737128
A28: Single parent with 8 children | B28: S8 | C28: 1196.812314 | D28: 1196.812314 | E28: 1196.812314 | F28: 1216.955119 | G28: 1254.815365 | H28: 1311.344234 | I28: 1392.127661 | J28: 1461.666291 | K28: 1549.516749 | L28: 1594.181843 | M28: 1638.22582 | N28: 1759.054069 | O28: 1871.962066 | P28: 1937.041611 | Q28: 1985.753846 | R28: 2018.228668 | S28: 2050.703491 | T28: 2050.703491
A29: Single parent with 9 children | B29: S9 | C29: 1306.556544 | D29: 1306.556544 | E29: 1306.556544 | F29: 1326.680993 | G29: 1364.506774 | H29: 1420.984137 | I29: 1501.6939 | J29: 1571.169158 | K29: 1658.939614 | L29: 1703.564004 | M29: 1747.567825 | N29: 1868.285982 | O29: 1981.091012 | P29: 2046.111361 | Q29: 2094.779286 | R29: 2127.22457 | S29: 2159.669854 | T29: 2159.669854
A30: Single parent with 10 children | B30: S10 | C30: 1416.300774 | D30: 1416.300774 | E30: 1416.300774 | F30: 1436.406867 | G30: 1474.198182 | H30: 1530.62404 | I30: 1611.260139 | J30: 1680.672026 | K30: 1768.362479 | L30: 1812.946165 | M30: 1856.909831 | N30: 1977.517894 | O30: 2090.219957 | P30: 2155.18111 | Q30: 2203.804727 | R30: 2236.220472 | S30: 2268.636217 | T30: 2268.636217

Sheet Loan Workings (hidden)
C3: Policy Parameters
C4: Maximum Loan Amount by Postcode Risk Category & LVR Band
C5: Location | D5: LVR
C6: (as defined by LMI) | D6: <= 60% | E6: > 60% up to 70% | F6: > 70% up to 80% | G6: > 80% up to 95%
B7: Cat | D7: 0.6 | E7: 0.7 | F7: 0.8 | G7: 0.95
B8: 1 | C8: Category 1 | D8: 99999999 | E8: 7000000 | F8: 4000000 | G8: 1425000
B9: 2 | C9: Category 2 | D9: 99999999 | E9: 2100000 | F9: 1200000 | G9: 712500
B10: 3 | C10: Category 3 | D10: 99999999 | E10: 2100000 | F10: 1200000 | G10: 712500
B11: 4 | C11: Category 4 | D11: 0 | E11: 0 | F11: 0 | G11: -1
C13: Other Policy Parameters
C14: Policy | D14: LVR Limit
C15: Restricted Security | D15: 0.8
C16: Interest Only | D16: 0.8
C17: Multiple Security | D17: 0.8
C18: Investor | D18: 0.9
C19: Risk Category 1 >10m allowable Loan Amount | D19: 7000000
C20: Risk Cateogry 1: Partition 1 | D20: 10000000
C21: Risk Cateogry 1: Partition 2 | D21: 5000000
C22: Risk Cateogry 1: Partition 2 | D22: 1500000
C23: Risk Cateogry 2-3: Partition 1 | D23: 3000000
C24: Risk Cateogry 2-3: Partition 2 | D24: 1500000
C25: Risk Cateogry 2-3: Partition 3 | D25: 750000
C27: Implementation of Policy Parameters
C28: Implementation of Maximum Loan Amount by Postcode Risk Category & LVR Band
C29: SecurityNumber | D29: 0.6 | E29: 0.7 | F29: 0.8 | G29: 0.95 | H29: Max
C30: 1 | D30: =MIN(OFFSET($C$7,MATCH($G40,$B$8:$B$11,0),MATCH(D$29,$D$7:$G$7,0)),$D40*D$29) ->  | H30: =IF(AND(G40=1,D40>$D$20),MAX(D30,$D$19),IF(AND(G40=1,D40>$D$21),E30,IF(AND(G40=1,D40>$D$22),F30,IF(AND(G40=1,D40<=$D$22),G30,IF(AND(G40=2,D40>$D$23),D30,IF(AND(G40=2,D40>$D$24),E30,IF(AND(G40=2,D40>$D$25),F30,IF(AND(G40=2,D40<=$D$25),G30,IF(AND(G40=3,D40>$D$23),D30,IF(AND(G40=3,D40>$D$24),E30,IF(AND(G40=3,D40>$D$25),F30,IF(AND(G40=3,D40<=$D$25),G30,0)))))))))))) -> 
C31: 2 | H31: =IF(AND(G41=1,D41>$D$20),MAX(D31,$D$19),IF(AND(G41=1,D41>$D$21),E31,IF(AND(G41=1,D41>$D$22),F31,IF(AND(G41=1,D41<=$D$22),G31,IF(AND(G41=2,D41>$D$23),D31,IF(AND(G41=2,D41>$D$24),E31,IF(AND(G41=2,D41>$D$25),F31,IF(AND(G41=2,D41<=$D$25),G31,IF(AND(G41=3,D41>$D$23),D31,IF(AND(G41=3,D41>$D$24),E31,IF(AND(G41=3,D41>$D$25),F31,IF(AND(G41=3,D41<=$D$25),G31,0)))))))))))) -> 
C32: 3
C33: 4
C34: 5
C35: 6
C37: Implementation of Other Policy Restrictions
H38: Apply Risk Category by LVR Limits | I38: Apply LVR Cap of 80% for Restricted Securities | K38: Apply LVR Cap of 80% for Facilities with IO Component | M38: Apply LVR Cap of 80% for Multiple Securities | O38: Apply LVR Cap of 90% for Investor Product | Q38: Maximum Loan Amount
C39: SecurityNumber | D39: Security Value | E39: Postcode | F39: State | G39: Postcode Risk Category | H39: Maximum Loan Amount | I39: Restricted | J39: Maximum Loan Amount | K39: IO | L39: Maximum Loan Amount | M39: Multiple Securities | N39: Maximum Loan Amount | O39: Investor | P39: Maximum Loan Amount
C40: 1 | D40: =SecVal1 -> 0 | E40: =PostCode1 -> 0 | F40: =VLOOKUP(E40,References!Z:AA,2,0) ->  | G40: =VLOOKUP(E40,References!Z:AD,3,0) ->  | H40: =H30 ->  | I40: =IF(VLOOKUP(E40,References!$Z$1:$AG$3093,7,FALSE)="","No",VLOOKUP(E40,References!$Z$1:$AG$3093,7,FALSE)) ->  | J40: =IF(I40="Yes",D40*RestrictedCap,H40) ->  | K40: =IF(H40="#N/A",H40,IF(Acct1IntOnlyPrd+Acct2IntOnlyPrd+Acct3IntOnlyPrd+Acct4IntOnlyPrd+Acct5IntOnlyPrd+Acct6IntOnlyPrd>0,"Yes","No")) ->  | L40: =IF(K40="Yes",D40*IOCap,H40) ->  | M40: =IF(H40="#N/A",H40,IF(SecCount>1,"Yes","No")) ->  | N40: =IF(M40="Yes",D40*MultiCap,H40) ->  | O40: =IF(H40="#N/A",H40,IF(OR(product=3,SecInv1="Y"),"Yes","No")) ->  | P40: =IF(O40="Yes",D40*InvestorCap,J40) ->  | Q40: =MIN(H40,J40,L40,N40,P40) -> 
C41: 2 | D41: =SecVal2 -> 0 | E41: =PostCode2 -> 0 | F41: =VLOOKUP(E41,References!Z:AA,2,0) ->  | G41: =VLOOKUP(E41,References!Z:AD,3,0) ->  | H41: =H31 ->  | I41: =IF(VLOOKUP(E41,References!$Z$1:$AG$3093,7,FALSE)="","No",VLOOKUP(E41,References!$Z$1:$AG$3093,7,FALSE)) ->  | O41: =IF(H41="#N/A",H41,IF(OR(product=3,SecInv2="Y"),"Yes","No")) ->  | Q41: =MIN(H41,J41,L41,N41,P41) -> 
C42: 3 | D42: =SecVal3 -> 0 | E42: =PostCode3 -> 0 | F42: =VLOOKUP(E42,References!Z:AA,2,0) ->  | G42: =VLOOKUP(E42,References!Z:AD,3,0) ->  | I42: =IF(VLOOKUP(E42,References!$Z$1:$AG$3093,7,FALSE)="","No",VLOOKUP(E42,References!$Z$1:$AG$3093,7,FALSE)) ->  | O42: =IF(H42="#N/A",H42,IF(OR(product=3,SecInv3="Y"),"Yes","No")) -> 
C43: 4 | D43: =SecVal4 -> 0 | E43: =PostCode4 -> 0 | F43: =VLOOKUP(E43,References!Z:AA,2,0) ->  | G43: =VLOOKUP(E43,References!Z:AD,3,0) ->  | I43: =IF(VLOOKUP(E43,References!$Z$1:$AG$3093,7,FALSE)="","No",VLOOKUP(E43,References!$Z$1:$AG$3093,7,FALSE)) ->  | O43: =IF(H43="#N/A",H43,IF(OR(product=3,SecInv4="Y"),"Yes","No")) -> 
C44: 5 | D44: =SecVal5 -> 0 | E44: =PostCode5 -> 0 | F44: =VLOOKUP(E44,References!Z:AA,2,0) ->  | G44: =VLOOKUP(E44,References!Z:AD,3,0) ->  | I44: =IF(VLOOKUP(E44,References!$Z$1:$AG$3093,7,FALSE)="","No",VLOOKUP(E44,References!$Z$1:$AG$3093,7,FALSE)) ->  | O44: =IF(H44="#N/A",H44,IF(OR(product=3,SecInv5="Y"),"Yes","No")) -> 
C45: 6 | D45: =SecVal6 -> 0 | E45: =PostCode6 -> 0 | F45: =VLOOKUP(E45,References!Z:AA,2,0) ->  | G45: =VLOOKUP(E45,References!Z:AD,3,0) ->  | I45: =IF(VLOOKUP(E45,References!$Z$1:$AG$3093,7,FALSE)="","No",VLOOKUP(E45,References!$Z$1:$AG$3093,7,FALSE)) ->  | O45: =IF(H45="#N/A",H45,IF(OR(product=3,SecInv6="Y"),"Yes","No")) -> 
Q46: =SUMIFS(Q40:Q45,Q40:Q45,">0") -> 0
C47: Security Count | D47: =COUNTIFS(D40:D45,">0") -> 0
C49: Messaging
C50: Condition | D50: Message
C51: >$10m Loan | D51: Total Loan Exceeds $10m Limit
C52: Max Loan Exceeded | D52: Loan amount requested exceeds maximum based on security
B80: Master Message table | D80: Error messages to be based on the below intent (otherwise formulae to be reworked):
B81: 0 | D81: OK (message not required)
B82: 1 | C82: Refer BDM | D82: Refer
B83: 2 | C83: Outside policy | D83: Reject

Sheet LMI Rates (hidden)
A1: STANDARD | C1: TO $300,000 | D1: FROM $300,001 TO $500,000 | E1: FROM $500,001 TO $600,000 | F1: FROM $600,001 TO $750,000 | G1: FROM $750,001 TO $1.0M | H1: FROM $1.0M TO $1.5M | I1: FROM $1.5M TO $2.0M | J1: FROM $2.0M | L1: Family pledge | N1: TO $300,000 | O1: FROM $300,001 TO $500,000 | P1: FROM $500,001 TO $600,000 | Q1: FROM $600,001 TO $750,000 | R1: FROM $750,001 TO $1.0M | S1: FROM $1.0M TO $1.5M | T1: FROM $1.5M TO $2.0M | U1: FROM $2.0M TO $2.5M
C2: 0 | D2: 300001 | E2: 500001 | F2: 600001 | G2: 750001 | H2: 1000001 | I2: 1500001 | J2: 2000001 | N2: 0 | O2: 300001 | P2: 500001 | Q2: 600001 | R2: 750001 | S2: 1000001 | T2: 1500001 | U2: 2000001
A3: Column no. for lookups | B3: 1 | C3: 2 | D3: 3 | E3: 4 | F3: 5 | G3: 6 | H3: 7 | I3: 8 | J3: 9 | L3: Column no. for lookups | M3: 1 | N3: 2 | O3: 3 | P3: 4 | Q3: 5 | R3: 6 | S3: 7 | T3: 8 | U3: 9
A4: Up to 60% | B4: 1e-09 | C4: 1200 | D4: 1915 | E4: 2350 | F4: 2350 | G4: 3045 | H4: 6090 | I4: 9360 | J4: 12165 | L4: Up to 60% | M4: 1e-05 | N4: 750 | O4: 1370 | P4: 2940 | Q4: 2940 | R4: 3810 | S4: 7615 | T4: 11700 | U4: 15210
A5: above 60% to 65% | B5: 0.60005 | C5: 1200 | D5: 1915 | E5: 3810 | F5: 3810 | G5: 4980 | H5: 8780 | I5: 13165 | J5: 17245 | L5: above 60% to 65% | M5: 0.60001 | N5: 750 | O5: 1370 | P5: 3810 | Q5: 3810 | R5: 4975 | S5: 8785 | T5: 13165 | U5: 17250
A6: above 65% to 70% | B6: 0.65005 | C6: 1200 | D6: 1915 | E6: 3810 | F6: 3810 | G6: 4980 | H6: 8780 | I6: 13165 | J6: 17245 | L6: above 65% to 70% | M6: 0.65001 | N6: 750 | O6: 1370 | P6: 3810 | Q6: 3810 | R6: 4975 | S6: 8785 | T6: 13165 | U6: 17250
A7: above 70% to 75% | B7: 0.70005 | C7: 1200 | D7: 1915 | E7: 5850 | F7: 5850 | G7: 8780 | H7: 11125 | I7: 16375 | J7: 21345 | L7: above 70% to 75% | M7: 0.70001 | N7: 750 | O7: 1370 | P7: 5855 | Q7: 5855 | R7: 8785 | S7: 11125 | T7: 16375 | U7: 21350
A8: above 75% to 80% | B8: 0.75005 | C8: 1200 | D8: 1915 | E8: 6440 | F8: 6440 | G8: 9655 | H8: 12290 | I8: 19010 | J8: 24855 | L8: above 75% to 80% | M8: 0.75001 | N8: 750 | O8: 1370 | P8: 6445 | Q8: 6445 | R8: 9655 | S8: 12295 | T8: 19010 | U8: 24860
A9: above 80% to 81% | B9: 0.80005 | C9: 0.51 | D9: 0.59 | E9: 0.94 | F9: 0.94 | G9: 0.94 | H9: 0.98 | I9: 1.06 | J9: 1.08 | L9: above 80% to 81% | M9: 0.80001 | N9: 0.63 | O9: 0.74 | P9: 1.25 | Q9: 1.25 | R9: 1.27 | S9: 1.27 | T9: 1.32 | U9: 1.32
A10: above 81% to 82% | B10: 0.81005 | C10: 0.52 | D10: 0.59 | E10: 0.94 | F10: 0.94 | G10: 0.94 | H10: 0.98 | I10: 1.11 | J10: 1.12 | L10: above 81% to 82% | M10: 0.81001 | N10: 0.63 | O10: 0.74 | P10: 1.25 | Q10: 1.25 | R10: 1.27 | S10: 1.27 | T10: 1.32 | U10: 1.35
A11: above 82% to 83% | B11: 0.82005 | C11: 0.72 | D11: 0.89 | E11: 1.1 | F11: 1.1 | G11: 1.1 | H11: 1.26 | I11: 1.31 | J11: 1.4 | L11: above 82% to 83% | M11: 0.82001 | N11: 0.88 | O11: 1.13 | P11: 1.44 | Q11: 1.44 | R11: 1.44 | S11: 1.63 | T11: 1.69 | U11: 1.78
A12: above 83% to 84% | B12: 0.83005 | C12: 0.72 | D12: 0.89 | E12: 1.18 | F12: 1.18 | G12: 1.18 | H12: 1.41 | I12: 1.47 | J12: 1.55 | L12: above 83% to 84% | M12: 0.83001 | N12: 0.88 | O12: 1.13 | P12: 1.52 | Q12: 1.52 | R12: 1.52 | S12: 1.78 | T12: 1.87 | U12: 1.97
A13: above 84% to 85% | B13: 0.84005 | C13: 0.91 | D13: 1.19 | E13: 1.35 | F13: 1.35 | G13: 1.36 | H13: 1.6 | I13: 1.69 | J13: 1.77 | L13: above 84% to 85% | M13: 0.84001 | N13: 1.14 | O13: 1.43 | P13: 1.77 | Q13: 1.77 | R13: 1.77 | S13: 2.08 | T13: 2.19 | U13: 2.29
A14: above 85% to 86% | B14: 0.85005 | C14: 0.94 | D14: 1.19 | E14: 1.48 | F14: 1.48 | G14: 1.48 | H14: 1.78 | I14: 1.97 | J14: 2.09 | L14: above 85% to 86% | M14: 0.85001
A15: above 86% to 87% | B15: 0.86005 | C15: 1.11 | D15: 1.34 | E15: 1.64 | F15: 1.64 | G15: 1.66 | H15: 1.98 | I15: 2.08 | J15: 2.11
A16: above 87% to 88% | B16: 0.87005 | C16: 1.11 | D16: 1.34 | E16: 1.73 | F16: 1.73 | G16: 1.74 | H16: 2.09 | I16: 2.19 | J16: 2.21 | N16: min $750
A17: above 88% to 89% | B17: 0.88005 | C17: 1.44 | D17: 1.89 | E17: 2.21 | F17: 2.21 | G17: 2.27 | H17: 2.57 | I17: 2.68 | J17: 2.77
A18: above 89% to 90% | B18: 0.89005 | C18: 1.58 | D18: 2 | E18: 2.55 | F18: 2.55 | G18: 2.56 | H18: 2.81 | I18: 2.83 | J18: 2.9
A19: above 90% to 91% | B19: 0.90005 | C19: 2.18 | D19: 2.81 | E19: 3.8 | F19: 3.8 | G19: 3.86 | H19: 4.46 | I19: 4.6 | J19: 4.98
A20: above 91% to 92% | B20: 0.91005 | C20: 2.18 | D20: 2.81 | E20: 3.95 | F20: 3.95 | G20: 4 | H20: 4.66 | I20: 4.77 | J20: 5.17
A21: above 92% to 93% | B21: 0.92005 | C21: 2.51 | D21: 3.18 | E21: 4.1 | F21: 4.1 | G21: 4.11 | H21: 5.02 | I21: 5.27 | J21: 5.34
A22: above 93% to 94% | B22: 0.93005 | C22: 2.51 | D22: 3.18 | E22: 4.49 | F22: 4.49 | G22: 4.56 | H22: 5.21 | I22: 5.46 | J22: 5.53
A23: above 94% to 95% | B23: 0.94005 | C23: 2.79 | D23: 3.51 | E23: 4.71 | F23: 4.71 | G23: 4.71 | H23: 5.21 | I23: 5.46 | J23: 5.77
A24: above 95% | B24: 0.95005
A27: Security state | B27: Stampduty
A28: 0 | B28: =MAX(B30:B37) -> 0.11 | C28: If security state not selected max SD rate used | F28: Sec # | G28: Security state
A29: [Please select] | B29: 0 | F29: 1 | G29: =H29 ->  | H29: =VLOOKUP('Serviceability Worksheet'!E40,References!Z:AA,2,0) -> 
A30: NSW | B30: 0 | F30: 2 | H30: =VLOOKUP('Serviceability Worksheet'!E41,References!Z:AA,2,0) -> 
A31: QLD | B31: 0.09 | F31: 3 | H31: =VLOOKUP('Serviceability Worksheet'!E42,References!Z:AA,2,0) -> 
A32: VIC | B32: 0.1 | F32: 4 | H32: =VLOOKUP('Serviceability Worksheet'!E43,References!Z:AA,2,0) -> 
A33: SA | B33: 0.11 | F33: 5 | H33: =VLOOKUP('Serviceability Worksheet'!E44,References!Z:AA,2,0) -> 
A34: WA | B34: 0.1 | F34: 6 | H34: =VLOOKUP('Serviceability Worksheet'!E45,References!Z:AA,2,0) -> 
A35: TAS | B35: 0.1
A36: NT | B36: 0.1
A37: ACT | B37: 0.06
A40: Loaders
A41: External Refi/Cash out | B41: 1.05
A42: Self employed | B42: 1.1
A43: Property: Rental/Investment | B43: 1.15
A46: Predominant Security Type | B46: Property Value | C46: % of total Value
A47: Investment | B47: =SUMIF('Serviceability Worksheet'!G40:G45,"Y",'Serviceability Worksheet'!C40:C45) -> 0 | C47: =B47/($B$47+$B$48) -> 
A48: Non Investment | B48: =SecValue-'LMI Rates'!B47 -> 0 | C48: =B48/($B$47+$B$48) -> 
A49: Predominant Type | B49: =MAX(C47:C48) ->  | C49: =IF(C48>C47,A48,A47) -> 
A52: Loan summary
A53: Total Loan Amount | B53: =Loanamt -> 0
A54: Total Security Value | B54: =SecValue -> 0
A55: Base LVR | B55: =IF(ISERROR(B53/B54),0,B53/B54) -> 0
A58: Base LMI premium | D58: =VLOOKUP(B55,B4:J24,HLOOKUP(B53,C2:J3,2,1),1) -> 
A59: Loader 1 - Predominant loan refi/cash out | C59: =IF('Serviceability Worksheet'!G54="N","N","Y") -> Y | D59: =IF(C59="Y",B41,1) -> 1.05
A60: Loader 2 - Predominant Security Type | C60: =C49 ->  | D60: =IF(C60=A47,B43,1) -> 
A61: Loader 3 - Self Employed | C61: =IF('Serviceability Worksheet'!C56="N","N","Y") -> Y | D61: =IF(C61="Y",B42,1) -> 1.1
C62: total | D62: =ROUND(PRODUCT(D58:D61),2) ->  | E62: using sumproduct()
C64: Premium | D64: =D62/100*B53 ->  | E64: (incl GST)
C65: Sampduty | D65: =F82 -> 0
C66: Total premium | D66: =D64+D65 -> 
A68: Borrower pays (net RITC) | B68: 25% of GST | C68: Premium excl GST | D68: =D64*10/11 ->  | E68: GST | F68: =D64-D68 -> 
C69: 25% GST | D69: =F68*25% -> 
C70: Premium | D70: =D68+D69 -> 
C71: SD | D71: =D65 -> 0
C72: borrower pay | D72: =MAX(D68+D69+D71,600) ->  | E72: (min $600)
A74: Stamp duty calc
A75: Security values | B75: state | C75: Investment | D75: SD % | E75: apportion | F75: SD | G75: State not entered | H75: Security type not entered
A76: =SecVal1 -> 0 | B76: =IF(ISERROR(SecState1),0,SecState1) -> 0 | C76: =SecInv1 -> [Please select] | D76: =VLOOKUP(B76,$A$28:$B$37,2,0) -> 0.11 | E76: =A76/SUM($A$76:$A$81) ->  | F76: =ROUND(E76*D76*$D$64,2) ->  | G76: =IF(AND(A76>0,OR(B76=0,B76="[Please select]")),"Y","N") -> N | H76: =IF(AND(A76>0,OR(C76=0,C76="[Please select]")),"Y","N") -> N
A77: =SecVal2 -> 0 | B77: =IF(ISERROR(SecState2),0,SecState2) -> 0 | C77: =SecInv2 -> [Please select] | D77: =VLOOKUP(B77,$A$28:$B$37,2,0) -> 0.11 | E77: =A77/SUM($A$76:$A$81) ->  | F77: =ROUND(E77*D77*$D$64,2) ->  | G77: =IF(AND(A77>0,OR(B77=0,B77="[Please select]")),"Y","N") -> N | H77: N
A78: =SecVal3 -> 0 | B78: =IF(ISERROR(SecState3),0,SecState3) -> 0 | C78: =SecInv3 -> [Please select] | D78: 0.11 | G78: N | H78: N
A79: =SecVal4 -> 0 | B79: =IF(ISERROR(SecState4),0,SecState4) -> 0 | C79: =SecInv4 -> [Please select] | D79: 0.11 | G79: N | H79: N
A80: =SecVal5 -> 0 | B80: =IF(ISERROR(SecState5),0,SecState5) -> 0 | C80: =SecInv5 -> [Please select] | D80: 0.11 | G80: N | H80: N
A81: =SecVal6 -> 0 | B81: =IF(ISERROR(SecState6),0,SecState6) -> 0 | C81: =SecInv6 -> [Please select] | D81: 0.11 | F81: =ROUND(E81*D81*$D$64,2) ->  | G81: N | H81: N
E82: Total SD | F82: =SUMIF(F76:F81,">0") -> 0 | G82: =IF(ISERROR(MATCH("Y",G76:G81,0)),"N","Y") -> N | H82: =IF(ISERROR(MATCH("Y",H76:H81,0)),"N","Y") -> N
A84: State error message: | B84: =IF(OR(G82="Y",H82="Y"),"Enter postcode and investment (Y/N) for the each property for correct LMI premium","") -> 
A86: Capitalise LMI dropdown list
A87: =IF($B$55<=80%,"N/A",B87) -> N/A | B87: [Please select] | D87: Note: lists depend on wether LMI cap is applicable (eg. LVR > 80%)
A88: =IF($B$55<=80%,"",B88) ->  | B88: Y
A89: =IF($B$55<=80%,"",B89) ->  | B89: N
